Workbook

Sheet Main
B10: 2019-10-23
B12: Sheet No. | C12: Template Name | D12: Summary
B13: 1 | C13: Future Intra | D13: For Intraday trading in F&O segment
B14: 2 | C14: Cash Intra | D14: For Intraday trading in cash market segment
B15: 3 | C15: Mid-cap Intra | D15: For Intraday trading in Mid-cap stocks
B16: 4 | C16: Bulk Deals | D16: Reveals Bulk Deals carried on NSE & BSE
B17: 5 | C17: Call Tracker
K27: `

Sheet Future Intra
M5: Back to Main Page
A6: FOR INTRA DAY TRADING | L6: =Main!B10 -> 2019-10-23
A9: Sr.no | B9: Sector | C9: Scrip | D9: CLOSE RATE | E9: Pivot Point | F9: Supports | I9: Resistances
B10: Sector | D10: Point | E10: Point | F10: S1 | G10: S2 | H10: S3 | I10: R1 | J10: R2 | K10: R3 | L10: HIGH | M10: LOW | N10: OI | O10: % Change in OI
A11: 1 | B11: Index | C11: BANKNIFTY | D11: 29492.50 | E11: 29363.63 | F11: 28980.27 | G11: 28468.03 | H11: 28084.67 | I11: 29875.87 | J11: 30259.23 | K11: 30771.47 | L11: 29747 | M11: 28851.4 | N11: 1454920 | O11: -0.45%
A12: 2 | B12: Index | C12: NIFTY | D12: 11624.35 | E12: 11647.87 | F12: 11580.73 | G12: 11537.12 | H12: 11469.98 | I12: 11691.48 | J12: 11758.62 | K12: 11802.23 | L12: 11715 | M12: 11604.25 | N12: 16724550 | O12: 9.28%
A13: 3 | B13: Index | C13: NIFTYIT | D13: 14740.00 | E13: 14886.33 | F13: 14573.67 | G13: 14407.33 | H13: 14094.67 | I13: 15052.67 | J13: 15365.33 | K13: 15531.67 | L13: 15199 | M13: 14720 | N13: 24700 | O13: 100.81%
A14: 4 | B14: Cement | C14: ACC | D14: 1539.30 | E14: 1543.13 | F14: 1523.97 | G14: 1508.63 | H14: 1489.47 | I14: 1558.47 | J14: 1577.63 | K14: 1592.97 | L14: 1562.3 | M14: 1527.8 | N14: 2156400 | O14: -3.09%
A15: 5 | B15: Others | C15: ADANIENT | D15: 179.25 | E15: 177.98 | F15: 175.37 | G15: 171.48 | H15: 168.87 | I15: 181.87 | J15: 184.48 | K15: 188.37 | L15: 180.6 | M15: 174.1 | N15: 32300000 | O15: 0.76%
A16: 6 | B16: Others | C16: ADANIPORTS | D16: 421.85 | E16: 422.95 | F16: 416.90 | G16: 411.95 | H16: 405.90 | I16: 427.90 | J16: 433.95 | K16: 438.90 | L16: 429 | M16: 418 | N16: 11990000 | O16: -1.60%
A17: 7 | B17: Power | C17: ADANIPOWER | D17: 63.25 | E17: 63.75 | F17: 62.45 | G17: 61.65 | H17: 60.35 | I17: 64.55 | J17: 65.85 | K17: 66.65 | L17: 65.05 | M17: 62.95 | N17: 87600000 | O17: 1.01%
A18: 8 | B18: Automobile | C18: AMARAJABAT | D18: 676.70 | E18: 674.53 | F18: 666.42 | G18: 656.13 | H18: 648.02 | I18: 684.82 | J18: 692.93 | K18: 703.22 | L18: 682.65 | M18: 664.25 | N18: 1570100 | O18: 0.99%
A19: 9 | B19: Cement | C19: AMBUJACEM | D19: 196.10 | E19: 198.20 | F19: 190.35 | G19: 184.60 | H19: 176.75 | I19: 203.95 | J19: 211.80 | K19: 217.55 | L19: 206.05 | M19: 192.45 | N19: 22842500 | O19: -5.44%
A20: 10 | B20: Others | C20: APOLLOHOSP | D20: 1525.15 | E20: 1524.05 | F20: 1504.30 | G20: 1483.45 | H20: 1463.70 | I20: 1544.90 | J20: 1564.65 | K20: 1585.50 | L20: 1543.8 | M20: 1503.2 | N20: 1346000 | O20: 2.28%
A21: 11 | B21: Automobile | C21: APOLLOTYRE | D21: 185.40 | E21: 185.97 | F21: 183.43 | G21: 181.47 | H21: 178.93 | I21: 187.93 | J21: 190.47 | K21: 192.43 | L21: 188.5 | M21: 184 | N21: 7506000 | O21: 6.74%
A22: 13 | B22: Automobile | C22: ASHOKLEY | D22: 75.55 | E22: 75.75 | F22: 74.55 | G22: 73.55 | H22: 72.35 | I22: 76.75 | J22: 77.95 | K22: 78.95 | L22: 76.95 | M22: 74.75 | N22: 64608000 | O22: 0.43%
A23: 14 | B23: FMCG | C23: ASIANPAINT | D23: 1783.00 | E23: 1796.62 | F23: 1764.88 | G23: 1746.77 | H23: 1715.03 | I23: 1814.73 | J23: 1846.47 | K23: 1864.58 | L23: 1828.35 | M23: 1778.5 | N23: 8344800 | O23: 0.88%
A24: 15 | B24: Pharma | C24: AUROPHARMA | D24: 478.60 | E24: 479.10 | F24: 472.05 | G24: 465.50 | H24: 458.45 | I24: 485.65 | J24: 492.70 | K24: 499.25 | L24: 486.15 | M24: 472.55 | N24: 19000000 | O24: -0.41%
A25: 16 | B25: Banking | C25: AXISBANK | D25: 714.85 | E25: 714.70 | F25: 704.75 | G25: 694.65 | H25: 684.70 | I25: 724.80 | J25: 734.75 | K25: 744.85 | L25: 724.65 | M25: 704.6 | N25: 59494800 | O25: -0.79%
A26: 17 | B26: Automobile | C26: BAJAJ-AUTO | D26: 3126.70 | E26: 3125.52 | F26: 3091.18 | G26: 3055.67 | H26: 3021.33 | I26: 3161.03 | J26: 3195.37 | K26: 3230.88 | L26: 3159.85 | M26: 3090 | N26: 2238250 | O26: 0.53%
A27: 18 | B27: Finance | C27: BAJAJFINSV | D27: 8040.65 | E27: 8152.92 | F27: 7895.73 | G27: 7750.82 | H27: 7493.63 | I27: 8297.83 | J27: 8555.02 | K27: 8699.93 | L27: 8410.1 | M27: 8008 | N27: 1307250 | O27: 5.50%
A28: 19 | B28: Finance | C28: BAJFINANCE | D28: 4050.25 | E28: 4100.42 | F28: 3965.83 | G28: 3881.42 | H28: 3746.83 | I28: 4184.83 | J28: 4319.42 | K28: 4403.83 | L28: 4235 | M28: 4016 | N28: 7754750 | O28: 5.55%
A29: 20 | B29: Automobile | C29: BALKRISIND | D29: 833.20 | E29: 835.35 | F29: 823.70 | G29: 814.20 | H29: 802.55 | I29: 844.85 | J29: 856.50 | K29: 866.00 | L29: 847 | M29: 825.85 | N29: 1566400 | O29: -2.68%
A30: 21 | B30: Banking | C30: BANKBARODA | D30: 90.50 | E30: 90.87 | F30: 88.83 | G30: 87.17 | H30: 85.13 | I30: 92.53 | J30: 94.57 | K30: 96.23 | L30: 92.9 | M30: 89.2 | N30: 70726500 | O30: -0.36%
A31: 22 | B31: Banking | C31: BANKINDIA | D31: 64.60 | E31: 65.15 | F31: 63.30 | G31: 62.00 | H31: 60.15 | I31: 66.45 | J31: 68.30 | K31: 69.60 | L31: 67 | M31: 63.85 | N31: 25296000 | O31: -6.06%
A32: 23 | B32: FMCG | C32: BATAINDIA | D32: 1760.55 | E32: 1765.73 | F32: 1732.47 | G32: 1704.38 | H32: 1671.12 | I32: 1793.82 | J32: 1827.08 | K32: 1855.17 | L32: 1799 | M32: 1737.65 | N32: 2873750 | O32: -1.02%
A33: 24 | B33: Capital_Goods | C33: BEL | D33: 115.75 | E33: 116.42 | F33: 114.43 | G33: 113.12 | H33: 111.13 | I33: 117.73 | J33: 119.72 | K33: 121.03 | L33: 118.4 | M33: 115.1 | N33: 25158000 | O33: -1.92%
A34: 25 | B34: FMCG | C34: BERGEPAINT | D34: 476.70 | E34: 481.10 | F34: 470.80 | G34: 464.90 | H34: 454.60 | I34: 487.00 | J34: 497.30 | K34: 503.20 | L34: 491.4 | M34: 475.2 | N34: 8388600 | O34: -0.18%
A35: 26 | B35: Automobile | C35: BHARATFORG | D35: 447.75 | E35: 448.73 | F35: 441.72 | G35: 435.68 | H35: 428.67 | I35: 454.77 | J35: 461.78 | K35: 467.82 | L35: 455.75 | M35: 442.7 | N35: 7588800 | O35: -1.28%
A36: 27 | B36: Telecom | C36: BHARTIARTL | D36: 373.60 | E36: 379.35 | F36: 361.45 | G36: 349.30 | H36: 331.40 | I36: 391.50 | J36: 409.40 | K36: 421.55 | L36: 397.25 | M36: 367.2 | N36: 43735428 | O36: 4.10%
A37: 28 | B37: Capital_Goods | C37: BHEL | D37: 52.00 | E37: 53.03 | F37: 50.52 | G37: 49.03 | H37: 46.52 | I37: 54.52 | J37: 57.03 | K37: 58.52 | L37: 55.55 | M37: 51.55 | N37: 57840000 | O37: -2.68%
A38: 29 | B38: Pharma | C38: BIOCON | D38: 257.65 | E38: 258.65 | F38: 255.25 | G38: 252.85 | H38: 249.45 | I38: 261.05 | J38: 264.45 | K38: 266.85 | L38: 262.05 | M38: 256.25 | N38: 12940200 | O38: -3.83%
A39: 30 | B39: Automobile | C39: BOSCHLTD | D39: 14594.20 | E39: 14483.02 | F39: 14266.03 | G39: 13937.87 | H39: 13720.88 | I39: 14811.18 | J39: 15028.17 | K39: 15356.33 | L39: 14700 | M39: 14154.85 | N39: 153630 | O39: 0.51%
A40: 31 | B40: Oil_Gas | C40: BPCL | D40: 535.65 | E40: 532.92 | F40: 526.08 | G40: 516.52 | H40: 509.68 | I40: 542.48 | J40: 549.32 | K40: 558.88 | L40: 539.75 | M40: 523.35 | N40: 24487200 | O40: -1.61%
A41: 32 | B41: FMCG | C41: BRITANNIA | D41: 3264.75 | E41: 3265.08 | F41: 3237.17 | G41: 3209.58 | H41: 3181.67 | I41: 3292.67 | J41: 3320.58 | K41: 3348.17 | L41: 3293 | M41: 3237.5 | N41: 2027800 | O41: 0.80%
A42: 34 | B42: Pharma | C42: CADILAHC | D42: 245.45 | E42: 244.77 | F42: 240.28 | G42: 235.12 | H42: 230.63 | I42: 249.93 | J42: 254.42 | K42: 259.58 | L42: 249.25 | M42: 239.6 | N42: 8662400 | O42: -2.33%
A43: 35 | B43: Banking | C43: CANBK | D43: 190.20 | E43: 191.45 | F43: 187.00 | G43: 183.80 | H43: 179.35 | I43: 194.65 | J43: 199.10 | K43: 202.30 | L43: 195.9 | M43: 188.25 | N43: 10364000 | O43: -4.90%
A44: 36 | B44: Oil_Gas | C44: CASTROLIND | D44: 133.85 | E44: 132.87 | F44: 131.23 | G44: 128.62 | H44: 126.98 | I44: 135.48 | J44: 137.12 | K44: 139.73 | L44: 134.5 | M44: 130.25 | N44: 7405200 | O44: -0.46%
A45: 37 | B45: Textile | C45: CENTURYTEX | D45: 444.70 | E45: 437.25 | F45: 408.70 | G45: 372.70 | H45: 344.15 | I45: 473.25 | J45: 501.80 | K45: 537.80 | L45: 465.8 | M45: 401.25 | N45: 2212800 | O45: 26.39%
A46: 38 | B46: Power | C46: CESC | D46: 807.90 | E46: 809.88 | F46: 800.12 | G46: 792.33 | H46: 782.57 | I46: 817.67 | J46: 827.43 | K46: 835.22 | L46: 819.65 | M46: 802.1 | N46: 800000 | O46: -8.34%
A47: 39 | B47: Finance | C47: CHOLAFIN | D47: 294.05 | E47: 297.57 | F47: 287.13 | G47: 280.22 | H47: 269.78 | I47: 304.48 | J47: 314.92 | K47: 321.83 | L47: 308 | M47: 290.65 | N47: 2992500 | O47: -0.75%
A48: 40 | B48: Pharma | C48: CIPLA | D48: 454.40 | E48: 451.23 | F48: 443.77 | G48: 433.13 | H48: 425.67 | I48: 461.87 | J48: 469.33 | K48: 479.97 | L48: 458.7 | M48: 440.6 | N48: 12862000 | O48: -0.63%
A49: 41 | B49: Others | C49: COALINDIA | D49: 209.45 | E49: 207.95 | F49: 205.40 | G49: 201.35 | H49: 198.80 | I49: 212.00 | J49: 214.55 | K49: 218.60 | L49: 210.5 | M49: 203.9 | N49: 33541200 | O49: 0.30%
A50: 42 | B50: FMCG | C50: COLPAL | D50: 1536.75 | E50: 1540.18 | F50: 1522.67 | G50: 1508.58 | H50: 1491.07 | I50: 1554.27 | J50: 1571.78 | K50: 1585.87 | L50: 1557.7 | M50: 1526.1 | N50: 1733900 | O50: -4.80%
A51: 43 | B51: Others | C51: CONCOR | D51: 610.60 | E51: 616.93 | F51: 599.37 | G51: 588.13 | H51: 570.57 | I51: 628.17 | J51: 645.73 | K51: 656.97 | L51: 634.5 | M51: 605.7 | N51: 6028491 | O51: 0.70%
A52: 44 | B52: Capital_Goods | C52: CUMMINSIND | D52: 579.15 | E52: 582.37 | F52: 573.78 | G52: 568.42 | H52: 559.83 | I52: 587.73 | J52: 596.32 | K52: 601.68 | L52: 590.95 | M52: 577 | N52: 1627500 | O52: -1.32%
A53: 45 | B53: FMCG | C53: DABUR | D53: 474.10 | E53: 474.10 | F53: 467.80 | G53: 461.50 | H53: 455.20 | I53: 480.40 | J53: 486.70 | K53: 493.00 | L53: 480.4 | M53: 467.8 | N53: 11526250 | O53: 0.84%
A54: 47 | B54: Media | C54: DISHTV | D54: 14.55 | E54: 15.15 | F54: 13.65 | G54: 12.75 | H54: 11.25 | I54: 16.05 | J54: 17.55 | K54: 18.45 | L54: 16.65 | M54: 14.25 | N54: 105518000 | O54: -2.85%
A55: 48 | B55: Pharma | C55: DIVISLAB | D55: 1746.15 | E55: 1750.75 | F55: 1727.50 | G55: 1708.85 | H55: 1685.60 | I55: 1769.40 | J55: 1792.65 | K55: 1811.30 | L55: 1774 | M55: 1732.1 | N55: 2366000 | O55: 0.20%
A56: 49 | B56: Realty | C56: DLF | D56: 177.90 | E56: 177.12 | F56: 170.78 | G56: 163.67 | H56: 157.33 | I56: 184.23 | J56: 190.57 | K56: 197.68 | L56: 183.45 | M56: 170 | N56: 39992400 | O56: -1.28%
A57: 50 | B57: Pharma | C57: DRREDDY | D57: 2812.60 | E57: 2779.08 | F57: 2735.42 | G57: 2658.23 | H57: 2614.57 | I57: 2856.27 | J57: 2899.93 | K57: 2977.12 | L57: 2822.75 | M57: 2701.9 | N57: 3234750 | O57: -3.09%
A58: 51 | B58: Automobile | C58: EICHERMOT | D58: 20059.65 | E58: 20177.80 | F58: 19807.70 | G58: 19555.75 | H58: 19185.65 | I58: 20429.75 | J58: 20799.85 | K58: 21051.80 | L58: 20547.9 | M58: 19925.85 | N58: 330325 | O58: 0.33%
A59: 53 | B59: Finance | C59: EQUITAS | D59: 101.90 | E59: 102.78 | F59: 100.17 | G59: 98.43 | H59: 95.82 | I59: 104.52 | J59: 107.13 | K59: 108.87 | L59: 105.4 | M59: 101.05 | N59: 10644000 | O59: 3.99%
A60: 54 | B60: Automobile | C60: ESCORTS | D60: 647.00 | E60: 650.88 | F60: 640.37 | G60: 633.73 | H60: 623.22 | I60: 657.52 | J60: 668.03 | K60: 674.67 | L60: 661.4 | M60: 644.25 | N60: 5660600 | O60: -2.46%
A61: 55 | B61: Automobile | C61: EXIDEIND | D61: 180.85 | E61: 182.03 | F61: 179.37 | G61: 177.88 | H61: 175.22 | I61: 183.52 | J61: 186.18 | K61: 187.67 | L61: 184.7 | M61: 180.55 | N61: 11892000 | O61: 3.19%
A62: 56 | B62: Banking | C62: FEDERALBNK | D62: 83.60 | E62: 84.05 | F62: 82.85 | G62: 82.10 | H62: 80.90 | I62: 84.80 | J62: 86.00 | K62: 86.75 | L62: 85.25 | M62: 83.3 | N62: 45584000 | O62: 2.20%
A63: 57 | B63: Oil_Gas | C63: GAIL | D63: 130.05 | E63: 130.18 | F63: 128.92 | G63: 127.78 | H63: 126.52 | I63: 131.32 | J63: 132.58 | K63: 133.72 | L63: 131.45 | M63: 129.05 | N63: 48502062 | O63: 1.35%
A64: 58 | B64: Pharma | C64: GLENMARK | D64: 299.30 | E64: 299.43 | F64: 293.87 | G64: 288.43 | H64: 282.87 | I64: 304.87 | J64: 310.43 | K64: 315.87 | L64: 305 | M64: 294 | N64: 6338000 | O64: -1.23%
A65: 59 | B65: Infrastructure | C65: GMRINFRA | D65: 19.10 | E65: 19.18 | F65: 18.77 | G65: 18.43 | H65: 18.02 | I65: 19.52 | J65: 19.93 | K65: 20.27 | L65: 19.6 | M65: 18.85 | N65: 149670000 | O65: -2.92%
A66: 60 | B66: FMCG | C66: GODREJCP | D66: 702.80 | E66: 705.87 | F66: 695.03 | G66: 687.27 | H66: 676.43 | I66: 713.63 | J66: 724.47 | K66: 732.23 | L66: 716.7 | M66: 698.1 | N66: 6370400 | O66: 0.56%
A67: 61 | B67: Cement | C67: GRASIM | D67: 758.55 | E67: 758.68 | F67: 743.87 | G67: 729.18 | H67: 714.37 | I67: 773.37 | J67: 788.18 | K67: 802.87 | L67: 773.5 | M67: 744 | N67: 17217750 | O67: 1.97%
A68: 62 | B68: Others | C68: HAVELLS | D68: 679.40 | E68: 680.85 | F68: 668.75 | G68: 658.10 | H68: 646.00 | I68: 691.50 | J68: 703.60 | K68: 714.25 | L68: 692.95 | M68: 670.2 | N68: 5416000 | O68: 2.89%
A69: 63 | B69: Technology | C69: HCLTECH | D69: 1066.30 | E69: 1071.98 | F69: 1047.07 | G69: 1027.83 | H69: 1002.92 | I69: 1091.22 | J69: 1116.13 | K69: 1135.37 | L69: 1096.9 | M69: 1052.75 | N69: 11203500 | O69: 4.59%
A70: 64 | B70: Finance | C70: HDFC | D70: 2120.85 | E70: 2120.28 | F70: 2096.72 | G70: 2072.58 | H70: 2049.02 | I70: 2144.42 | J70: 2167.98 | K70: 2192.12 | L70: 2143.85 | M70: 2096.15 | N70: 35263000 | O70: -0.84%
A71: 65 | B71: Banking | C71: HDFCBANK | D71: 1243.95 | E71: 1243.80 | F71: 1232.60 | G71: 1221.25 | H71: 1210.05 | I71: 1255.15 | J71: 1266.35 | K71: 1277.70 | L71: 1255 | M71: 1232.45 | N71: 35051000 | O71: -6.03%
A72: 66 | B72: Automobile | C72: HEROMOTOCO | D72: 2677.85 | E72: 2681.78 | F72: 2642.27 | G72: 2606.68 | H72: 2567.17 | I72: 2717.37 | J72: 2756.88 | K72: 2792.47 | L72: 2721.3 | M72: 2646.2 | N72: 3206200 | O72: -1.59%
A73: 67 | B73: Technology | C73: HEXAWARE | D73: 372.30 | E73: 373.12 | F73: 368.18 | G73: 364.07 | H73: 359.13 | I73: 377.23 | J73: 382.17 | K73: 386.28 | L73: 378.05 | M73: 369 | N73: 1720500 | O73: 4.18%
A74: 68 | B74: Metals | C74: HINDALCO | D74: 186.20 | E74: 187.65 | F74: 183.80 | G74: 181.40 | H74: 177.55 | I74: 190.05 | J74: 193.90 | K74: 196.30 | L74: 191.5 | M74: 185.25 | N74: 34149500 | O74: 2.76%
A75: 69 | B75: Oil_Gas | C75: HINDPETRO | D75: 317.90 | E75: 317.37 | F75: 313.23 | G75: 308.57 | H75: 304.43 | I75: 322.03 | J75: 326.17 | K75: 330.83 | L75: 321.5 | M75: 312.7 | N75: 25076100 | O75: 3.70%
A76: 70 | B76: FMCG | C76: HINDUNILVR | D76: 2124.45 | E76: 2122.10 | F76: 2104.60 | G76: 2084.75 | H76: 2067.25 | I76: 2141.95 | J76: 2159.45 | K76: 2179.30 | L76: 2139.6 | M76: 2102.25 | N76: 9171600 | O76: 2.17%
A77: 72 | B77: Finance | C77: IBULHSGFIN | D77: 201.50 | E77: 208.55 | F77: 183.10 | G77: 164.70 | H77: 139.25 | I77: 226.95 | J77: 252.40 | K77: 270.80 | L77: 234 | M77: 190.15 | N77: 29269600 | O77: -0.98%
A78: 73 | B78: Banking | C78: ICICIBANK | D78: 451.60 | E78: 449.83 | F78: 439.77 | G78: 427.93 | H78: 417.87 | I78: 461.67 | J78: 471.73 | K78: 483.57 | L78: 459.9 | M78: 438 | N78: 78709125 | O78: 4.16%
A79: 74 | B79: Finance | C79: ICICIPRULI | D79: 479.55 | E79: 479.48 | F79: 472.97 | G79: 466.38 | H79: 459.87 | I79: 486.07 | J79: 492.58 | K79: 499.17 | L79: 486 | M79: 472.9 | N79: 6621000 | O79: 0.55%
A80: 76 | B80: Telecom | C80: IDEA | D80: 6.15 | E80: 6.23 | F80: 5.92 | G80: 5.68 | H80: 5.37 | I80: 6.47 | J80: 6.78 | K80: 7.02 | L80: 6.55 | M80: 6 | N80: 548940000 | O80: -1.70%
A81: 77 | B81: Banking | C81: IDFCFIRSTB | D81: 39.40 | E81: 39.48 | F81: 38.97 | G81: 38.53 | H81: 38.02 | I81: 39.92 | J81: 40.43 | K81: 40.87 | L81: 40 | M81: 39.05 | N81: 271344000 | O81: 0.76%
A82: 78 | B82: Oil_Gas | C82: IGL | D82: 373.85 | E82: 375.50 | F82: 371.10 | G82: 368.35 | H82: 363.95 | I82: 378.25 | J82: 382.65 | K82: 385.40 | L82: 379.9 | M82: 372.75 | N82: 3599750 | O82: -2.75%
A83: 79 | B83: Others | C83: INDIGO | D83: 1676.10 | E83: 1689.37 | F83: 1654.83 | G83: 1633.57 | H83: 1599.03 | I83: 1710.63 | J83: 1745.17 | K83: 1766.43 | L83: 1723.9 | M83: 1668.1 | N83: 4048800 | O83: 6.18%
A84: 80 | B84: Banking | C84: INDUSINDBK | D84: 1341.30 | E84: 1341.15 | F84: 1320.70 | G84: 1300.10 | H84: 1279.65 | I84: 1361.75 | J84: 1382.20 | K84: 1402.80 | L84: 1361.6 | M84: 1320.55 | N84: 13646800 | O84: -0.84%
A85: 81 | B85: Telecom | C85: INFRATEL | D85: 259.65 | E85: 260.50 | F85: 256.35 | G85: 253.05 | H85: 248.90 | I85: 263.80 | J85: 267.95 | K85: 271.25 | L85: 264.65 | M85: 257.2 | N85: 7652000 | O85: 3.52%
A86: 82 | B86: Technology | C86: INFY | D86: 638.05 | E86: 651.70 | F86: 619.40 | G86: 600.75 | H86: 568.45 | I86: 670.35 | J86: 702.65 | K86: 721.30 | L86: 684 | M86: 633.05 | N86: 73422000 | O86: 44.75%
A87: 83 | B87: Oil_Gas | C87: IOC | D87: 147.10 | E87: 147.25 | F87: 145.85 | G87: 144.60 | H87: 143.20 | I87: 148.50 | J87: 149.90 | K87: 151.15 | L87: 148.65 | M87: 146 | N87: 46931500 | O87: 2.05%
A88: 84 | B88: FMCG | C88: ITC | D88: 249.75 | E88: 249.15 | F88: 246.40 | G88: 243.05 | H88: 240.30 | I88: 252.50 | J88: 255.25 | K88: 258.60 | L88: 251.9 | M88: 245.8 | N88: 112780800 | O88: 0.84%
A89: 85 | B89: Metals | C89: JINDALSTEL | D89: 103.85 | E89: 105.22 | F89: 101.98 | G89: 100.12 | H89: 96.88 | I89: 107.08 | J89: 110.32 | K89: 112.18 | L89: 108.45 | M89: 103.35 | N89: 33811200 | O89: 7.13%
A90: 86 | B90: Metals | C90: JSWSTEEL | D90: 220.15 | E90: 221.97 | F90: 217.53 | G90: 214.92 | H90: 210.48 | I90: 224.58 | J90: 229.02 | K90: 231.63 | L90: 226.4 | M90: 219.35 | N90: 51646000 | O90: 2.66%
A91: 87 | B91: Others | C91: JUBLFOOD | D91: 1429.20 | E91: 1403.10 | F91: 1361.20 | G91: 1293.20 | H91: 1251.30 | I91: 1471.10 | J91: 1513.00 | K91: 1581.00 | L91: 1445 | M91: 1335.1 | N91: 3080000 | O91: 29.36%
A92: 88 | B92: Others | C92: JUSTDIAL | D92: 627.55 | E92: 630.70 | F92: 619.60 | G92: 611.65 | H92: 600.55 | I92: 638.65 | J92: 649.75 | K92: 657.70 | L92: 641.8 | M92: 622.75 | N92: 2472400 | O92: -6.56%
A93: 90 | B93: Banking | C93: KOTAKBANK | D93: 1634.70 | E93: 1623.18 | F93: 1603.77 | G93: 1572.83 | H93: 1553.42 | I93: 1654.12 | J93: 1673.53 | K93: 1704.47 | L93: 1642.6 | M93: 1592.25 | N93: 8723600 | O93: 1.87%
A94: 91 | B94: Finance | C94: L&TFH | D94: 86.80 | E94: 87.30 | F94: 83.50 | G94: 80.20 | H94: 76.40 | I94: 90.60 | J94: 94.40 | K94: 97.70 | L94: 91.1 | M94: 84 | N94: 43996500 | O94: -3.06%
A95: 92 | B95: Finance | C95: LICHSGFIN | D95: 374.50 | E95: 379.73 | F95: 367.27 | G95: 360.03 | H95: 347.57 | I95: 386.97 | J95: 399.43 | K95: 406.67 | L95: 392.2 | M95: 372.5 | N95: 10716200 | O95: 2.05%
A96: 93 | B96: Capital_Goods | C96: LT | D96: 1448.60 | E96: 1455.25 | F96: 1438.50 | G96: 1428.40 | H96: 1411.65 | I96: 1465.35 | J96: 1482.10 | K96: 1492.20 | L96: 1472 | M96: 1445.15 | N96: 12948375 | O96: 3.27%
A97: 94 | B97: Pharma | C97: LUPIN | D97: 746.25 | E97: 743.15 | F97: 736.90 | G97: 727.55 | H97: 721.30 | I97: 752.50 | J97: 758.75 | K97: 768.10 | L97: 749.4 | M97: 733.8 | N97: 7167300 | O97: -1.46%
A98: 95 | B98: Automobile | C98: M&M | D98: 597.75 | E98: 596.65 | F98: 590.50 | G98: 583.25 | H98: 577.10 | I98: 603.90 | J98: 610.05 | K98: 617.30 | L98: 602.8 | M98: 589.4 | N98: 21960000 | O98: 0.93%
A99: 96 | B99: Finance | C99: M&MFIN | D99: 342.45 | E99: 334.58 | F99: 320.22 | G99: 297.98 | H99: 283.62 | I99: 356.82 | J99: 371.18 | K99: 393.42 | L99: 348.95 | M99: 312.35 | N99: 13075000 | O99: -2.79%
A100: 97 | B100: Finance | C100: MANAPPURAM | D100: 157.90 | E100: 157.10 | F100: 154.50 | G100: 151.10 | H100: 148.50 | I100: 160.50 | J100: 163.10 | K100: 166.50 | L100: 159.7 | M100: 153.7 | N100: 11892000 | O100: -9.79%
A101: 98 | B101: FMCG | C101: MARICO | D101: 395.85 | E101: 396.75 | F101: 392.20 | G101: 388.55 | H101: 384.00 | I101: 400.40 | J101: 404.95 | K101: 408.60 | L101: 401.3 | M101: 393.1 | N101: 11627200 | O101: -3.43%
A102: 99 | B102: Automobile | C102: MARUTI | D102: 7282.75 | E102: 7308.85 | F102: 7225.40 | G102: 7168.05 | H102: 7084.60 | I102: 7366.20 | J102: 7449.65 | K102: 7507.00 | L102: 7392.3 | M102: 7251.5 | N102: 2667225 | O102: 0.02%
A103: 100 | B103: FMCG | C103: MCDOWELL-N | D103: 614.70 | E103: 623.12 | F103: 600.88 | G103: 587.07 | H103: 564.83 | I103: 636.93 | J103: 659.17 | K103: 672.98 | L103: 645.35 | M103: 609.3 | N103: 11075000 | O103: 3.37%
A104: 102 | B104: Finance | C104: MFSL | D104: 435.50 | E104: 430.53 | F104: 414.42 | G104: 393.33 | H104: 377.22 | I104: 451.62 | J104: 467.73 | K104: 488.82 | L104: 446.65 | M104: 409.45 | N104: 2551200 | O104: 0.09%
A105: 103 | B105: Oil_Gas | C105: MGL | D105: 958.65 | E105: 960.35 | F105: 950.30 | G105: 941.95 | H105: 931.90 | I105: 968.70 | J105: 978.75 | K105: 987.10 | L105: 970.4 | M105: 952 | N105: 1473600 | O105: 3.41%
A106: 104 | B106: Technology | C106: MINDTREE | D106: 729.35 | E106: 730.62 | F106: 723.28 | G106: 717.22 | H106: 709.88 | I106: 736.68 | J106: 744.02 | K106: 750.08 | L106: 737.95 | M106: 724.55 | N106: 1478400 | O106: -1.08%
A107: 105 | B107: Automobile | C107: MOTHERSUMI | D107: 104.10 | E107: 104.45 | F107: 102.85 | G107: 101.60 | H107: 100.00 | I107: 105.70 | J107: 107.30 | K107: 108.55 | L107: 106.05 | M107: 103.2 | N107: 32660100 | O107: -0.69%
A108: 106 | B108: Automobile | C108: MRF | D108: 64402.30 | E108: 64417.83 | F108: 64068.82 | G108: 63735.33 | H108: 63386.32 | I108: 64751.32 | J108: 65100.33 | K108: 65433.82 | L108: 64766.85 | M108: 64084.35 | N108: 18390 | O108: 0.27%
A109: 107 | B109: Finance | C109: MUTHOOTFIN | D109: 688.10 | E109: 686.62 | F109: 679.13 | G109: 670.17 | H109: 662.68 | I109: 695.58 | J109: 703.07 | K109: 712.03 | L109: 694.1 | M109: 677.65 | N109: 2334000 | O109: -5.12%
A110: 108 | B110: Metals | C110: NATIONALUM | D110: 43.90 | E110: 44.18 | F110: 42.82 | G110: 41.73 | H110: 40.37 | I110: 45.27 | J110: 46.63 | K110: 47.72 | L110: 45.55 | M110: 43.1 | N110: 59510000 | O110: -6.25%
A111: 109 | B111: Infrastructure | C111: NBCC | D111: 35.90 | E111: 36.35 | F111: 35.20 | G111: 34.50 | H111: 33.35 | I111: 37.05 | J111: 38.20 | K111: 38.90 | L111: 37.5 | M111: 35.65 | N111: 33855500 | O111: 3.16%
A112: 110 | B112: Infrastructure | C112: NCC | D112: 53.95 | E112: 54.22 | F112: 52.73 | G112: 51.52 | H112: 50.03 | I112: 55.43 | J112: 56.92 | K112: 58.13 | L112: 55.7 | M112: 53 | N112: 41328000 | O112: -3.15%
A113: 111 | B113: FMCG | C113: NESTLEIND | D113: 15058.05 | E113: 15014.45 | F113: 14894.90 | G113: 14731.75 | H113: 14612.20 | I113: 15177.60 | J113: 15297.15 | K113: 15460.30 | L113: 15134 | M113: 14851.3 | N113: 581650 | O113: 2.56%
A114: 112 | B114: Technology | C114: NIITTECH | D114: 1448.15 | E114: 1437.20 | F114: 1414.45 | G114: 1380.75 | H114: 1358.00 | I114: 1470.90 | J114: 1493.65 | K114: 1527.35 | L114: 1459.95 | M114: 1403.5 | N114: 720750 | O114: 15.50%
A115: 113 | B115: Metals | C115: NMDC | D115: 109.95 | E115: 109.58 | F115: 108.22 | G115: 106.48 | H115: 105.12 | I115: 111.32 | J115: 112.68 | K115: 114.42 | L115: 110.95 | M115: 107.85 | N115: 24276000 | O115: -2.81%
A116: 114 | B116: Power | C116: NTPC | D116: 121.35 | E116: 121.12 | F116: 120.33 | G116: 119.32 | H116: 118.53 | I116: 122.13 | J116: 122.92 | K116: 123.93 | L116: 121.9 | M116: 120.1 | N116: 58099200 | O116: 1.69%
A117: 116 | B117: Oil_Gas | C117: OIL | D117: 165.50 | E117: 167.78 | F117: 162.77 | G117: 160.03 | H117: 155.02 | I117: 170.52 | J117: 175.53 | K117: 178.27 | L117: 172.8 | M117: 165.05 | N117: 9908085 | O117: -1.09%
A118: 117 | B118: Oil_Gas | C118: ONGC | D118: 144.80 | E118: 144.57 | F118: 142.68 | G118: 140.57 | H118: 138.68 | I118: 146.68 | J118: 148.57 | K118: 150.68 | L118: 146.45 | M118: 142.45 | N118: 65321250 | O118: 5.03%
A119: 118 | B119: Textile | C119: PAGEIND | D119: 22473.35 | E119: 22251.53 | F119: 21851.87 | G119: 21230.38 | H119: 20830.72 | I119: 22873.02 | J119: 23272.68 | K119: 23894.17 | L119: 22651.2 | M119: 21630.05 | N119: 183675 | O119: -1.99%
A120: 119 | B120: Pharma | C120: PEL | D120: 1657.75 | E120: 1642.92 | F120: 1575.83 | G120: 1493.92 | H120: 1426.83 | I120: 1724.83 | J120: 1791.92 | K120: 1873.83 | L120: 1710 | M120: 1561 | N120: 7822404 | O120: 5.58%
A121: 120 | B121: Oil_Gas | C121: PETRONET | D121: 275.45 | E121: 273.93 | F121: 270.37 | G121: 265.28 | H121: 261.72 | I121: 279.02 | J121: 282.58 | K121: 287.67 | L121: 277.5 | M121: 268.85 | N121: 21909000 | O121: 4.37%
A122: 121 | B122: Finance | C122: PFC | D122: 101.65 | E122: 100.90 | F122: 98.60 | G122: 95.55 | H122: 93.25 | I122: 103.95 | J122: 106.25 | K122: 109.30 | L122: 103.2 | M122: 97.85 | N122: 41695000 | O122: -6.64%
A123: 122 | B123: FMCG | C123: PIDILITIND | D123: 1355.95 | E123: 1363.12 | F123: 1340.23 | G123: 1324.52 | H123: 1301.63 | I123: 1378.83 | J123: 1401.72 | K123: 1417.43 | L123: 1386 | M123: 1347.4 | N123: 3913500 | O123: 3.88%
A124: 123 | B124: Banking | C124: PNB | D124: 60.80 | E124: 61.03 | F124: 59.62 | G124: 58.43 | H124: 57.02 | I124: 62.22 | J124: 63.63 | K124: 64.82 | L124: 62.45 | M124: 59.85 | N124: 98602000 | O124: -1.05%
A125: 124 | B125: Power | C125: POWERGRID | D125: 205.75 | E125: 205.33 | F125: 202.77 | G125: 199.78 | H125: 197.22 | I125: 208.32 | J125: 210.88 | K125: 213.87 | L125: 207.9 | M125: 202.35 | N125: 29768000 | O125: 0.58%
A126: 125 | B126: Media | C126: PVR | D126: 1802.65 | E126: 1817.22 | F126: 1774.53 | G126: 1746.42 | H126: 1703.73 | I126: 1845.33 | J126: 1888.02 | K126: 1916.13 | L126: 1859.9 | M126: 1789.1 | N126: 1272000 | O126: 3.28%
A127: 126 | B127: Cement | C127: RAMCOCEM | D127: 749.40 | E127: 751.82 | F127: 743.83 | G127: 738.27 | H127: 730.28 | I127: 757.38 | J127: 765.37 | K127: 770.93 | L127: 759.8 | M127: 746.25 | N127: 1612800 | O127: -1.27%
A128: 128 | B128: Banking | C128: RBLBANK | D128: 285.80 | E128: 288.43 | F128: 278.97 | G128: 272.13 | H128: 262.67 | I128: 295.27 | J128: 304.73 | K128: 311.57 | L128: 297.9 | M128: 281.6 | N128: 15799200 | O128: 3.56%
A129: 129 | B129: Power | C129: RECLTD | D129: 134.05 | E129: 133.32 | F129: 130.88 | G129: 127.72 | H129: 125.28 | I129: 136.48 | J129: 138.92 | K129: 142.08 | L129: 135.75 | M129: 130.15 | N129: 27756000 | O129: 1.85%
A130: 131 | B130: Oil_Gas | C130: RELIANCE | D130: 1419.45 | E130: 1420.50 | F130: 1405.10 | G130: 1390.75 | H130: 1375.35 | I130: 1434.85 | J130: 1450.25 | K130: 1464.60 | L130: 1435.9 | M130: 1406.15 | N130: 53719500 | O130: 0.41%
A131: 133 | B131: Metals | C131: SAIL | D131: 35.65 | E131: 36.15 | F131: 34.95 | G131: 34.25 | H131: 33.05 | I131: 36.85 | J131: 38.05 | K131: 38.75 | L131: 37.35 | M131: 35.45 | N131: 81456000 | O131: 0.88%
A132: 134 | B132: Banking | C132: SBIN | D132: 271.00 | E132: 271.75 | F132: 267.80 | G132: 264.60 | H132: 260.65 | I132: 274.95 | J132: 278.90 | K132: 282.10 | L132: 275.7 | M132: 268.55 | N132: 108468000 | O132: 0.07%
A133: 135 | B133: Cement | C133: SHREECEM | D133: 19604.25 | E133: 19711.33 | F133: 19143.92 | G133: 18683.58 | H133: 18116.17 | I133: 20171.67 | J133: 20739.08 | K133: 21199.42 | L133: 20278.75 | M133: 19251 | N133: 180150 | O133: -1.53%
A134: 136 | B134: Capital_Goods | C134: SIEMENS | D134: 1670.35 | E134: 1666.60 | F134: 1644.75 | G134: 1619.15 | H134: 1597.30 | I134: 1692.20 | J134: 1714.05 | K134: 1739.65 | L134: 1688.45 | M134: 1641 | N134: 1823250 | O134: 7.21%
A135: 137 | B135: Textile | C135: SRF | D135: 2722.85 | E135: 2728.40 | F135: 2701.30 | G135: 2679.75 | H135: 2652.65 | I135: 2749.95 | J135: 2777.05 | K135: 2798.60 | L135: 2755.5 | M135: 2706.85 | N135: 1000250 | O135: 0.00%
A136: 138 | B136: Finance | C136: SRTRANSFIN | D136: 1119.05 | E136: 1111.67 | F136: 1092.23 | G136: 1065.42 | H136: 1045.98 | I136: 1138.48 | J136: 1157.92 | K136: 1184.73 | L136: 1131.1 | M136: 1084.85 | N136: 4096200 | O136: -1.74%
A137: 139 | B137: Pharma | C137: STAR | D137: 351.15 | E137: 352.07 | F137: 346.98 | G137: 342.82 | H137: 337.73 | I137: 356.23 | J137: 361.32 | K137: 365.48 | L137: 357.15 | M137: 347.9 | N137: 1851600 | O137: 0.46%
A138: 140 | B138: Pharma | C138: SUNPHARMA | D138: 406.75 | E138: 405.75 | F138: 402.05 | G138: 397.35 | H138: 393.65 | I138: 410.45 | J138: 414.15 | K138: 418.85 | L138: 409.45 | M138: 401.05 | N138: 61730900 | O138: -0.51%
A139: 141 | B139: Media | C139: SUNTV | D139: 516.70 | E139: 519.72 | F139: 509.33 | G139: 501.97 | H139: 491.58 | I139: 527.08 | J139: 537.47 | K139: 544.83 | L139: 530.1 | M139: 512.35 | N139: 3103000 | O139: -1.30%
A140: 142 | B140: Fertilisers | C140: TATACHEM | D140: 618.30 | E140: 618.77 | F140: 610.53 | G140: 602.77 | H140: 594.53 | I140: 626.53 | J140: 634.77 | K140: 642.53 | L140: 627 | M140: 611 | N140: 1907100 | O140: 2.12%
A141: 143 | B141: Technology | C141: TATAELXSI | D141: 705.35 | E141: 696.18 | F141: 684.22 | G141: 663.08 | H141: 651.12 | I141: 717.32 | J141: 729.28 | K141: 750.42 | L141: 708.15 | M141: 675.05 | N141: 1846800 | O141: -0.23%
A142: 144 | B142: FMCG | C142: TATAGLOBAL | D142: 282.60 | E142: 284.12 | F142: 279.88 | G142: 277.17 | H142: 272.93 | I142: 286.83 | J142: 291.07 | K142: 293.78 | L142: 288.35 | M142: 281.4 | N142: 9760500 | O142: 0.42%
A143: 145 | B143: Automobile | C143: TATAMOTORS | D143: 132.05 | E143: 132.50 | F143: 129.30 | G143: 126.55 | H143: 123.35 | I143: 135.25 | J143: 138.45 | K143: 141.20 | L143: 135.7 | M143: 129.75 | N143: 64410000 | O143: -4.61%
A144: 146 | B144: Automobile | C144: TATAMTRDVR | D144: 58.90 | E144: 59.42 | F144: 57.98 | G144: 57.07 | H144: 55.63 | I144: 60.33 | J144: 61.77 | K144: 62.68 | L144: 60.85 | M144: 58.5 | N144: 41952000 | O144: 0.39%
A145: 147 | B145: Power | C145: TATAPOWER | D145: 59.45 | E145: 59.80 | F145: 58.75 | G145: 58.05 | H145: 57.00 | I145: 60.50 | J145: 61.55 | K145: 62.25 | L145: 60.85 | M145: 59.1 | N145: 50049000 | O145: 1.92%
A146: 148 | B146: Metals | C146: TATASTEEL | D146: 355.35 | E146: 357.80 | F146: 351.15 | G146: 346.95 | H146: 340.30 | I146: 362.00 | J146: 368.65 | K146: 372.85 | L146: 364.45 | M146: 353.6 | N146: 28023132 | O146: 0.34%
A147: 149 | B147: Technology | C147: TCS | D147: 2056.25 | E147: 2070.55 | F147: 2027.25 | G147: 1998.25 | H147: 1954.95 | I147: 2099.55 | J147: 2142.85 | K147: 2171.85 | L147: 2113.85 | M147: 2041.55 | N147: 18426000 | O147: -1.68%
A148: 150 | B148: Technology | C148: TECHM | D148: 720.50 | E148: 724.10 | F148: 713.70 | G148: 706.90 | H148: 696.50 | I148: 730.90 | J148: 741.30 | K148: 748.10 | L148: 734.5 | M148: 717.3 | N148: 15667200 | O148: 2.31%
A149: 151 | B149: FMCG | C149: TITAN | D149: 1333.60 | E149: 1323.67 | F149: 1308.28 | G149: 1282.97 | H149: 1267.58 | I149: 1348.98 | J149: 1364.37 | K149: 1389.68 | L149: 1339.05 | M149: 1298.35 | N149: 9982500 | O149: 0.60%
A150: 152 | B150: Pharma | C150: TORNTPHARM | D150: 1674.90 | E150: 1669.95 | F150: 1649.95 | G150: 1625.00 | H150: 1605.00 | I150: 1694.90 | J150: 1714.90 | K150: 1739.85 | L150: 1689.95 | M150: 1645 | N150: 420500 | O150: 5.65%
A151: 153 | B151: Power | C151: TORNTPOWER | D151: 280.60 | E151: 281.68 | F151: 276.77 | G151: 272.93 | H151: 268.02 | I151: 285.52 | J151: 290.43 | K151: 294.27 | L151: 286.6 | M151: 277.85 | N151: 3783000 | O151: 3.62%
A152: 154 | B152: Automobile | C152: TVSMOTOR | D152: 446.85 | E152: 446.17 | F152: 439.33 | G152: 431.82 | H152: 424.98 | I152: 453.68 | J152: 460.52 | K152: 468.03 | L152: 453 | M152: 438.65 | N152: 9385200 | O152: 0.71%
A153: 155 | B153: FMCG | C153: UBL | D153: 1324.05 | E153: 1319.68 | F153: 1307.37 | G153: 1290.68 | H153: 1278.37 | I153: 1336.37 | J153: 1348.68 | K153: 1365.37 | L153: 1332 | M153: 1303 | N153: 1566600 | O153: 3.71%
A154: 156 | B154: Finance | C154: UJJIVAN | D154: 312.30 | E154: 312.12 | F154: 305.83 | G154: 299.37 | H154: 293.08 | I154: 318.58 | J154: 324.87 | K154: 331.33 | L154: 318.4 | M154: 305.65 | N154: 9035200 | O154: 6.23%
A155: 157 | B155: Cement | C155: ULTRACEMCO | D155: 4268.20 | E155: 4304.33 | F155: 4198.67 | G155: 4129.13 | H155: 4023.47 | I155: 4373.87 | J155: 4479.53 | K155: 4549.07 | L155: 4410 | M155: 4234.8 | N155: 2569800 | O155: -1.34%
A156: 158 | B156: Banking | C156: UNIONBANK | D156: 52.70 | E156: 53.18 | F156: 51.62 | G156: 50.53 | H156: 48.97 | I156: 54.27 | J156: 55.83 | K156: 56.92 | L156: 54.75 | M156: 52.1 | N156: 37149000 | O156: -1.30%
A157: 159 | B157: Fertilisers | C157: UPL | D157: 598.90 | E157: 599.80 | F157: 594.10 | G157: 589.30 | H157: 583.60 | I157: 604.60 | J157: 610.30 | K157: 615.10 | L157: 605.5 | M157: 595 | N157: 14229000 | O157: 2.22%
A158: 160 | B158: Metals | C158: VEDL | D158: 149.45 | E158: 149.85 | F158: 147.25 | G158: 145.05 | H158: 142.45 | I158: 152.05 | J158: 154.65 | K158: 156.85 | L158: 152.45 | M158: 147.65 | N158: 57078000 | O158: 1.57%
A159: 161 | B159: Capital_Goods | C159: VOLTAS | D159: 696.05 | E159: 701.25 | F159: 688.10 | G159: 680.15 | H159: 667.00 | I159: 709.20 | J159: 722.35 | K159: 730.30 | L159: 714.4 | M159: 693.3 | N159: 2372000 | O159: 10.07%
A160: 162 | B160: Technology | C160: WIPRO | D160: 253.70 | E160: 251.78 | F160: 248.87 | G160: 244.03 | H160: 241.12 | I160: 256.62 | J160: 259.53 | K160: 264.37 | L160: 254.7 | M160: 246.95 | N160: 27100800 | O160: -1.47%
A161: 163 | B161: Banking | C161: YESBANK | D161: 51.85 | E161: 52.93 | F161: 49.12 | G161: 46.38 | H161: 42.57 | I161: 55.67 | J161: 59.48 | K161: 62.22 | L161: 56.75 | M161: 50.2 | N161: 151850600 | O161: -8.81%
A162: 164 | B162: Media | C162: ZEEL | D162: 249.70 | E162: 250.85 | F162: 246.30 | G162: 242.90 | H162: 238.35 | I162: 254.25 | J162: 258.80 | K162: 262.20 | L162: 255.4 | M162: 247.45 | N162: 29253900 | O162: 5.22%
A178: Pivot Point: This is trigger point for intra day buy/sell based on the price range of the previous day
A179: As per the tool,the trader should take BUY position just above Pivot and keep the stop loss of pivot point and the first target would be Resistance 1(R1)
A180: If R1 is crossed then R2 becomes the next target with stop loss of at R1
A181: Similarly if price goes below pivot point then the trader should sell and keep a stop loss of pivot point and the first target would be S1
A182: If S1 is crossed then S2 becomes the next target with stop loss of at S1
A184: Disclaimer:
A185: This document has been prepared by the Retail Research Desk of Asit C Mehta
A186: Investment Intermediates Ltd. and is meant for use of the recipient only
A187: and is not for circulation. This document is not to be reported or
A188: copied or made available to others. It should not be considered to be
A189: taken as an offer to sell or a solicitation to buy any security. The
A190: information contained herein is from sources believed reliable. We do
A191: not represent that it is accurate or complete and it should not be
A192: relied upon as such. We may from time to time have positions in and buy
A193: and sell securities referred to herein

Sheet Cash Intra
M5: Back to Main Page
A6: FOR INTRA DAY TRADING | K6: =Main!B10 -> 2019-10-23
A8: Sr.no | B8: Scrip | C8: CLOSE RATE | D8: Pivot Point | E8: Supports | H8: Resistances
C9: Point | E9: S1 | F9: S2 | G9: S3 | H9: R1 | I9: R2 | J9: R3 | K9: HIGH | L9: LOW | M9: Total Trade Quanity in Lakhs
A10: 1 | B10: Nifty 50 | C10: 11588.35 | D10: 11625.45 | E10: 11536.55 | F10: 11484.75 | G10: 11395.85 | H10: 11677.25 | I10: 11766.15 | J10: 11817.95 | K10: 11714.35 | L10: 11573.65
A11: 2 | B11: Nifty Bank | C11: 29411.15 | D11: 29444.12 | E11: 29198.23 | F11: 28985.32 | G11: 28739.43 | H11: 29657.03 | I11: 29902.92 | J11: 30115.83 | K11: 29690 | L11: 29231.2
A12: 3 | B12: Nifty CPSE | C12: 2045.45 | D12: 2044.82 | E12: 2034.98 | F12: 2024.52 | G12: 2014.68 | H12: 2055.28 | I12: 2065.12 | J12: 2075.58 | K12: 2054.65 | L12: 2034.35
A13: 4 | B13: Nifty Infra | C13: 3297.3 | D13: 3308.60 | E13: 3279.40 | F13: 3261.50 | G13: 3232.30 | H13: 3326.50 | I13: 3355.70 | J13: 3373.60 | K13: 3337.8 | L13: 3290.7
A14: 5 | B14: Nifty IT | C14: 14688.65 | D14: 14811.18 | E14: 14536.92 | F14: 14385.18 | G14: 14110.92 | H14: 14962.92 | I14: 15237.18 | J14: 15388.92 | K14: 15085.45 | L14: 14659.45
A15: 6 | B15: Nifty PSE | C15: 3413.8 | D15: 3416.23 | E15: 3396.07 | F15: 3378.33 | G15: 3358.17 | H15: 3433.97 | I15: 3454.13 | J15: 3471.87 | K15: 3436.4 | L15: 3398.5
A16: 7 | B16: Nifty Midcap 50 | C16: 4457.55 | D16: 4470.28 | E16: 4437.82 | F16: 4418.08 | G16: 4385.62 | H16: 4490.02 | I16: 4522.48 | J16: 4542.22 | K16: 4502.75 | L16: 4450.55
A17: 8 | B17: ACC | C17: 1535.25 | D17: 1538.67 | E17: 1520.38 | F17: 1505.52 | G17: 1487.23 | H17: 1553.53 | I17: 1571.82 | J17: 1586.68 | K17: 1556.95 | L17: 1523.8 | M17: 9.34518
A18: 9 | B18: AUBANK | C18: 689.25 | D18: 684.25 | E18: 672.00 | F18: 654.75 | G18: 642.50 | H18: 701.50 | I18: 713.75 | J18: 731.00 | K18: 696.5 | L18: 667 | M18: 14.73667
A19: 10 | B19: ADANIPORTS | C19: 420.75 | D19: 422.23 | E19: 415.62 | F19: 410.48 | G19: 403.87 | H19: 427.37 | I19: 433.98 | J19: 439.12 | K19: 428.85 | L19: 417.1 | M19: 23.80735
A20: 11 | B20: ADANIPOWER | C20: 63.25 | D20: 63.75 | E20: 62.45 | F20: 61.65 | G20: 60.35 | H20: 64.55 | I20: 65.85 | J20: 66.65 | K20: 65.05 | L20: 62.95 | M20: 68.83425
A21: 12 | B21: ABCAPITAL | C21: 82.95 | D21: 81.90 | E21: 80.10 | F21: 77.25 | G21: 75.45 | H21: 84.75 | I21: 86.55 | J21: 89.40 | K21: 83.7 | L21: 79.05 | M21: 34.62436
A22: 13 | B22: ABFRL | C22: 205.75 | D22: 207.23 | E22: 202.57 | F22: 199.38 | G22: 194.72 | H22: 210.42 | I22: 215.08 | J22: 218.27 | K22: 211.9 | L22: 204.05 | M22: 6.84987
A23: 14 | B23: AJANTPHARM | C23: 1004.45 | D23: 1013.33 | E23: 976.67 | F23: 948.88 | G23: 912.22 | H23: 1041.12 | I23: 1077.78 | J23: 1105.57 | K23: 1050 | L23: 985.55 | M23: 1.27565
A24: 15 | B24: ALKEM | C24: 1974.75 | D24: 1969.93 | E24: 1954.87 | F24: 1934.98 | G24: 1919.92 | H24: 1989.82 | I24: 2004.88 | J24: 2024.77 | K24: 1985 | L24: 1950.05 | M24: 0.83148
A25: 16 | B25: ALBK | C25: 26.05 | D25: 26.07 | E25: 25.68 | F25: 25.32 | G25: 24.93 | H25: 26.43 | I25: 26.82 | J25: 27.18 | K25: 26.45 | L25: 25.7 | M25: 7.43078
A26: 17 | B26: AMARAJABAT | C26: 675.9 | D26: 673.03 | E26: 665.07 | F26: 654.23 | G26: 646.27 | H26: 683.87 | I26: 691.83 | J26: 702.67 | K26: 681 | L26: 662.2 | M26: 5.399
A27: 18 | B27: AMBUJACEM | C27: 195.9 | D27: 197.93 | E27: 190.47 | F27: 185.03 | G27: 177.57 | H27: 203.37 | I27: 210.83 | J27: 216.27 | K27: 205.4 | L27: 192.5 | M27: 93.55044
A28: 19 | B28: APOLLOHOSP | C28: 1519.4 | D28: 1520.47 | E28: 1500.93 | F28: 1482.47 | G28: 1462.93 | H28: 1538.93 | I28: 1558.47 | J28: 1576.93 | K28: 1540 | L28: 1502 | M28: 6.21477
A29: 20 | B29: APOLLOTYRE | C29: 185.05 | D29: 185.60 | E29: 182.85 | F29: 180.65 | G29: 177.90 | H29: 187.80 | I29: 190.55 | J29: 192.75 | K29: 188.35 | L29: 183.4 | M29: 36.8004
A30: 21 | B30: ASHOKLEY | C30: 76.05 | D30: 76.12 | E30: 75.08 | F30: 74.12 | G30: 73.08 | H30: 77.08 | I30: 78.12 | J30: 79.08 | K30: 77.15 | L30: 75.15 | M30: 257.29454
A31: 22 | B31: ASIANPAINT | C31: 1780.2 | D31: 1793.40 | E31: 1761.80 | F31: 1743.40 | G31: 1711.80 | H31: 1811.80 | I31: 1843.40 | J31: 1861.80 | K31: 1825 | L31: 1775 | M31: 21.35313
A32: 23 | B32: AUROPHARMA | C32: 477.25 | D32: 477.95 | E32: 470.50 | F32: 463.75 | G32: 456.30 | H32: 484.70 | I32: 492.15 | J32: 498.90 | K32: 485.4 | L32: 471.2 | M32: 25.51851
A33: 24 | B33: DMART | C33: 1913.95 | D33: 1919.40 | E33: 1895.55 | F33: 1877.15 | G33: 1853.30 | H33: 1937.80 | I33: 1961.65 | J33: 1980.05 | K33: 1943.25 | L33: 1901 | M33: 2.73765
A34: 25 | B34: AXISBANK | C34: 712.75 | D34: 713.02 | E34: 703.03 | F34: 693.32 | G34: 683.33 | H34: 722.73 | I34: 732.72 | J34: 742.43 | K34: 723 | L34: 703.3 | M34: 97.04016
A35: 26 | B35: BAJAJ-AUTO | C35: 3122.3 | D35: 3122.12 | E35: 3089.83 | F35: 3057.37 | G35: 3025.08 | H35: 3154.58 | I35: 3186.87 | J35: 3219.33 | K35: 3154.4 | L35: 3089.65 | M35: 3.79635
A36: 27 | B36: BAJFINANCE | C36: 4034.15 | D36: 4084.70 | E36: 3949.55 | F36: 3864.95 | G36: 3729.80 | H36: 4169.30 | I36: 4304.45 | J36: 4389.05 | K36: 4219.85 | L36: 4000.1 | M36: 50.34755
A37: 28 | B37: BAJAJFINSV | C37: 8008.85 | D37: 8125.70 | E37: 7858.40 | F37: 7707.95 | G37: 7440.65 | H37: 8276.15 | I37: 8543.45 | J37: 8693.90 | K37: 8393 | L37: 7975.25 | M37: 5.03368
A38: 29 | B38: BAJAJHLDNG | C38: 3673.1 | D38: 3709.70 | E38: 3619.40 | F38: 3565.70 | G38: 3475.40 | H38: 3763.40 | I38: 3853.70 | J38: 3907.40 | K38: 3800 | L38: 3656 | M38: 0.23709
A39: 30 | B39: BALKRISIND | C39: 830.65 | D39: 833.97 | E39: 821.68 | F39: 812.72 | G39: 800.43 | H39: 842.93 | I39: 855.22 | J39: 864.18 | K39: 846.25 | L39: 825 | M39: 4.69555
A40: 31 | B40: BANDHANBNK | C40: 559.35 | D40: 564.53 | E40: 548.62 | F40: 537.88 | G40: 521.97 | H40: 575.27 | I40: 591.18 | J40: 601.92 | K40: 580.45 | L40: 553.8 | M40: 28.6012
A41: 32 | B41: BANKBARODA | C41: 90.15 | D41: 90.60 | E41: 88.60 | F41: 87.05 | G41: 85.05 | H41: 92.15 | I41: 94.15 | J41: 95.70 | K41: 92.6 | L41: 89.05 | M41: 243.88459
A42: 33 | B42: BANKINDIA | C42: 64.3 | D42: 64.95 | E42: 63.05 | F42: 61.80 | G42: 59.90 | H42: 66.20 | I42: 68.10 | J42: 69.35 | K42: 66.85 | L42: 63.7 | M42: 87.59605
A43: 34 | B43: BATAINDIA | C43: 1767.85 | D43: 1771.65 | E43: 1738.35 | F43: 1708.85 | G43: 1675.55 | H43: 1801.15 | I43: 1834.45 | J43: 1863.95 | K43: 1804.95 | L43: 1742.15 | M43: 7.67897
A44: 35 | B44: BERGEPAINT | C44: 479.1 | D44: 486.97 | E44: 469.13 | F44: 459.17 | G44: 441.33 | H44: 496.93 | I44: 514.77 | J44: 524.73 | K44: 504.8 | L44: 477 | M44: 27.92726
A45: 36 | B45: BEL | C45: 115.35 | D45: 116.02 | E45: 113.98 | F45: 112.62 | G45: 110.58 | H45: 117.38 | I45: 119.42 | J45: 120.78 | K45: 118.05 | L45: 114.65 | M45: 95.20425
A46: 37 | B46: BHARATFORG | C46: 446.8 | D46: 448.67 | E46: 442.33 | F46: 437.87 | G46: 431.53 | H46: 453.13 | I46: 459.47 | J46: 463.93 | K46: 455 | L46: 444.2 | M46: 19.46588
A47: 38 | B47: BHEL | C47: 51.8 | D47: 52.88 | E47: 50.27 | F47: 48.73 | G47: 46.12 | H47: 54.42 | I47: 57.03 | J47: 58.57 | K47: 55.5 | L47: 51.35 | M47: 573.24642
A48: 39 | B48: BPCL | C48: 534.1 | D48: 531.68 | E48: 524.77 | F48: 515.43 | G48: 508.52 | H48: 541.02 | I48: 547.93 | J48: 557.27 | K48: 538.6 | L48: 522.35 | M48: 135.74072
A49: 40 | B49: BHARTIARTL | C49: 374.1 | D49: 379.27 | E49: 362.03 | F49: 349.97 | G49: 332.73 | H49: 391.33 | I49: 408.57 | J49: 420.63 | K49: 396.5 | L49: 367.2 | M49: 113.57444
A50: 41 | B50: INFRATEL | C50: 258.8 | D50: 260.35 | E50: 254.70 | F50: 250.60 | G50: 244.95 | H50: 264.45 | I50: 270.10 | J50: 274.20 | K50: 266 | L50: 256.25 | M50: 33.66265
A51: 42 | B51: BIOCON | C51: 256.95 | D51: 258.12 | E51: 254.88 | F51: 252.82 | G51: 249.58 | H51: 260.18 | I51: 263.42 | J51: 265.48 | K51: 261.35 | L51: 256.05 | M51: 24.1644
A52: 43 | B52: BBTC | C52: 1170.1 | D52: 1178.00 | E52: 1152.15 | F52: 1134.20 | G52: 1108.35 | H52: 1195.95 | I52: 1221.80 | J52: 1239.75 | K52: 1203.85 | L52: 1160.05 | M52: 1.37926
A53: 44 | B53: BOSCHLTD | C53: 14568.85 | D53: 14476.95 | E53: 14253.90 | F53: 13938.95 | G53: 13715.90 | H53: 14791.90 | I53: 15014.95 | J53: 15329.90 | K53: 14700 | L53: 14162 | M53: 0.21606
A54: 45 | B54: BRITANNIA | C54: 3248.05 | D54: 3253.35 | E54: 3214.80 | F54: 3181.55 | G54: 3143.00 | H54: 3286.60 | I54: 3325.15 | J54: 3358.40 | K54: 3291.9 | L54: 3220.1 | M54: 4.35837
A55: 46 | B55: CESC | C55: 804.6 | D55: 807.77 | E55: 795.53 | F55: 786.47 | G55: 774.23 | H55: 816.83 | I55: 829.07 | J55: 838.13 | K55: 820 | L55: 798.7 | M55: 5.4098
A56: 47 | B56: CADILAHC | C56: 245.25 | D56: 244.18 | E56: 239.87 | F56: 234.48 | G56: 230.17 | H56: 249.57 | I56: 253.88 | J56: 259.27 | K56: 248.5 | L56: 238.8 | M56: 10.79784
A57: 48 | B57: CANBK | C57: 189.7 | D57: 190.87 | E57: 186.53 | F57: 183.37 | G57: 179.03 | H57: 194.03 | I57: 198.37 | J57: 201.53 | K57: 195.2 | L57: 187.7 | M57: 63.62785
A58: 49 | B58: CASTROLIND | C58: 134.5 | D58: 134.03 | E58: 133.07 | F58: 131.63 | G58: 130.67 | H58: 135.47 | I58: 136.43 | J58: 137.87 | K58: 135 | L58: 132.6 | M58: 16.05263
A59: 50 | B59: CHOLAFIN | C59: 294.55 | D59: 298.68 | E59: 287.37 | F59: 280.18 | G59: 268.87 | H59: 305.87 | I59: 317.18 | J59: 324.37 | K59: 310 | L59: 291.5 | M59: 13.22935
A60: 51 | B60: CIPLA | C60: 453.9 | D60: 450.62 | E60: 443.48 | F60: 433.07 | G60: 425.93 | H60: 461.03 | I60: 468.17 | J60: 478.58 | K60: 457.75 | L60: 440.2 | M60: 23.3381
A61: 52 | B61: CUB | C61: 210.15 | D61: 211.35 | E61: 206.30 | F61: 202.45 | G61: 197.40 | H61: 215.20 | I61: 220.25 | J61: 224.10 | K61: 216.4 | L61: 207.5 | M61: 16.70781
A62: 53 | B62: COALINDIA | C62: 208.8 | D62: 207.35 | E62: 204.75 | F62: 200.70 | G62: 198.10 | H62: 211.40 | I62: 214.00 | J62: 218.05 | K62: 209.95 | L62: 203.3 | M62: 97.95154
A63: 54 | B63: COLPAL | C63: 1533.2 | D63: 1537.37 | E63: 1519.83 | F63: 1506.47 | G63: 1488.93 | H63: 1550.73 | I63: 1568.27 | J63: 1581.63 | K63: 1554.9 | L63: 1524 | M63: 4.37466
A64: 55 | B64: CONCOR | C64: 607.95 | D64: 614.82 | E64: 596.88 | F64: 585.82 | G64: 567.88 | H64: 625.88 | I64: 643.82 | J64: 654.88 | K64: 632.75 | L64: 603.75 | M64: 28.47565
A65: 56 | B65: COROMANDEL | C65: 418.3 | D65: 418.13 | E65: 414.27 | F65: 410.23 | G65: 406.37 | H65: 422.17 | I65: 426.03 | J65: 430.07 | K65: 422 | L65: 414.1 | M65: 3.4744
A66: 57 | B66: CROMPTON | C66: 265.5 | D66: 265.88 | E66: 262.77 | F66: 260.03 | G66: 256.92 | H66: 268.62 | I66: 271.73 | J66: 274.47 | K66: 269 | L66: 263.15 | M66: 7.65312
A67: 58 | B67: CUMMINSIND | C67: 578.7 | D67: 581.23 | E67: 572.47 | F67: 566.23 | G67: 557.47 | H67: 587.47 | I67: 596.23 | J67: 602.47 | K67: 590 | L67: 575 | M67: 4.59932
A68: 59 | B68: DLF | C68: 178.2 | D68: 176.85 | E68: 170.70 | F68: 163.20 | G68: 157.05 | H68: 184.35 | I68: 190.50 | J68: 198.00 | K68: 183 | L68: 169.35 | M68: 212.73741
A69: 60 | B69: DABUR | C69: 472.6 | D69: 472.77 | E69: 465.53 | F69: 458.47 | G69: 451.23 | H69: 479.83 | I69: 487.07 | J69: 494.13 | K69: 480 | L69: 465.7 | M69: 19.81127
A70: 61 | B70: DALBHARAT | C70: 804.5 | D70: 813.12 | E70: 788.18 | F70: 771.87 | G70: 746.93 | H70: 829.43 | I70: 854.37 | J70: 870.68 | K70: 838.05 | L70: 796.8 | M70: 1.41546
A71: 62 | B71: DIVISLAB | C71: 1741.15 | D71: 1746.98 | E71: 1720.42 | F71: 1699.68 | G71: 1673.12 | H71: 1767.72 | I71: 1794.28 | J71: 1815.02 | K71: 1773.55 | L71: 1726.25 | M71: 8.14403
A72: 63 | B72: DRREDDY | C72: 2810.75 | D72: 2780.77 | E72: 2740.83 | F72: 2670.92 | G72: 2630.98 | H72: 2850.68 | I72: 2890.62 | J72: 2960.53 | K72: 2820.7 | L72: 2710.85 | M72: 6.99344
A73: 64 | B73: EDELWEISS | C73: 96.35 | D73: 94.17 | E73: 91.43 | F73: 86.52 | G73: 83.78 | H73: 99.08 | I73: 101.82 | J73: 106.73 | K73: 96.9 | L73: 89.25 | M73: 69.63769
A74: 65 | B74: EICHERMOT | C74: 19978.85 | D74: 20115.70 | E74: 19718.15 | F74: 19457.45 | G74: 19059.90 | H74: 20376.40 | I74: 20773.95 | J74: 21034.65 | K74: 20513.25 | L74: 19855 | M74: 1.61392
A75: 66 | B75: EMAMILTD | C75: 338.75 | D75: 337.33 | E75: 327.67 | F75: 316.58 | G75: 306.92 | H75: 348.42 | I75: 358.08 | J75: 369.17 | K75: 347 | L75: 326.25 | M75: 2.8837
A76: 67 | B76: ENDURANCE | C76: 1043.65 | D76: 1037.55 | E76: 1021.10 | F76: 998.55 | G76: 982.10 | H76: 1060.10 | I76: 1076.55 | J76: 1099.10 | K76: 1054 | L76: 1015 | M76: 0.08405
A77: 68 | B77: ENGINERSIN | C77: 107.1 | D77: 107.70 | E77: 105.55 | F77: 104.00 | G77: 101.85 | H77: 109.25 | I77: 111.40 | J77: 112.95 | K77: 109.85 | L77: 106.15 | M77: 11.01637
A78: 69 | B78: ESCORTS | C78: 645.15 | D78: 649.53 | E78: 638.67 | F78: 632.18 | G78: 621.32 | H78: 656.02 | I78: 666.88 | J78: 673.37 | K78: 660.4 | L78: 643.05 | M78: 18.74086
A79: 70 | B79: EXIDEIND | C79: 180.2 | D79: 181.57 | E79: 178.63 | F79: 177.07 | G79: 174.13 | H79: 183.13 | I79: 186.07 | J79: 187.63 | K79: 184.5 | L79: 180 | M79: 26.6987
A80: 71 | B80: FEDERALBNK | C80: 83.55 | D80: 83.88 | E80: 82.82 | F80: 82.08 | G80: 81.02 | H80: 84.62 | I80: 85.68 | J80: 86.42 | K80: 84.95 | L80: 83.15 | M80: 120.37083
A81: 72 | B81: FCONSUMER | C81: 24.2 | D81: 24.30 | E81: 23.90 | F81: 23.60 | G81: 23.20 | H81: 24.60 | I81: 25.00 | J81: 25.30 | K81: 24.7 | L81: 24 | M81: 7.27485
A82: 73 | B82: FRETAIL | C82: 380.55 | D82: 385.18 | E82: 373.37 | F82: 366.18 | G82: 354.37 | H82: 392.37 | I82: 404.18 | J82: 411.37 | K82: 397 | L82: 378 | M82: 2.55508
A83: 74 | B83: GAIL | C83: 129.5 | D83: 129.75 | E83: 128.55 | F83: 127.60 | G83: 126.40 | H83: 130.70 | I83: 131.90 | J83: 132.85 | K83: 130.95 | L83: 128.8 | M83: 76.44747
A84: 75 | B84: GMRINFRA | C84: 19.1 | D84: 19.17 | E84: 18.68 | F84: 18.27 | G84: 17.78 | H84: 19.58 | I84: 20.07 | J84: 20.48 | K84: 19.65 | L84: 18.75 | M84: 149.65673
A85: 76 | B85: GICRE | C85: 260.1 | D85: 269.70 | E85: 248.40 | F85: 236.70 | G85: 215.40 | H85: 281.40 | I85: 302.70 | J85: 314.40 | K85: 291 | L85: 258 | M85: 7.80941
A86: 77 | B86: GLENMARK | C86: 299.1 | D86: 299.15 | E86: 292.90 | F86: 286.70 | G86: 280.45 | H86: 305.35 | I86: 311.60 | J86: 317.80 | K86: 305.4 | L86: 292.95 | M86: 16.23701
A87: 78 | B87: GODREJAGRO | C87: 518 | D87: 519.62 | E87: 510.38 | F87: 502.77 | G87: 493.53 | H87: 527.23 | I87: 536.47 | J87: 544.08 | K87: 528.85 | L87: 512 | M87: 0.9732
A88: 79 | B88: GODREJCP | C88: 699.9 | D88: 703.13 | E88: 691.77 | F88: 683.63 | G88: 672.27 | H88: 711.27 | I88: 722.63 | J88: 730.77 | K88: 714.5 | L88: 695 | M88: 10.74009
A89: 80 | B89: GODREJIND | C89: 393.25 | D89: 393.50 | E89: 382.50 | F89: 371.75 | G89: 360.75 | H89: 404.25 | I89: 415.25 | J89: 426.00 | K89: 404.5 | L89: 382.75 | M89: 1.40771
A90: 81 | B90: GODREJPROP | C90: 966.95 | D90: 971.32 | E90: 955.63 | F90: 944.32 | G90: 928.63 | H90: 982.63 | I90: 998.32 | J90: 1009.63 | K90: 987 | L90: 960 | M90: 1.97339
A91: 82 | B91: GRAPHITE | C91: 311.35 | D91: 311.25 | E91: 295.10 | F91: 278.85 | G91: 262.70 | H91: 327.50 | I91: 343.65 | J91: 359.90 | K91: 327.4 | L91: 295 | M91: 46.1779
A92: 83 | B92: GRASIM | C92: 756.05 | D92: 756.83 | E92: 741.67 | F92: 727.28 | G92: 712.12 | H92: 771.22 | I92: 786.38 | J92: 800.77 | K92: 772 | L92: 742.45 | M92: 21.743
A93: 84 | B93: GSPL | C93: 208.5 | D93: 208.88 | E93: 206.87 | F93: 205.23 | G93: 203.22 | H93: 210.52 | I93: 212.53 | J93: 214.17 | K93: 210.9 | L93: 207.25 | M93: 6.05527
A94: 85 | B94: HEG | C94: 1075.45 | D94: 1056.35 | E94: 994.70 | F94: 913.95 | G94: 852.30 | H94: 1137.10 | I94: 1198.75 | J94: 1279.50 | K94: 1118 | L94: 975.6 | M94: 14.19266
A95: 86 | B95: HCLTECH | C95: 1064.45 | D95: 1070.62 | E95: 1045.33 | F95: 1026.22 | G95: 1000.93 | H95: 1089.73 | I95: 1115.02 | J95: 1134.13 | K95: 1095.9 | L95: 1051.5 | M95: 27.51243
A96: 87 | B96: HDFCAMC | C96: 3020.6 | D96: 2993.27 | E96: 2911.83 | F96: 2803.07 | G96: 2721.63 | H96: 3102.03 | I96: 3183.47 | J96: 3292.23 | K96: 3074.7 | L96: 2884.5 | M96: 8.06845
A97: 88 | B97: HDFCBANK | C97: 1239.3 | D97: 1242.97 | E97: 1228.93 | F97: 1218.57 | G97: 1204.53 | H97: 1253.33 | I97: 1267.37 | J97: 1277.73 | K97: 1257 | L97: 1232.6 | M97: 100.03114
A98: 89 | B98: HDFCLIFE | C98: 611.3 | D98: 613.68 | E98: 603.12 | F98: 594.93 | G98: 584.37 | H98: 621.87 | I98: 632.43 | J98: 640.62 | K98: 624.25 | L98: 605.5 | M98: 26.73829
A99: 90 | B99: HAVELLS | C99: 678.2 | D99: 680.55 | E99: 668.15 | F99: 658.10 | G99: 645.70 | H99: 690.60 | I99: 703.00 | J99: 713.05 | K99: 692.95 | L99: 670.5 | M99: 9.76609
A100: 91 | B100: HEROMOTOCO | C100: 2674.65 | D100: 2676.43 | E100: 2639.42 | F100: 2604.18 | G100: 2567.17 | H100: 2711.67 | I100: 2748.68 | J100: 2783.92 | K100: 2713.45 | L100: 2641.2 | M100: 7.9903
A101: 92 | B101: HEXAWARE | C101: 371.2 | D101: 372.50 | E101: 367.00 | F101: 362.80 | G101: 357.30 | H101: 376.70 | I101: 382.20 | J101: 386.40 | K101: 378 | L101: 368.3 | M101: 4.24793
A102: 93 | B102: HINDALCO | C102: 185.75 | D102: 187.25 | E102: 183.55 | F102: 181.35 | G102: 177.65 | H102: 189.45 | I102: 193.15 | J102: 195.35 | K102: 190.95 | L102: 185.05 | M102: 66.83536
A103: 94 | B103: HINDPETRO | C103: 316.9 | D103: 316.55 | E103: 312.65 | F103: 308.40 | G103: 304.50 | H103: 320.80 | I103: 324.70 | J103: 328.95 | K103: 320.45 | L103: 312.3 | M103: 61.71806
A104: 95 | B104: HINDUNILVR | C104: 2127.35 | D104: 2129.45 | E104: 2109.90 | F104: 2092.45 | G104: 2072.90 | H104: 2146.90 | I104: 2166.45 | J104: 2183.90 | K104: 2149 | L104: 2112 | M104: 17.37401
A105: 96 | B105: HINDZINC | C105: 209.9 | D105: 212.93 | E105: 206.17 | F105: 202.43 | G105: 195.67 | H105: 216.67 | I105: 223.43 | J105: 227.17 | K105: 219.7 | L105: 209.2 | M105: 9.46692
A106: 97 | B106: HUDCO | C106: 34.65 | D106: 34.97 | E106: 34.03 | F106: 33.42 | G106: 32.48 | H106: 35.58 | I106: 36.52 | J106: 37.13 | K106: 35.9 | L106: 34.35 | M106: 8.72975
A107: 98 | B107: HDFC | C107: 2114.9 | D107: 2117.13 | E107: 2093.77 | F107: 2072.63 | G107: 2049.27 | H107: 2138.27 | I107: 2161.63 | J107: 2182.77 | K107: 2140.5 | L107: 2096 | M107: 34.60577
A108: 99 | B108: ICICIBANK | C108: 451.15 | D108: 449.13 | E108: 439.57 | F108: 427.98 | G108: 418.42 | H108: 460.72 | I108: 470.28 | J108: 481.87 | K108: 458.7 | L108: 437.55 | M108: 349.66169
A109: 100 | B109: ICICIGI | C109: 1294.8 | D109: 1279.38 | E109: 1252.42 | F109: 1210.03 | G109: 1183.07 | H109: 1321.77 | I109: 1348.73 | J109: 1391.12 | K109: 1306.35 | L109: 1237 | M109: 23.28823
A110: 101 | B110: ICICIPRULI | C110: 480.05 | D110: 480.63 | E110: 472.82 | F110: 465.58 | G110: 457.77 | H110: 487.87 | I110: 495.68 | J110: 502.92 | K110: 488.45 | L110: 473.4 | M110: 25.90137
A111: 102 | B111: IDBI | C111: 30.85 | D111: 31.00 | E111: 30.40 | F111: 29.95 | G111: 29.35 | H111: 31.45 | I111: 32.05 | J111: 32.50 | K111: 31.6 | L111: 30.55 | M111: 17.4287
A112: 103 | B112: IDFCFIRSTB | C112: 39.8 | D112: 39.92 | E112: 39.38 | F112: 38.97 | G112: 38.43 | H112: 40.33 | I112: 40.87 | J112: 41.28 | K112: 40.45 | L112: 39.5 | M112: 95.61077
A113: 104 | B113: ITC | C113: 248.9 | D113: 248.32 | E113: 245.53 | F113: 242.17 | G113: 239.38 | H113: 251.68 | I113: 254.47 | J113: 257.83 | K113: 251.1 | L113: 244.95 | M113: 182.75636
A114: 105 | B114: IBULHSGFIN | C114: 218 | D114: 225.12 | E114: 198.23 | F114: 178.47 | G114: 151.58 | H114: 244.88 | I114: 271.77 | J114: 291.53 | K114: 252 | L114: 205.35 | M114: 731.0053
A115: 106 | B115: IBVENTURES | C115: 93.75 | D115: 93.08 | E115: 91.87 | F115: 89.98 | G115: 88.77 | H115: 94.97 | I115: 96.18 | J115: 98.07 | K115: 94.3 | L115: 91.2 | M115: 19.47893
A116: 107 | B116: INDIANB | C116: 126.3 | D116: 126.02 | E116: 122.33 | F116: 118.37 | G116: 114.68 | H116: 129.98 | I116: 133.67 | J116: 137.63 | K116: 129.7 | L116: 122.05 | M116: 12.75098
A117: 108 | B117: INDHOTEL | C117: 152.3 | D117: 151.22 | E117: 149.23 | F117: 146.17 | G117: 144.18 | H117: 154.28 | I117: 156.27 | J117: 159.33 | K117: 153.2 | L117: 148.15 | M117: 9.26734
A118: 109 | B118: IOC | C118: 146.45 | D118: 146.70 | E118: 145.30 | F118: 144.15 | G118: 142.75 | H118: 147.85 | I118: 149.25 | J118: 150.40 | K118: 148.1 | L118: 145.55 | M118: 119.08068
A119: 110 | B119: IGL | C119: 372.1 | D119: 374.33 | E119: 368.67 | F119: 365.23 | G119: 359.57 | H119: 377.77 | I119: 383.43 | J119: 386.87 | K119: 380 | L119: 370.9 | M119: 7.63499
A120: 111 | B120: INDUSINDBK | C120: 1341 | D120: 1339.62 | E120: 1321.38 | F120: 1301.77 | G120: 1283.53 | H120: 1359.23 | I120: 1377.47 | J120: 1397.08 | K120: 1357.85 | L120: 1320 | M120: 35.77455
A121: 112 | B121: NAUKRI | C121: 2397.75 | D121: 2377.03 | E121: 2306.07 | F121: 2214.38 | G121: 2143.42 | H121: 2468.72 | I121: 2539.68 | J121: 2631.37 | K121: 2448 | L121: 2285.35 | M121: 3.02674
A122: 113 | B122: INFY | C122: 643.55 | D122: 657.67 | E122: 624.23 | F122: 604.92 | G122: 571.48 | H122: 676.98 | I122: 710.42 | J122: 729.73 | K122: 691.1 | L122: 638.35 | M122: 901.52532
A123: 114 | B123: INDIGO | C123: 1674.35 | D123: 1686.62 | E123: 1654.23 | F123: 1634.12 | G123: 1601.73 | H123: 1706.73 | I123: 1739.12 | J123: 1759.23 | K123: 1719 | L123: 1666.5 | M123: 11.11643
A124: 115 | B124: IPCALAB | C124: 927.15 | D124: 934.22 | E124: 913.43 | F124: 899.72 | G124: 878.93 | H124: 947.93 | I124: 968.72 | J124: 982.43 | K124: 955 | L124: 920.5 | M124: 1.49393
A125: 116 | B125: JSWENERGY | C125: 67.65 | D125: 67.72 | E125: 66.53 | F125: 65.42 | G125: 64.23 | H125: 68.83 | I125: 70.02 | J125: 71.13 | K125: 68.9 | L125: 66.6 | M125: 7.63381
A126: 117 | B126: JSWSTEEL | C126: 219.7 | D126: 221.60 | E126: 217.30 | F126: 214.90 | G126: 210.60 | H126: 224.00 | I126: 228.30 | J126: 230.70 | K126: 225.9 | L126: 219.2 | M126: 83.05579
A127: 118 | B127: JINDALSTEL | C127: 103.4 | D127: 104.68 | E127: 101.27 | F127: 99.13 | G127: 95.72 | H127: 106.82 | I127: 110.23 | J127: 112.37 | K127: 108.1 | L127: 102.55 | M127: 204.81332
A128: 119 | B128: JUBLFOOD | C128: 1428.85 | D128: 1407.80 | E128: 1365.60 | F128: 1302.35 | G128: 1260.15 | H128: 1471.05 | I128: 1513.25 | J128: 1576.50 | K128: 1450 | L128: 1344.55 | M128: 39.27218
A129: 120 | B129: JUBILANT | C129: 541 | D129: 530.80 | E129: 513.20 | F129: 485.40 | G129: 467.80 | H129: 558.60 | I129: 576.20 | J129: 604.00 | K129: 548.4 | L129: 503 | M129: 4.7254
A130: 121 | B130: KOTAKBANK | C130: 1628.85 | D130: 1621.28 | E130: 1599.57 | F130: 1570.28 | G130: 1548.57 | H130: 1650.57 | I130: 1672.28 | J130: 1701.57 | K130: 1643 | L130: 1592 | M130: 48.95082
A131: 122 | B131: L&TFH | C131: 86.6 | D131: 87.00 | E131: 83.20 | F131: 79.80 | G131: 76.00 | H131: 90.40 | I131: 94.20 | J131: 97.60 | K131: 90.8 | L131: 83.6 | M131: 235.8754
A132: 123 | B132: LTTS | C132: 1475.05 | D132: 1466.45 | E132: 1329.60 | F132: 1184.15 | G132: 1047.30 | H132: 1611.90 | I132: 1748.75 | J132: 1894.20 | K132: 1603.3 | L132: 1321 | M132: 3.61675
A133: 124 | B133: LICHSGFIN | C133: 373.2 | D133: 378.97 | E133: 366.08 | F133: 358.97 | G133: 346.08 | H133: 386.08 | I133: 398.97 | J133: 406.08 | K133: 391.85 | L133: 371.85 | M133: 54.49058
A134: 125 | B134: LTI | C134: 1610.75 | D134: 1614.10 | E134: 1593.20 | F134: 1575.65 | G134: 1554.75 | H134: 1631.65 | I134: 1652.55 | J134: 1670.10 | K134: 1635 | L134: 1596.55 | M134: 2.48091
A135: 126 | B135: LT | C135: 1442.55 | D135: 1449.83 | E135: 1431.87 | F135: 1421.18 | G135: 1403.22 | H135: 1460.52 | I135: 1478.48 | J135: 1489.17 | K135: 1467.8 | L135: 1439.15 | M135: 28.5839
A136: 127 | B136: LUPIN | C136: 745.85 | D136: 742.72 | E136: 737.08 | F136: 728.32 | G136: 722.68 | H136: 751.48 | I136: 757.12 | J136: 765.88 | K136: 748.35 | L136: 733.95 | M136: 7.12225
A137: 128 | B137: MRF | C137: 64211.3 | D137: 64330.42 | E137: 63910.93 | F137: 63610.57 | G137: 63191.08 | H137: 64630.78 | I137: 65050.27 | J137: 65350.63 | K137: 64749.9 | L137: 64030.05 | M137: 0.03206
A138: 129 | B138: MGL | C138: 955.85 | D138: 958.08 | E138: 947.17 | F138: 938.48 | G138: 927.57 | H138: 966.77 | I138: 977.68 | J138: 986.37 | K138: 969 | L138: 949.4 | M138: 3.02924
A139: 130 | B139: M&MFIN | C139: 341.15 | D139: 333.70 | E139: 319.85 | F139: 298.55 | G139: 284.70 | H139: 355.00 | I139: 368.85 | J139: 390.15 | K139: 347.55 | L139: 312.4 | M139: 38.3149
A140: 131 | B140: M&M | C140: 595.8 | D140: 594.82 | E140: 588.43 | F140: 581.07 | G140: 574.68 | H140: 602.18 | I140: 608.57 | J140: 615.93 | K140: 601.2 | L140: 587.45 | M140: 34.94913
A141: 132 | B141: MANAPPURAM | C141: 158.25 | D141: 157.62 | E141: 155.23 | F141: 152.22 | G141: 149.83 | H141: 160.63 | I141: 163.02 | J141: 166.03 | K141: 160 | L141: 154.6 | M141: 90.71142
A142: 133 | B142: MRPL | C142: 51.5 | D142: 51.30 | E142: 50.70 | F142: 49.90 | G142: 49.30 | H142: 52.10 | I142: 52.70 | J142: 53.50 | K142: 51.9 | L142: 50.5 | M142: 10.40783
A143: 134 | B143: MARICO | C143: 395.1 | D143: 396.05 | E143: 391.20 | F143: 387.30 | G143: 382.45 | H143: 399.95 | I143: 404.80 | J143: 408.70 | K143: 400.9 | L143: 392.15 | M143: 21.36931
A144: 135 | B144: MARUTI | C144: 7256.25 | D144: 7293.42 | E144: 7194.83 | F144: 7133.42 | G144: 7034.83 | H144: 7354.83 | I144: 7453.42 | J144: 7514.83 | K144: 7392 | L144: 7232 | M144: 9.59552
A145: 136 | B145: MFSL | C145: 435.1 | D145: 429.33 | E145: 413.12 | F145: 391.13 | G145: 374.92 | H145: 451.32 | I145: 467.53 | J145: 489.52 | K145: 445.55 | L145: 407.35 | M145: 12.60877
A146: 137 | B146: MINDTREE | C146: 729.2 | D146: 731.70 | E146: 723.60 | F146: 718.00 | G146: 709.90 | H146: 737.30 | I146: 745.40 | J146: 751.00 | K146: 739.8 | L146: 726.1 | M146: 4.25474
A147: 138 | B147: MOTHERSUMI | C147: 103.7 | D147: 104.18 | E147: 102.52 | F147: 101.33 | G147: 99.67 | H147: 105.37 | I147: 107.03 | J147: 108.22 | K147: 105.85 | L147: 103 | M147: 103.85907
A148: 139 | B148: MPHASIS | C148: 915.15 | D148: 915.17 | E148: 902.48 | F148: 889.82 | G148: 877.13 | H148: 927.83 | I148: 940.52 | J148: 953.18 | K148: 927.85 | L148: 902.5 | M148: 1.08447
A149: 140 | B149: MUTHOOTFIN | C149: 686.9 | D149: 685.65 | E149: 677.95 | F149: 669.00 | G149: 661.30 | H149: 694.60 | I149: 702.30 | J149: 711.25 | K149: 693.35 | L149: 676.7 | M149: 8.35554
A150: 141 | B150: NATCOPHARM | C150: 577.2 | D150: 579.87 | E150: 567.83 | F150: 558.47 | G150: 546.43 | H150: 589.23 | I150: 601.27 | J150: 610.63 | K150: 591.9 | L150: 570.5 | M150: 1.86152
A151: 142 | B151: NBCC | C151: 35.7 | D151: 36.12 | E151: 34.78 | F151: 33.87 | G151: 32.53 | H151: 37.03 | I151: 38.37 | J151: 39.28 | K151: 37.45 | L151: 35.2 | M151: 188.23442
A152: 143 | B152: NHPC | C152: 23.1 | D152: 23.42 | E152: 22.73 | F152: 22.37 | G152: 21.68 | H152: 23.78 | I152: 24.47 | J152: 24.83 | K152: 24.1 | L152: 23.05 | M152: 31.4686
A153: 144 | B153: NMDC | C153: 109.6 | D153: 109.30 | E153: 107.90 | F153: 106.20 | G153: 104.80 | H153: 111.00 | I153: 112.40 | J153: 114.10 | K153: 110.7 | L153: 107.6 | M153: 64.83715
A154: 145 | B154: NTPC | C154: 120.9 | D154: 120.83 | E154: 120.02 | F154: 119.13 | G154: 118.32 | H154: 121.72 | I154: 122.53 | J154: 123.42 | K154: 121.65 | L154: 119.95 | M154: 120.91476
A155: 146 | B155: NATIONALUM | C155: 43.8 | D155: 44.10 | E155: 42.70 | F155: 41.60 | G155: 40.20 | H155: 45.20 | I155: 46.60 | J155: 47.70 | K155: 45.5 | L155: 43 | M155: 159.54242
A156: 147 | B156: NESTLEIND | C156: 15020 | D156: 14988.98 | E156: 14867.02 | F156: 14714.03 | G156: 14592.07 | H156: 15141.97 | I156: 15263.93 | J156: 15416.92 | K156: 15110.95 | L156: 14836 | M156: 1.38011
A157: 148 | B157: OBEROIRLTY | C157: 512.9 | D157: 514.05 | E157: 501.10 | F157: 489.30 | G157: 476.35 | H157: 525.85 | I157: 538.80 | J157: 550.60 | K157: 527 | L157: 502.25 | M157: 3.66858
A158: 149 | B158: ONGC | C158: 144.25 | D158: 144.20 | E158: 142.25 | F158: 140.25 | G158: 138.30 | H158: 146.20 | I158: 148.15 | J158: 150.15 | K158: 146.15 | L158: 142.2 | M158: 115.82273
A159: 150 | B159: OIL | C159: 164.8 | D159: 167.08 | E159: 161.72 | F159: 158.63 | G159: 153.27 | H159: 170.17 | I159: 175.53 | J159: 178.62 | K159: 172.45 | L159: 164 | M159: 12.64895
A160: 151 | B160: OFSS | C160: 3106.95 | D160: 3097.12 | E160: 3079.83 | F160: 3052.72 | G160: 3035.43 | H160: 3124.23 | I160: 3141.52 | J160: 3168.63 | K160: 3114.4 | L160: 3070 | M160: 0.0898
A161: 152 | B161: ORIENTBANK | C161: 50.3 | D161: 50.15 | E161: 48.90 | F161: 47.50 | G161: 46.25 | H161: 51.55 | I161: 52.80 | J161: 54.20 | K161: 51.4 | L161: 48.75 | M161: 13.55126
A162: 153 | B162: PIIND | C162: 1323.2 | D162: 1314.40 | E162: 1293.80 | F162: 1264.40 | G162: 1243.80 | H162: 1343.80 | I162: 1364.40 | J162: 1393.80 | K162: 1335 | L162: 1285 | M162: 1.47358
A163: 154 | B163: PNBHOUSING | C163: 470.95 | D163: 474.90 | E163: 449.00 | F163: 427.05 | G163: 401.15 | H163: 496.85 | I163: 522.75 | J163: 544.70 | K163: 500.8 | L163: 452.95 | M163: 13.3489
A164: 155 | B164: PAGEIND | C164: 22454.45 | D164: 22229.07 | E164: 21759.13 | F164: 21063.82 | G164: 20593.88 | H164: 22924.38 | I164: 23394.32 | J164: 24089.63 | K164: 22699 | L164: 21533.75 | M164: 0.42523
A165: 156 | B165: PETRONET | C165: 275.1 | D165: 273.48 | E165: 269.47 | F165: 263.83 | G165: 259.82 | H165: 279.12 | I165: 283.13 | J165: 288.77 | K165: 277.5 | L165: 267.85 | M165: 54.98814
A166: 157 | B166: PFIZER | C166: 3260.25 | D166: 3248.18 | E166: 3222.37 | F166: 3184.48 | G166: 3158.67 | H166: 3286.07 | I166: 3311.88 | J166: 3349.77 | K166: 3274 | L166: 3210.3 | M166: 0.1175
A167: 158 | B167: PIDILITIND | C167: 1350.2 | D167: 1358.75 | E167: 1335.50 | F167: 1320.80 | G167: 1297.55 | H167: 1373.45 | I167: 1396.70 | J167: 1411.40 | K167: 1382 | L167: 1344.05 | M167: 12.64508
A168: 159 | B168: PEL | C168: 1680.4 | D168: 1661.80 | E168: 1600.60 | F168: 1520.80 | G168: 1459.60 | H168: 1741.60 | I168: 1802.80 | J168: 1882.60 | K168: 1723 | L168: 1582 | M168: 39.95489
A169: 160 | B169: PFC | C169: 101.5 | D169: 100.82 | E169: 98.48 | F169: 95.47 | G169: 93.13 | H169: 103.83 | I169: 106.17 | J169: 109.18 | K169: 103.15 | L169: 97.8 | M169: 99.62584
A170: 161 | B170: POWERGRID | C170: 205.05 | D170: 204.53 | E170: 201.52 | F170: 197.98 | G170: 194.97 | H170: 208.07 | I170: 211.08 | J170: 214.62 | K170: 207.55 | L170: 201 | M170: 60.04825
A171: 162 | B171: PRESTIGE | C171: 291.9 | D171: 293.17 | E171: 287.03 | F171: 282.17 | G171: 276.03 | H171: 298.03 | I171: 304.17 | J171: 309.03 | K171: 299.3 | L171: 288.3 | M171: 1.13338
A172: 163 | B172: PGHH | C172: 11967.4 | D172: 11909.47 | E172: 11818.93 | F172: 11670.47 | G172: 11579.93 | H172: 12057.93 | I172: 12148.47 | J172: 12296.93 | K172: 12000 | L172: 11761 | M172: 0.04193
A173: 164 | B173: PNB | C173: 60.75 | D173: 60.97 | E173: 59.68 | F173: 58.62 | G173: 57.33 | H173: 62.03 | I173: 63.32 | J173: 64.38 | K173: 62.25 | L173: 59.9 | M173: 197.91117
A174: 165 | B174: QUESS | C174: 472.75 | D174: 472.02 | E174: 469.03 | F174: 465.32 | G174: 462.33 | H174: 475.73 | I174: 478.72 | J174: 482.43 | K174: 475 | L174: 468.3 | M174: 0.40038
A175: 166 | B175: RBLBANK | C175: 286.95 | D175: 288.98 | E175: 279.97 | F175: 272.98 | G175: 263.97 | H175: 295.97 | I175: 304.98 | J175: 311.97 | K175: 298 | L175: 282 | M175: 182.85859
A176: 167 | B176: RECLTD | C176: 133.8 | D176: 132.78 | E176: 130.17 | F176: 126.53 | G176: 123.92 | H176: 136.42 | I176: 139.03 | J176: 142.67 | K176: 135.4 | L176: 129.15 | M176: 70.63244
A177: 168 | B177: RAJESHEXPO | C177: 672.4 | D177: 674.80 | E177: 668.10 | F177: 663.80 | G177: 657.10 | H177: 679.10 | I177: 685.80 | J177: 690.10 | K177: 681.5 | L177: 670.5 | M177: 2.77634
A178: 169 | B178: RELIANCE | C178: 1414.15 | D178: 1418.12 | E178: 1399.38 | F178: 1384.62 | G178: 1365.88 | H178: 1432.88 | I178: 1451.62 | J178: 1466.38 | K178: 1436.85 | L178: 1403.35 | M178: 127.03054
A179: 170 | B179: RNAM | C179: 308.9 | D179: 306.25 | E179: 293.40 | F179: 277.90 | G179: 265.05 | H179: 321.75 | I179: 334.60 | J179: 350.10 | K179: 319.1 | L179: 290.75 | M179: 61.97079
A180: 171 | B180: SBILIFE | C180: 989.15 | D180: 971.95 | E180: 946.40 | F180: 903.65 | G180: 878.10 | H180: 1014.70 | I180: 1040.25 | J180: 1083.00 | K180: 997.5 | L180: 929.2 | M180: 20.40975
A181: 172 | B181: SRF | C181: 2713.8 | D181: 2719.23 | E181: 2689.47 | F181: 2665.13 | G181: 2635.37 | H181: 2743.57 | I181: 2773.33 | J181: 2797.67 | K181: 2749 | L181: 2694.9 | M181: 1.34036
A182: 173 | B182: SHREECEM | C182: 19515.6 | D182: 19695.43 | E182: 19078.42 | F182: 18641.23 | G182: 18024.22 | H182: 20132.62 | I182: 20749.63 | J182: 21186.82 | K182: 20312.45 | L182: 19258.25 | M182: 1.15473
A183: 174 | B183: SRTRANSFIN | C183: 1117.55 | D183: 1108.48 | E183: 1089.17 | F183: 1060.78 | G183: 1041.47 | H183: 1136.87 | I183: 1156.18 | J183: 1184.57 | K183: 1127.8 | L183: 1080.1 | M183: 13.25369
A184: 175 | B184: SIEMENS | C184: 1675 | D184: 1671.48 | E184: 1649.47 | F184: 1623.93 | G184: 1601.92 | H184: 1697.02 | I184: 1719.03 | J184: 1744.57 | K184: 1693.5 | L184: 1645.95 | M184: 5.92793
A185: 176 | B185: SBIN | C185: 270.5 | D185: 271.33 | E185: 267.67 | F185: 264.83 | G185: 261.17 | H185: 274.17 | I185: 277.83 | J185: 280.67 | K185: 275 | L185: 268.5 | M185: 275.74295
A186: 177 | B186: SAIL | C186: 35.6 | D186: 36.10 | E186: 34.90 | F186: 34.20 | G186: 33.00 | H186: 36.80 | I186: 38.00 | J186: 38.70 | K186: 37.3 | L186: 35.4 | M186: 360.94539
A187: 178 | B187: STRTECH | C187: 156.55 | D187: 155.17 | E187: 149.38 | F187: 142.22 | G187: 136.43 | H187: 162.33 | I187: 168.12 | J187: 175.28 | K187: 160.95 | L187: 148 | M187: 25.299
A188: 179 | B188: SUNPHARMA | C188: 405.45 | D188: 404.80 | E188: 401.60 | F188: 397.75 | G188: 394.55 | H188: 408.65 | I188: 411.85 | J188: 415.70 | K188: 408 | L188: 400.95 | M188: 29.44611
A189: 180 | B189: SUNTV | C189: 520 | D189: 522.20 | E189: 512.00 | F189: 504.00 | G189: 493.80 | H189: 530.20 | I189: 540.40 | J189: 548.40 | K189: 532.4 | L189: 514.2 | M189: 20.76744
A190: 181 | B190: SYNGENE | C190: 326.75 | D190: 327.62 | E190: 321.33 | F190: 315.92 | G190: 309.63 | H190: 333.03 | I190: 339.32 | J190: 344.73 | K190: 333.9 | L190: 322.2 | M190: 2.29282
A191: 182 | B191: TVSMOTOR | C191: 451.6 | D191: 454.22 | E191: 445.43 | F191: 439.27 | G191: 430.48 | H191: 460.38 | I191: 469.17 | J191: 475.33 | K191: 463 | L191: 448.05 | M191: 26.475
A192: 183 | B192: TATACHEM | C192: 615.95 | D192: 618.52 | E192: 610.43 | F192: 604.92 | G192: 596.83 | H192: 624.03 | I192: 632.12 | J192: 637.63 | K192: 626.6 | L192: 613 | M192: 3.87245
A193: 184 | B193: TCS | C193: 2051.4 | D193: 2067.65 | E193: 2023.80 | F193: 1996.20 | G193: 1952.35 | H193: 2095.25 | I193: 2139.10 | J193: 2166.70 | K193: 2111.5 | L193: 2040.05 | M193: 55.52505
A194: 185 | B194: TATAGLOBAL | C194: 281.75 | D194: 283.40 | E194: 278.90 | F194: 276.05 | G194: 271.55 | H194: 286.25 | I194: 290.75 | J194: 293.60 | K194: 287.9 | L194: 280.55 | M194: 19.98064
A195: 186 | B195: TATAMTRDVR | C195: 58.7 | D195: 59.27 | E195: 57.83 | F195: 56.97 | G195: 55.53 | H195: 60.13 | I195: 61.57 | J195: 62.43 | K195: 60.7 | L195: 58.4 | M195: 61.1148
A196: 187 | B196: TATAMOTORS | C196: 131.75 | D196: 132.38 | E196: 129.17 | F196: 126.58 | G196: 123.37 | H196: 134.97 | I196: 138.18 | J196: 140.77 | K196: 135.6 | L196: 129.8 | M196: 535.32482
A197: 188 | B197: TATAPOWER | C197: 59.2 | D197: 59.58 | E197: 58.47 | F197: 57.73 | G197: 56.62 | H197: 60.32 | I197: 61.43 | J197: 62.17 | K197: 60.7 | L197: 58.85 | M197: 87.48155
A198: 189 | B198: TATASTEEL | C198: 354.5 | D198: 357.10 | E198: 350.40 | F198: 346.30 | G198: 339.60 | H198: 361.20 | I198: 367.90 | J198: 372.00 | K198: 363.8 | L198: 353 | M198: 119.44283
A199: 190 | B199: TECHM | C199: 717.65 | D199: 721.32 | E199: 710.63 | F199: 703.62 | G199: 692.93 | H199: 728.33 | I199: 739.02 | J199: 746.03 | K199: 732 | L199: 714.3 | M199: 28.2523
A200: 191 | B200: NIACL | C200: 136.4 | D200: 140.22 | E200: 131.43 | F200: 126.47 | G200: 117.68 | H200: 145.18 | I200: 153.97 | J200: 158.93 | K200: 149 | L200: 135.25 | M200: 9.60037
A201: 192 | B201: RAMCOCEM | C201: 751.6 | D201: 753.12 | E201: 744.23 | F201: 736.87 | G201: 727.98 | H201: 760.48 | I201: 769.37 | J201: 776.73 | K201: 762 | L201: 745.75 | M201: 1.90999
A202: 193 | B202: TITAN | C202: 1329.45 | D202: 1320.25 | E202: 1303.70 | F202: 1277.95 | G202: 1261.40 | H202: 1346.00 | I202: 1362.55 | J202: 1388.30 | K202: 1336.8 | L202: 1294.5 | M202: 21.38284
A203: 194 | B203: TORNTPHARM | C203: 1670 | D203: 1665.67 | E203: 1642.33 | F203: 1614.67 | G203: 1591.33 | H203: 1693.33 | I203: 1716.67 | J203: 1744.33 | K203: 1689 | L203: 1638 | M203: 3.77383
A204: 195 | B204: TORNTPOWER | C204: 280.1 | D204: 281.20 | E204: 276.05 | F204: 272.00 | G204: 266.85 | H204: 285.25 | I204: 290.40 | J204: 294.45 | K204: 286.35 | L204: 277.15 | M204: 7.09634
A205: 196 | B205: UPL | C205: 597 | D205: 597.95 | E205: 592.00 | F205: 587.00 | G205: 581.05 | H205: 602.95 | I205: 608.90 | J205: 613.90 | K205: 603.9 | L205: 592.95 | M205: 22.64692
... 30 more rows

Sheet MidCap Intra
L5: Back To Main Page
A6: FOR INTRA DAY TRADING | K6: =Main!B10 -> 2019-10-23
A9: Sr.no | B9: Scrip | C9: CLOSE RATE | D9: Pivot Point | E9: Supports | H9: Resistances
C10: Point | E10: S1 | F10: S2 | G10: S3 | H10: R1 | I10: R2 | J10: R3 | K10: HIGH | L10: LOW | M10: Total Trade Quanity in Lakhs
A11: 1 | B11: 3MINDIA | C11: 21822.3 | D11: 21887.77 | E11: 21585.53 | F11: 21348.77 | G11: 21046.53 | H11: 22124.53 | I11: 22426.77 | J11: 22663.53 | K11: 22190 | L11: 21651 | M11: 0.04653
A12: 2 | B12: ACC | C12: 1535.25 | D12: 1538.67 | E12: 1520.38 | F12: 1505.52 | G12: 1487.23 | H12: 1553.53 | I12: 1571.82 | J12: 1586.68 | K12: 1556.95 | L12: 1523.8 | M12: 9.34518
A13: 3 | B13: AIAENG | C13: 1709.65 | D13: 1723.10 | E13: 1686.55 | F13: 1663.45 | G13: 1626.90 | H13: 1746.20 | I13: 1782.75 | J13: 1805.85 | K13: 1759.65 | L13: 1700 | M13: 0.16725
A14: 4 | B14: APLAPOLLO | C14: 1386.65 | D14: 1391.87 | E14: 1378.78 | F14: 1370.92 | G14: 1357.83 | H14: 1399.73 | I14: 1412.82 | J14: 1420.68 | K14: 1404.95 | L14: 1384 | M14: 0.35491
A15: 5 | B15: AUBANK | C15: 689.25 | D15: 684.25 | E15: 672.00 | F15: 654.75 | G15: 642.50 | H15: 701.50 | I15: 713.75 | J15: 731.00 | K15: 696.5 | L15: 667 | M15: 14.73667
A16: 6 | B16: AAVAS | C16: 1665.5 | D16: 1670.47 | E16: 1649.03 | F16: 1632.57 | G16: 1611.13 | H16: 1686.93 | I16: 1708.37 | J16: 1724.83 | K16: 1691.9 | L16: 1654 | M16: 0.13305
A17: 7 | B17: ABBOTINDIA | C17: 10699.85 | D17: 10683.28 | E17: 10366.57 | F17: 10033.28 | G17: 9716.57 | H17: 11016.57 | I17: 11333.28 | J17: 11666.57 | K17: 11000 | L17: 10350 | M17: 0.25468
A18: 8 | B18: ADANIGAS | C18: 148.45 | D18: 149.80 | E18: 146.75 | F18: 145.05 | G18: 142.00 | H18: 151.50 | I18: 154.55 | J18: 156.25 | K18: 152.85 | L18: 148.1 | M18: 6.98922
A19: 9 | B19: ADANIGREEN | C19: 86.6 | D19: 87.28 | E19: 83.32 | F19: 80.03 | G19: 76.07 | H19: 90.57 | I19: 94.53 | J19: 97.82 | K19: 91.25 | L19: 84 | M19: 26.92862
A20: 10 | B20: ADANIPORTS | C20: 420.75 | D20: 422.23 | E20: 415.62 | F20: 410.48 | G20: 403.87 | H20: 427.37 | I20: 433.98 | J20: 439.12 | K20: 428.85 | L20: 417.1 | M20: 23.80735
A21: 11 | B21: ADANIPOWER | C21: 63.25 | D21: 63.75 | E21: 62.45 | F21: 61.65 | G21: 60.35 | H21: 64.55 | I21: 65.85 | J21: 66.65 | K21: 65.05 | L21: 62.95 | M21: 68.83425
A22: 12 | B22: ADANITRANS | C22: 253.55 | D22: 249.85 | E22: 240.70 | F22: 227.85 | G22: 218.70 | H22: 262.70 | I22: 271.85 | J22: 284.70 | K22: 259 | L22: 237 | M22: 5.49105
A23: 13 | B23: ABCAPITAL | C23: 82.95 | D23: 81.90 | E23: 80.10 | F23: 77.25 | G23: 75.45 | H23: 84.75 | I23: 86.55 | J23: 89.40 | K23: 83.7 | L23: 79.05 | M23: 34.62436
A24: 14 | B24: ABFRL | C24: 205.75 | D24: 207.23 | E24: 202.57 | F24: 199.38 | G24: 194.72 | H24: 210.42 | I24: 215.08 | J24: 218.27 | K24: 211.9 | L24: 204.05 | M24: 6.84987
A25: 15 | B25: ADVENZYMES | C25: 156.75 | D25: 157.37 | E25: 153.83 | F25: 150.92 | G25: 147.38 | H25: 160.28 | I25: 163.82 | J25: 166.73 | K25: 160.9 | L25: 154.45 | M25: 0.66528
A26: 16 | B26: AEGISCHEM | C26: 179.3 | D26: 177.08 | E26: 170.32 | F26: 161.33 | G26: 154.57 | H26: 186.07 | I26: 192.83 | J26: 201.82 | K26: 183.85 | L26: 168.1 | M26: 2.29184
A27: 17 | B27: AJANTPHARM | C27: 1004.45 | D27: 1013.33 | E27: 976.67 | F27: 948.88 | G27: 912.22 | H27: 1041.12 | I27: 1077.78 | J27: 1105.57 | K27: 1050 | L27: 985.55 | M27: 1.27565
A28: 18 | B28: AKZOINDIA | C28: 2033.35 | D28: 2040.18 | E28: 2005.37 | F28: 1977.38 | G28: 1942.57 | H28: 2068.17 | I28: 2102.98 | J28: 2130.97 | K28: 2075 | L28: 2012.2 | M28: 0.26496
A29: 19 | B29: APLLTD | C29: 538.4 | D29: 538.47 | E29: 529.93 | F29: 521.47 | G29: 512.93 | H29: 546.93 | I29: 555.47 | J29: 563.93 | K29: 547 | L29: 530 | M29: 0.31683
A30: 20 | B30: ALKEM | C30: 1974.75 | D30: 1969.93 | E30: 1954.87 | F30: 1934.98 | G30: 1919.92 | H30: 1989.82 | I30: 2004.88 | J30: 2024.77 | K30: 1985 | L30: 1950.05 | M30: 0.83148
A31: 21 | B31: ALBK | C31: 26.05 | D31: 26.07 | E31: 25.68 | F31: 25.32 | G31: 24.93 | H31: 26.43 | I31: 26.82 | J31: 27.18 | K31: 26.45 | L31: 25.7 | M31: 7.43078
A32: 22 | B32: ALLCARGO | C32: 99.1 | D32: 99.68 | E32: 97.52 | F32: 95.93 | G32: 93.77 | H32: 101.27 | I32: 103.43 | J32: 105.02 | K32: 101.85 | L32: 98.1 | M32: 0.95742
A33: 23 | B33: AMARAJABAT | C33: 675.9 | D33: 673.03 | E33: 665.07 | F33: 654.23 | G33: 646.27 | H33: 683.87 | I33: 691.83 | J33: 702.67 | K33: 681 | L33: 662.2 | M33: 5.399
A34: 24 | B34: AMBER | C34: 936.15 | D34: 937.05 | E34: 919.15 | F34: 902.15 | G34: 884.25 | H34: 954.05 | I34: 971.95 | J34: 988.95 | K34: 954.95 | L34: 920.05 | M34: 0.64752
A35: 25 | B35: AMBUJACEM | C35: 195.9 | D35: 197.93 | E35: 190.47 | F35: 185.03 | G35: 177.57 | H35: 203.37 | I35: 210.83 | J35: 216.27 | K35: 205.4 | L35: 192.5 | M35: 93.55044
A36: 26 | B36: ANDHRABANK | C36: 16.35 | D36: 16.48 | E36: 16.12 | F36: 15.88 | G36: 15.52 | H36: 16.72 | I36: 17.08 | J36: 17.32 | K36: 16.85 | L36: 16.25 | M36: 5.47304
A37: 27 | B37: APOLLOHOSP | C37: 1519.4 | D37: 1520.47 | E37: 1500.93 | F37: 1482.47 | G37: 1462.93 | H37: 1538.93 | I37: 1558.47 | J37: 1576.93 | K37: 1540 | L37: 1502 | M37: 6.21477
A38: 28 | B38: APOLLOTYRE | C38: 185.05 | D38: 185.60 | E38: 182.85 | F38: 180.65 | G38: 177.90 | H38: 187.80 | I38: 190.55 | J38: 192.75 | K38: 188.35 | L38: 183.4 | M38: 36.8004
A39: 29 | B39: ARVINDFASN | C39: 440 | D39: 440.35 | E39: 420.70 | F39: 401.40 | G39: 381.75 | H39: 459.65 | I39: 479.30 | J39: 498.60 | K39: 460 | L39: 421.05 | M39: 0.44671
A40: 30 | B40: ASHOKLEY | C40: 76.05 | D40: 76.12 | E40: 75.08 | F40: 74.12 | G40: 73.08 | H40: 77.08 | I40: 78.12 | J40: 79.08 | K40: 77.15 | L40: 75.15 | M40: 257.29454
A41: 31 | B41: ASHOKA | C41: 107.9 | D41: 107.83 | E41: 105.67 | F41: 103.43 | G41: 101.27 | H41: 110.07 | I41: 112.23 | J41: 114.47 | K41: 110 | L41: 105.6 | M41: 5.87794
A42: 32 | B42: ASIANPAINT | C42: 1780.2 | D42: 1793.40 | E42: 1761.80 | F42: 1743.40 | G42: 1711.80 | H42: 1811.80 | I42: 1843.40 | J42: 1861.80 | K42: 1825 | L42: 1775 | M42: 21.35313
A43: 33 | B43: ASTERDM | C43: 125 | D43: 123.73 | E43: 121.57 | F43: 118.13 | G43: 115.97 | H43: 127.17 | I43: 129.33 | J43: 132.77 | K43: 125.9 | L43: 120.3 | M43: 2.45641
A44: 34 | B44: ASTRAZEN | C44: 2412 | D44: 2389.48 | E44: 2335.07 | F44: 2258.13 | G44: 2203.72 | H44: 2466.42 | I44: 2520.83 | J44: 2597.77 | K44: 2443.9 | L44: 2312.55 | M44: 0.3971
A45: 35 | B45: ASTRAL | C45: 1140.35 | D45: 1161.45 | E45: 1114.90 | F45: 1089.45 | G45: 1042.90 | H45: 1186.90 | I45: 1233.45 | J45: 1258.90 | K45: 1208 | L45: 1136 | M45: 1.09413
A46: 36 | B46: ATUL | C46: 4264.3 | D46: 4251.02 | E46: 4217.03 | F46: 4169.77 | G46: 4135.78 | H46: 4298.28 | I46: 4332.27 | J46: 4379.53 | K46: 4285 | L46: 4203.75 | M46: 0.10264
A47: 37 | B47: AUROPHARMA | C47: 477.25 | D47: 477.95 | E47: 470.50 | F47: 463.75 | G47: 456.30 | H47: 484.70 | I47: 492.15 | J47: 498.90 | K47: 485.4 | L47: 471.2 | M47: 25.51851
A48: 38 | B48: AVANTIFEED | C48: 450.7 | D48: 453.92 | E48: 436.83 | F48: 422.97 | G48: 405.88 | H48: 467.78 | I48: 484.87 | J48: 498.73 | K48: 471 | L48: 440.05 | M48: 21.30558
A49: 39 | B49: DMART | C49: 1913.95 | D49: 1919.40 | E49: 1895.55 | F49: 1877.15 | G49: 1853.30 | H49: 1937.80 | I49: 1961.65 | J49: 1980.05 | K49: 1943.25 | L49: 1901 | M49: 2.73765
A50: 40 | B50: AXISBANK | C50: 712.75 | D50: 713.02 | E50: 703.03 | F50: 693.32 | G50: 683.33 | H50: 722.73 | I50: 732.72 | J50: 742.43 | K50: 723 | L50: 703.3 | M50: 97.04016
A51: 41 | B51: BASF | C51: 956.45 | D51: 964.52 | E51: 943.03 | F51: 929.62 | G51: 908.13 | H51: 977.93 | I51: 999.42 | J51: 1012.83 | K51: 986 | L51: 951.1 | M51: 0.17231
A52: 42 | B52: BEML | C52: 965.9 | D52: 967.97 | E52: 947.93 | F52: 929.97 | G52: 909.93 | H52: 985.93 | I52: 1005.97 | J52: 1023.93 | K52: 988 | L52: 950 | M52: 9.36718
A53: 43 | B53: BSE | C53: 544.1 | D53: 540.70 | E53: 531.40 | F53: 518.70 | G53: 509.40 | H53: 553.40 | I53: 562.70 | J53: 575.40 | K53: 550 | L53: 528 | M53: 0.83878
A54: 44 | B54: BAJAJ-AUTO | C54: 3122.3 | D54: 3122.12 | E54: 3089.83 | F54: 3057.37 | G54: 3025.08 | H54: 3154.58 | I54: 3186.87 | J54: 3219.33 | K54: 3154.4 | L54: 3089.65 | M54: 3.79635
A55: 45 | B55: BAJAJCON | C55: 249.95 | D55: 255.55 | E55: 242.40 | F55: 234.85 | G55: 221.70 | H55: 263.10 | I55: 276.25 | J55: 283.80 | K55: 268.7 | L55: 248 | M55: 7.64088
A56: 46 | B56: BAJAJELEC | C56: 397.1 | D56: 401.97 | E56: 390.13 | F56: 383.17 | G56: 371.33 | H56: 408.93 | I56: 420.77 | J56: 427.73 | K56: 413.8 | L56: 395 | M56: 1.16319
A57: 47 | B57: BAJFINANCE | C57: 4034.15 | D57: 4084.70 | E57: 3949.55 | F57: 3864.95 | G57: 3729.80 | H57: 4169.30 | I57: 4304.45 | J57: 4389.05 | K57: 4219.85 | L57: 4000.1 | M57: 50.34755
A58: 48 | B58: BAJAJFINSV | C58: 8008.85 | D58: 8125.70 | E58: 7858.40 | F58: 7707.95 | G58: 7440.65 | H58: 8276.15 | I58: 8543.45 | J58: 8693.90 | K58: 8393 | L58: 7975.25 | M58: 5.03368
A59: 49 | B59: BAJAJHLDNG | C59: 3673.1 | D59: 3709.70 | E59: 3619.40 | F59: 3565.70 | G59: 3475.40 | H59: 3763.40 | I59: 3853.70 | J59: 3907.40 | K59: 3800 | L59: 3656 | M59: 0.23709
A60: 50 | B60: BALKRISIND | C60: 830.65 | D60: 833.97 | E60: 821.68 | F60: 812.72 | G60: 800.43 | H60: 842.93 | I60: 855.22 | J60: 864.18 | K60: 846.25 | L60: 825 | M60: 4.69555
A61: 51 | B61: BALMLAWRIE | C61: 182.5 | D61: 182.83 | E61: 178.67 | F61: 174.83 | G61: 170.67 | H61: 186.67 | I61: 190.83 | J61: 194.67 | K61: 187 | L61: 179 | M61: 3.90552
A62: 52 | B62: BALRAMCHIN | C62: 161.9 | D62: 159.80 | E62: 156.10 | F62: 150.30 | G62: 146.60 | H62: 165.60 | I62: 169.30 | J62: 175.10 | K62: 163.5 | L62: 154 | M62: 15.21079
A63: 53 | B63: BANDHANBNK | C63: 559.35 | D63: 564.53 | E63: 548.62 | F63: 537.88 | G63: 521.97 | H63: 575.27 | I63: 591.18 | J63: 601.92 | K63: 580.45 | L63: 553.8 | M63: 28.6012
A64: 54 | B64: BANKBARODA | C64: 90.15 | D64: 90.60 | E64: 88.60 | F64: 87.05 | G64: 85.05 | H64: 92.15 | I64: 94.15 | J64: 95.70 | K64: 92.6 | L64: 89.05 | M64: 243.88459
A65: 55 | B65: BANKINDIA | C65: 64.3 | D65: 64.95 | E65: 63.05 | F65: 61.80 | G65: 59.90 | H65: 66.20 | I65: 68.10 | J65: 69.35 | K65: 66.85 | L65: 63.7 | M65: 87.59605
A66: 56 | B66: MAHABANK | C66: 11 | D66: 10.75 | E66: 9.95 | F66: 8.90 | G66: 8.10 | H66: 11.80 | I66: 12.60 | J66: 13.65 | K66: 11.55 | L66: 9.7 | M66: 61.89341
A67: 57 | B67: BATAINDIA | C67: 1767.85 | D67: 1771.65 | E67: 1738.35 | F67: 1708.85 | G67: 1675.55 | H67: 1801.15 | I67: 1834.45 | J67: 1863.95 | K67: 1804.95 | L67: 1742.15 | M67: 7.67897
A68: 58 | B68: BAYERCROP | C68: 3322.45 | D68: 3315.82 | E68: 3256.63 | F68: 3190.82 | G68: 3131.63 | H68: 3381.63 | I68: 3440.82 | J68: 3506.63 | K68: 3375 | L68: 3250 | M68: 0.04722
A69: 59 | B69: BERGEPAINT | C69: 479.1 | D69: 486.97 | E69: 469.13 | F69: 459.17 | G69: 441.33 | H69: 496.93 | I69: 514.77 | J69: 524.73 | K69: 504.8 | L69: 477 | M69: 27.92726
A70: 60 | B70: BDL | C70: 291.5 | D70: 290.92 | E70: 283.83 | F70: 276.17 | G70: 269.08 | H70: 298.58 | I70: 305.67 | J70: 313.33 | K70: 298 | L70: 283.25 | M70: 0.47693
A71: 61 | B71: BEL | C71: 115.35 | D71: 116.02 | E71: 113.98 | F71: 112.62 | G71: 110.58 | H71: 117.38 | I71: 119.42 | J71: 120.78 | K71: 118.05 | L71: 114.65 | M71: 95.20425
A72: 62 | B72: BHARATFORG | C72: 446.8 | D72: 448.67 | E72: 442.33 | F72: 437.87 | G72: 431.53 | H72: 453.13 | I72: 459.47 | J72: 463.93 | K72: 455 | L72: 444.2 | M72: 19.46588
A73: 63 | B73: BHEL | C73: 51.8 | D73: 52.88 | E73: 50.27 | F73: 48.73 | G73: 46.12 | H73: 54.42 | I73: 57.03 | J73: 58.57 | K73: 55.5 | L73: 51.35 | M73: 573.24642
A74: 64 | B74: BPCL | C74: 534.1 | D74: 531.68 | E74: 524.77 | F74: 515.43 | G74: 508.52 | H74: 541.02 | I74: 547.93 | J74: 557.27 | K74: 538.6 | L74: 522.35 | M74: 135.74072
A75: 65 | B75: BHARTIARTL | C75: 374.1 | D75: 379.27 | E75: 362.03 | F75: 349.97 | G75: 332.73 | H75: 391.33 | I75: 408.57 | J75: 420.63 | K75: 396.5 | L75: 367.2 | M75: 113.57444
A76: 66 | B76: INFRATEL | C76: 258.8 | D76: 260.35 | E76: 254.70 | F76: 250.60 | G76: 244.95 | H76: 264.45 | I76: 270.10 | J76: 274.20 | K76: 266 | L76: 256.25 | M76: 33.66265
A77: 67 | B77: BIOCON | C77: 256.95 | D77: 258.12 | E77: 254.88 | F77: 252.82 | G77: 249.58 | H77: 260.18 | I77: 263.42 | J77: 265.48 | K77: 261.35 | L77: 256.05 | M77: 24.1644
A78: 68 | B78: BIRLACORPN | C78: 576 | D78: 580.48 | E78: 561.07 | F78: 546.13 | G78: 526.72 | H78: 595.42 | I78: 614.83 | J78: 629.77 | K78: 599.9 | L78: 565.55 | M78: 0.39673
A79: 69 | B79: BSOFT | C79: 67.2 | D79: 67.00 | E79: 66.20 | F79: 65.20 | G79: 64.40 | H79: 68.00 | I79: 68.80 | J79: 69.80 | K79: 67.8 | L79: 66 | M79: 2.67738
A80: 70 | B80: BLISSGVS | C80: 135.2 | D80: 135.67 | E80: 129.53 | F80: 123.87 | G80: 117.73 | H80: 141.33 | I80: 147.47 | J80: 153.13 | K80: 141.8 | L80: 130 | M80: 2.87472
A81: 71 | B81: BLUEDART | C81: 2328.6 | D81: 2313.57 | E81: 2284.23 | F81: 2239.87 | G81: 2210.53 | H81: 2357.93 | I81: 2387.27 | J81: 2431.63 | K81: 2342.9 | L81: 2269.2 | M81: 0.03175
A82: 72 | B82: BLUESTARCO | C82: 866.7 | D82: 855.20 | E82: 838.40 | F82: 810.10 | G82: 793.30 | H82: 883.50 | I82: 900.30 | J82: 928.60 | K82: 872 | L82: 826.9 | M82: 1.20259
A83: 73 | B83: BBTC | C83: 1170.1 | D83: 1178.00 | E83: 1152.15 | F83: 1134.20 | G83: 1108.35 | H83: 1195.95 | I83: 1221.80 | J83: 1239.75 | K83: 1203.85 | L83: 1160.05 | M83: 1.37926
A84: 74 | B84: BOMDYEING | C84: 78.7 | D84: 78.97 | E84: 76.33 | F84: 73.97 | G84: 71.33 | H84: 81.33 | I84: 83.97 | J84: 86.33 | K84: 81.6 | L84: 76.6 | M84: 26.12718
A85: 75 | B85: BOSCHLTD | C85: 14568.85 | D85: 14476.95 | E85: 14253.90 | F85: 13938.95 | G85: 13715.90 | H85: 14791.90 | I85: 15014.95 | J85: 15329.90 | K85: 14700 | L85: 14162 | M85: 0.21606
A86: 76 | B86: BRIGADE | C86: 195.15 | D86: 198.08 | E86: 190.17 | F86: 185.18 | G86: 177.27 | H86: 203.07 | I86: 210.98 | J86: 215.97 | K86: 206 | L86: 193.1 | M86: 1.89356
A87: 77 | B87: BRITANNIA | C87: 3248.05 | D87: 3253.35 | E87: 3214.80 | F87: 3181.55 | G87: 3143.00 | H87: 3286.60 | I87: 3325.15 | J87: 3358.40 | K87: 3291.9 | L87: 3220.1 | M87: 4.35837
A88: 78 | B88: CARERATING | C88: 525.05 | D88: 527.77 | E88: 514.28 | F88: 503.52 | G88: 490.03 | H88: 538.53 | I88: 552.02 | J88: 562.78 | K88: 541.25 | L88: 517 | M88: 1.7794
A89: 79 | B89: CCL | C89: 227.45 | D89: 227.23 | E89: 224.57 | F89: 221.68 | G89: 219.02 | H89: 230.12 | I89: 232.78 | J89: 235.67 | K89: 229.9 | L89: 224.35 | M89: 5.48879
A90: 80 | B90: CESC | C90: 804.6 | D90: 807.77 | E90: 795.53 | F90: 786.47 | G90: 774.23 | H90: 816.83 | I90: 829.07 | J90: 838.13 | K90: 820 | L90: 798.7 | M90: 5.4098
A91: 81 | B91: CGPOWER | C91: 14.85 | D91: 14.75 | E91: 14.45 | F91: 14.05 | G91: 13.75 | H91: 15.15 | I91: 15.45 | J91: 15.85 | K91: 15.05 | L91: 14.35 | M91: 15.7399
A92: 82 | B92: CRISIL | C92: 1360.8 | D92: 1371.72 | E92: 1344.43 | F92: 1328.07 | G92: 1300.78 | H92: 1388.08 | I92: 1415.37 | J92: 1431.73 | K92: 1399 | L92: 1355.35 | M92: 0.84159
A93: 83 | B93: CADILAHC | C93: 245.25 | D93: 244.18 | E93: 239.87 | F93: 234.48 | G93: 230.17 | H93: 249.57 | I93: 253.88 | J93: 259.27 | K93: 248.5 | L93: 238.8 | M93: 10.79784
A94: 84 | B94: CANFINHOME | C94: 395.8 | D94: 396.75 | E94: 390.50 | F94: 385.20 | G94: 378.95 | H94: 402.05 | I94: 408.30 | J94: 413.60 | K94: 403 | L94: 391.45 | M94: 1.94725
A95: 85 | B95: CANBK | C95: 189.7 | D95: 190.87 | E95: 186.53 | F95: 183.37 | G95: 179.03 | H95: 194.03 | I95: 198.37 | J95: 201.53 | K95: 195.2 | L95: 187.7 | M95: 63.62785
A96: 86 | B96: CAPLIPOINT | C96: 387.75 | D96: 391.23 | E96: 382.52 | F96: 377.28 | G96: 368.57 | H96: 396.47 | I96: 405.18 | J96: 410.42 | K96: 399.95 | L96: 386 | M96: 0.274
A97: 87 | B97: CGCL | C97: 207.6 | D97: 208.13 | E97: 204.97 | F97: 202.33 | G97: 199.17 | H97: 210.77 | I97: 213.93 | J97: 216.57 | K97: 211.3 | L97: 205.5 | M97: 3.81547
A98: 88 | B98: CARBORUNIV | C98: 300.9 | D98: 303.37 | E98: 294.08 | F98: 287.27 | G98: 277.98 | H98: 310.18 | I98: 319.47 | J98: 326.28 | K98: 312.65 | L98: 296.55 | M98: 0.29081
A99: 89 | B99: CASTROLIND | C99: 134.5 | D99: 134.03 | E99: 133.07 | F99: 131.63 | G99: 130.67 | H99: 135.47 | I99: 136.43 | J99: 137.87 | K99: 135 | L99: 132.6 | M99: 16.05263
A100: 90 | B100: CEATLTD | C100: 961.35 | D100: 962.50 | E100: 951.00 | F100: 940.65 | G100: 929.15 | H100: 972.85 | I100: 984.35 | J100: 994.70 | K100: 974 | L100: 952.15 | M100: 0.95134
A101: 91 | B101: CENTRALBK | C101: 17 | D101: 16.98 | E101: 16.17 | F101: 15.33 | G101: 14.52 | H101: 17.82 | I101: 18.63 | J101: 19.47 | K101: 17.8 | L101: 16.15 | M101: 4.29957
A102: 92 | B102: CDSL | C102: 205.5 | D102: 207.30 | E102: 202.70 | F102: 199.90 | G102: 195.30 | H102: 210.10 | I102: 214.70 | J102: 217.50 | K102: 211.9 | L102: 204.5 | M102: 2.55471
A103: 93 | B103: CENTURYPLY | C103: 167.3 | D103: 166.60 | E103: 162.20 | F103: 157.10 | G103: 152.70 | H103: 171.70 | I103: 176.10 | J103: 181.20 | K103: 171 | L103: 161.5 | M103: 2.14532
A104: 94 | B104: CERA | C104: 2599.75 | D104: 2620.97 | E104: 2569.93 | F104: 2540.12 | G104: 2489.08 | H104: 2650.78 | I104: 2701.82 | J104: 2731.63 | K104: 2672 | L104: 2591.15 | M104: 0.06065
A105: 95 | B105: CHALET | C105: 343.45 | D105: 327.20 | E105: 309.45 | F105: 275.45 | G105: 257.70 | H105: 361.20 | I105: 378.95 | J105: 412.95 | K105: 344.95 | L105: 293.2 | M105: 0.06761
A106: 96 | B106: CHAMBLFERT | C106: 156.2 | D106: 157.33 | E106: 153.67 | F106: 151.13 | G106: 147.47 | H106: 159.87 | I106: 163.53 | J106: 166.07 | K106: 161 | L106: 154.8 | M106: 2.46022
A107: 97 | B107: CHENNPETRO | C107: 165.2 | D107: 167.05 | E107: 161.90 | F107: 158.60 | G107: 153.45 | H107: 170.35 | I107: 175.50 | J107: 178.80 | K107: 172.2 | L107: 163.75 | M107: 2.98477
A108: 98 | B108: CHOLAHLDNG | C108: 462.9 | D108: 462.35 | E108: 453.75 | F108: 444.60 | G108: 436.00 | H108: 471.50 | I108: 480.10 | J108: 489.25 | K108: 470.95 | L108: 453.2 | M108: 1.59568
A109: 99 | B109: CHOLAFIN | C109: 294.55 | D109: 298.68 | E109: 287.37 | F109: 280.18 | G109: 268.87 | H109: 305.87 | I109: 317.18 | J109: 324.37 | K109: 310 | L109: 291.5 | M109: 13.22935
A110: 100 | B110: CIPLA | C110: 453.9 | D110: 450.62 | E110: 443.48 | F110: 433.07 | G110: 425.93 | H110: 461.03 | I110: 468.17 | J110: 478.58 | K110: 457.75 | L110: 440.2 | M110: 23.3381
A111: 101 | B111: CUB | C111: 210.15 | D111: 211.35 | E111: 206.30 | F111: 202.45 | G111: 197.40 | H111: 215.20 | I111: 220.25 | J111: 224.10 | K111: 216.4 | L111: 207.5 | M111: 16.70781
A112: 102 | B112: COALINDIA | C112: 208.8 | D112: 207.35 | E112: 204.75 | F112: 200.70 | G112: 198.10 | H112: 211.40 | I112: 214.00 | J112: 218.05 | K112: 209.95 | L112: 203.3 | M112: 97.95154
A113: 103 | B113: COCHINSHIP | C113: 337.35 | D113: 335.92 | E113: 331.83 | F113: 326.32 | G113: 322.23 | H113: 341.43 | I113: 345.52 | J113: 351.03 | K113: 340 | L113: 330.4 | M113: 9.35181
A114: 104 | B114: COFFEEDAY | C114: 32.1 | D114: 33.20 | E114: 31.00 | F114: 29.90 | G114: 27.70 | H114: 34.30 | I114: 36.50 | J114: 37.60 | K114: 35.4 | L114: 32.1 | M114: 21.27811
A115: 105 | B115: COLPAL | C115: 1533.2 | D115: 1537.37 | E115: 1519.83 | F115: 1506.47 | G115: 1488.93 | H115: 1550.73 | I115: 1568.27 | J115: 1581.63 | K115: 1554.9 | L115: 1524 | M115: 4.37466
A116: 106 | B116: CONCOR | C116: 607.95 | D116: 614.82 | E116: 596.88 | F116: 585.82 | G116: 567.88 | H116: 625.88 | I116: 643.82 | J116: 654.88 | K116: 632.75 | L116: 603.75 | M116: 28.47565
A117: 107 | B117: COROMANDEL | C117: 418.3 | D117: 418.13 | E117: 414.27 | F117: 410.23 | G117: 406.37 | H117: 422.17 | I117: 426.03 | J117: 430.07 | K117: 422 | L117: 414.1 | M117: 3.4744
A118: 108 | B118: CORPBANK | C118: 14.4 | D118: 14.42 | E118: 13.98 | F118: 13.57 | G118: 13.13 | H118: 14.83 | I118: 15.27 | J118: 15.68 | K118: 14.85 | L118: 14 | M118: 1.70601
A119: 109 | B119: COX&KINGS | C119: 2.2 | D119: 2.20 | E119: 2.20 | F119: 2.20 | G119: 2.20 | H119: 2.20 | I119: 2.20 | J119: 2.20 | K119: 2.2 | L119: 2.2 | M119: 3.72139
A120: 110 | B120: CREDITACC | C120: 635 | D120: 638.40 | E120: 622.85 | F120: 610.70 | G120: 595.15 | H120: 650.55 | I120: 666.10 | J120: 678.25 | K120: 653.95 | L120: 626.25 | M120: 7.26136
A121: 111 | B121: CROMPTON | C121: 265.5 | D121: 265.88 | E121: 262.77 | F121: 260.03 | G121: 256.92 | H121: 268.62 | I121: 271.73 | J121: 274.47 | K121: 269 | L121: 263.15 | M121: 7.65312
A122: 112 | B122: CUMMINSIND | C122: 578.7 | D122: 581.23 | E122: 572.47 | F122: 566.23 | G122: 557.47 | H122: 587.47 | I122: 596.23 | J122: 602.47 | K122: 590 | L122: 575 | M122: 4.59932
A123: 113 | B123: CYIENT | C123: 423.1 | D123: 430.78 | E123: 413.52 | F123: 403.93 | G123: 386.67 | H123: 440.37 | I123: 457.63 | J123: 467.22 | K123: 448.05 | L123: 421.2 | M123: 2.642
A124: 114 | B124: DBCORP | C124: 155.45 | D124: 156.17 | E124: 153.63 | F124: 151.82 | G124: 149.28 | H124: 157.98 | I124: 160.52 | J124: 162.33 | K124: 158.7 | L124: 154.35 | M124: 0.61619
A125: 115 | B125: DCBBANK | C125: 180.8 | D125: 177.42 | E125: 171.48 | F125: 162.17 | G125: 156.23 | H125: 186.73 | I125: 192.67 | J125: 201.98 | K125: 183.35 | L125: 168.1 | M125: 22.88261
A126: 116 | B126: DCMSHRIRAM | C126: 392 | D126: 394.07 | E126: 388.13 | F126: 384.27 | G126: 378.33 | H126: 397.93 | I126: 403.87 | J126: 407.73 | K126: 400 | L126: 390.2 | M126: 1.01777
A127: 117 | B127: DLF | C127: 178.2 | D127: 176.85 | E127: 170.70 | F127: 163.20 | G127: 157.05 | H127: 184.35 | I127: 190.50 | J127: 198.00 | K127: 183 | L127: 169.35 | M127: 212.73741
A128: 118 | B128: DABUR | C128: 472.6 | D128: 472.77 | E128: 465.53 | F128: 458.47 | G128: 451.23 | H128: 479.83 | I128: 487.07 | J128: 494.13 | K128: 480 | L128: 465.7 | M128: 19.81127
A129: 119 | B129: DALBHARAT | C129: 804.5 | D129: 813.12 | E129: 788.18 | F129: 771.87 | G129: 746.93 | H129: 829.43 | I129: 854.37 | J129: 870.68 | K129: 838.05 | L129: 796.8 | M129: 1.41546
A130: 120 | B130: DEEPAKNTR | C130: 330.75 | D130: 327.77 | E130: 321.13 | F130: 311.52 | G130: 304.88 | H130: 337.38 | I130: 344.02 | J130: 353.63 | K130: 334.4 | L130: 318.15 | M130: 3.88913
A131: 121 | B131: DELTACORP | C131: 190.6 | D131: 190.47 | E131: 185.13 | F131: 179.67 | G131: 174.33 | H131: 195.93 | I131: 201.27 | J131: 206.73 | K131: 195.8 | L131: 185 | M131: 16.70077
A132: 122 | B132: DEN | C132: 48.6 | D132: 49.20 | E132: 47.40 | F132: 46.20 | G132: 44.40 | H132: 50.40 | I132: 52.20 | J132: 53.40 | K132: 51 | L132: 48 | M132: 0.36059
A133: 123 | B133: DHFL | C133: 20.4 | D133: 20.68 | E133: 20.12 | F133: 19.83 | G133: 19.27 | H133: 20.97 | I133: 21.53 | J133: 21.82 | K133: 21.25 | L133: 20.4 | M133: 51.30313
A134: 124 | B134: DBL | C134: 416.6 | D134: 408.53 | E134: 393.07 | F134: 369.53 | G134: 354.07 | H134: 432.07 | I134: 447.53 | J134: 471.07 | K134: 424 | L134: 385 | M134: 4.55309
A135: 125 | B135: DISHTV | C135: 14.55 | D135: 15.13 | E135: 13.62 | F135: 12.68 | G135: 11.17 | H135: 16.07 | I135: 17.58 | J135: 18.52 | K135: 16.65 | L135: 14.2 | M135: 456.59666
A136: 126 | B136: DCAL | C136: 151.9 | D136: 153.62 | E136: 148.38 | F136: 144.87 | G136: 139.63 | H136: 157.13 | I136: 162.37 | J136: 165.88 | K136: 158.85 | L136: 150.1 | M136: 0.84837
A137: 127 | B137: DIVISLAB | C137: 1741.15 | D137: 1746.98 | E137: 1720.42 | F137: 1699.68 | G137: 1673.12 | H137: 1767.72 | I137: 1794.28 | J137: 1815.02 | K137: 1773.55 | L137: 1726.25 | M137: 8.14403
A138: 128 | B138: DIXON | C138: 2991.35 | D138: 3053.52 | E138: 2917.63 | F138: 2843.92 | G138: 2708.03 | H138: 3127.23 | I138: 3263.12 | J138: 3336.83 | K138: 3189.4 | L138: 2979.8 | M138: 0.18937
A139: 129 | B139: LALPATHLAB | C139: 1480.2 | D139: 1483.07 | E139: 1417.23 | F139: 1354.27 | G139: 1288.43 | H139: 1546.03 | I139: 1611.87 | J139: 1674.83 | K139: 1548.9 | L139: 1420.1 | M139: 1.20431
A140: 130 | B140: DRREDDY | C140: 2810.75 | D140: 2780.77 | E140: 2740.83 | F140: 2670.92 | G140: 2630.98 | H140: 2850.68 | I140: 2890.62 | J140: 2960.53 | K140: 2820.7 | L140: 2710.85 | M140: 6.99344
A141: 131 | B141: EIDPARRY | C141: 159.1 | D141: 159.18 | E141: 157.32 | F141: 155.53 | G141: 153.67 | H141: 160.97 | I141: 162.83 | J141: 164.62 | K141: 161.05 | L141: 157.4 | M141: 4.33126
A142: 132 | B142: EIHOTEL | C142: 178.1 | D142: 178.07 | E142: 174.53 | F142: 170.97 | G142: 167.43 | H142: 181.63 | I142: 185.17 | J142: 188.73 | K142: 181.6 | L142: 174.5 | M142: 0.62914
A143: 133 | B143: EDELWEISS | C143: 96.35 | D143: 94.17 | E143: 91.43 | F143: 86.52 | G143: 83.78 | H143: 99.08 | I143: 101.82 | J143: 106.73 | K143: 96.9 | L143: 89.25 | M143: 69.63769
A144: 134 | B144: EICHERMOT | C144: 19978.85 | D144: 20115.70 | E144: 19718.15 | F144: 19457.45 | G144: 19059.90 | H144: 20376.40 | I144: 20773.95 | J144: 21034.65 | K144: 20513.25 | L144: 19855 | M144: 1.61392
A145: 135 | B145: ELGIEQUIP | C145: 271.25 | D145: 270.42 | E145: 268.83 | F145: 266.42 | G145: 264.83 | H145: 272.83 | I145: 274.42 | J145: 276.83 | K145: 272 | L145: 268 | M145: 0.07126
A146: 136 | B146: EMAMILTD | C146: 338.75 | D146: 337.33 | E146: 327.67 | F146: 316.58 | G146: 306.92 | H146: 348.42 | I146: 358.08 | J146: 369.17 | K146: 347 | L146: 326.25 | M146: 2.8837
A147: 137 | B147: ENDURANCE | C147: 1043.65 | D147: 1037.55 | E147: 1021.10 | F147: 998.55 | G147: 982.10 | H147: 1060.10 | I147: 1076.55 | J147: 1099.10 | K147: 1054 | L147: 1015 | M147: 0.08405
A148: 138 | B148: ENGINERSIN | C148: 107.1 | D148: 107.70 | E148: 105.55 | F148: 104.00 | G148: 101.85 | H148: 109.25 | I148: 111.40 | J148: 112.95 | K148: 109.85 | L148: 106.15 | M148: 11.01637
A149: 139 | B149: EQUITAS | C149: 101.55 | D149: 102.48 | E149: 99.97 | F149: 98.38 | G149: 95.87 | H149: 104.07 | I149: 106.58 | J149: 108.17 | K149: 105 | L149: 100.9 | M149: 32.96577
A150: 140 | B150: ERIS | C150: 425.4 | D150: 424.10 | E150: 418.30 | F150: 411.20 | G150: 405.40 | H150: 431.20 | I150: 437.00 | J150: 444.10 | K150: 429.9 | L150: 417 | M150: 2.24425
A151: 141 | B151: ESCORTS | C151: 645.15 | D151: 649.53 | E151: 638.67 | F151: 632.18 | G151: 621.32 | H151: 656.02 | I151: 666.88 | J151: 673.37 | K151: 660.4 | L151: 643.05 | M151: 18.74086
A152: 142 | B152: ESSELPACK | C152: 118.65 | D152: 118.35 | E152: 117.30 | F152: 115.95 | G152: 114.90 | H152: 119.70 | I152: 120.75 | J152: 122.10 | K152: 119.4 | L152: 117 | M152: 0.82699
A153: 143 | B153: EXIDEIND | C153: 180.2 | D153: 181.57 | E153: 178.63 | F153: 177.07 | G153: 174.13 | H153: 183.13 | I153: 186.07 | J153: 187.63 | K153: 184.5 | L153: 180 | M153: 26.6987
A154: 144 | B154: FDC | C154: 160.95 | D154: 160.98 | E154: 160.02 | F154: 159.08 | G154: 158.12 | H154: 161.92 | I154: 162.88 | J154: 163.82 | K154: 161.95 | L154: 160.05 | M154: 0.53614
A155: 145 | B155: FEDERALBNK | C155: 83.55 | D155: 83.88 | E155: 82.82 | F155: 82.08 | G155: 81.02 | H155: 84.62 | I155: 85.68 | J155: 86.42 | K155: 84.95 | L155: 83.15 | M155: 120.37083
A156: 146 | B156: FMGOETZE | C156: 541.05 | D156: 546.52 | E156: 533.73 | F156: 526.42 | G156: 513.63 | H156: 553.83 | I156: 566.62 | J156: 573.93 | K156: 559.3 | L156: 539.2 | M156: 0.02262
A157: 147 | B157: FINEORG | C157: 1970.9 | D157: 1999.27 | E157: 1921.63 | F157: 1872.37 | G157: 1794.73 | H157: 2048.53 | I157: 2126.17 | J157: 2175.43 | K157: 2076.9 | L157: 1950 | M157: 0.23906
A158: 148 | B158: FINCABLES | C158: 377.4 | D158: 376.50 | E158: 368.50 | F158: 359.60 | G158: 351.60 | H158: 385.40 | I158: 393.40 | J158: 402.30 | K158: 384.5 | L158: 367.6 | M158: 0.61911
A159: 149 | B159: FINPIPE | C159: 616.55 | D159: 618.45 | E159: 610.00 | F159: 603.45 | G159: 595.00 | H159: 625.00 | I159: 633.45 | J159: 640.00 | K159: 626.9 | L159: 611.9 | M159: 0.40912
A160: 150 | B160: FSL | C160: 51.85 | D160: 51.27 | E160: 49.53 | F160: 47.22 | G160: 45.48 | H160: 53.58 | I160: 55.32 | J160: 57.63 | K160: 53 | L160: 48.95 | M160: 50.47496
A161: 151 | B161: FORTIS | C161: 138.4 | D161: 138.38 | E161: 136.87 | F161: 135.33 | G161: 133.82 | H161: 139.92 | I161: 141.43 | J161: 142.97 | K161: 139.9 | L161: 136.85 | M161: 8.10369
A162: 152 | B162: FCONSUMER | C162: 24.2 | D162: 24.30 | E162: 23.90 | F162: 23.60 | G162: 23.20 | H162: 24.60 | I162: 25.00 | J162: 25.30 | K162: 24.7 | L162: 24 | M162: 7.27485
A163: 153 | B163: FLFL | C163: 401.2 | D163: 403.47 | E163: 394.23 | F163: 387.27 | G163: 378.03 | H163: 410.43 | I163: 419.67 | J163: 426.63 | K163: 412.7 | L163: 396.5 | M163: 0.2605
A164: 154 | B164: FRETAIL | C164: 380.55 | D164: 385.18 | E164: 373.37 | F164: 366.18 | G164: 354.37 | H164: 392.37 | I164: 404.18 | J164: 411.37 | K164: 397 | L164: 378 | M164: 2.55508
A165: 155 | B165: GAIL | C165: 129.5 | D165: 129.75 | E165: 128.55 | F165: 127.60 | G165: 126.40 | H165: 130.70 | I165: 131.90 | J165: 132.85 | K165: 130.95 | L165: 128.8 | M165: 76.44747
A166: 156 | B166: GEPIL | C166: 722.85 | D166: 718.28 | E166: 711.57 | F166: 700.28 | G166: 693.57 | H166: 729.57 | I166: 736.28 | J166: 747.57 | K166: 725 | L166: 707 | M166: 0.09263
A167: 157 | B167: GET&D | C167: 187.85 | D167: 189.05 | E167: 183.10 | F167: 178.35 | G167: 172.40 | H167: 193.80 | I167: 199.75 | J167: 204.50 | K167: 195 | L167: 184.3 | M167: 0.22577
A168: 158 | B168: GHCL | C168: 212.6 | D168: 208.93 | E168: 203.17 | F168: 193.73 | G168: 187.97 | H168: 218.37 | I168: 224.13 | J168: 233.57 | K168: 214.7 | L168: 199.5 | M168: 3.01408
A169: 159 | B169: GMRINFRA | C169: 19.1 | D169: 19.17 | E169: 18.68 | F169: 18.27 | G169: 17.78 | H169: 19.58 | I169: 20.07 | J169: 20.48 | K169: 19.65 | L169: 18.75 | M169: 149.65673
A170: 160 | B170: GALAXYSURF | C170: 1515.05 | D170: 1509.17 | E170: 1488.18 | F170: 1461.32 | G170: 1440.33 | H170: 1536.03 | I170: 1557.02 | J170: 1583.88 | K170: 1530.15 | L170: 1482.3 | M170: 0.06551
A171: 161 | B171: GARFIBRES | C171: 1147.25 | D171: 1150.25 | E171: 1123.10 | F171: 1098.95 | G171: 1071.80 | H171: 1174.40 | I171: 1201.55 | J171: 1225.70 | K171: 1177.4 | L171: 1126.1 | M171: 0.19317
A172: 162 | B172: GAYAPROJ | C172: 123.45 | D172: 122.43 | E172: 119.97 | F172: 116.48 | G172: 114.02 | H172: 125.92 | I172: 128.38 | J172: 131.87 | K172: 124.9 | L172: 118.95 | M172: 0.76722
A173: 163 | B173: GICRE | C173: 260.1 | D173: 269.70 | E173: 248.40 | F173: 236.70 | G173: 215.40 | H173: 281.40 | I173: 302.70 | J173: 314.40 | K173: 291 | L173: 258 | M173: 7.80941
A174: 164 | B174: GILLETTE | C174: 7768.65 | D174: 7795.18 | E174: 7695.62 | F174: 7622.58 | G174: 7523.02 | H174: 7868.22 | I174: 7967.78 | J174: 8040.82 | K174: 7894.75 | L174: 7722.15 | M174: 0.04933
A175: 165 | B175: GLAXO | C175: 1481.2 | D175: 1470.48 | E175: 1436.97 | F175: 1392.73 | G175: 1359.22 | H175: 1514.72 | I175: 1548.23 | J175: 1592.47 | K175: 1504 | L175: 1426.25 | M175: 1.15109
A176: 166 | B176: GLENMARK | C176: 299.1 | D176: 299.15 | E176: 292.90 | F176: 286.70 | G176: 280.45 | H176: 305.35 | I176: 311.60 | J176: 317.80 | K176: 305.4 | L176: 292.95 | M176: 16.23701
A177: 167 | B177: GODFRYPHLP | C177: 1080.7 | D177: 1092.85 | E177: 1060.70 | F177: 1040.70 | G177: 1008.55 | H177: 1112.85 | I177: 1145.00 | J177: 1165.00 | K177: 1125 | L177: 1072.85 | M177: 0.79172
A178: 168 | B178: GODREJAGRO | C178: 518 | D178: 519.62 | E178: 510.38 | F178: 502.77 | G178: 493.53 | H178: 527.23 | I178: 536.47 | J178: 544.08 | K178: 528.85 | L178: 512 | M178: 0.9732
A179: 169 | B179: GODREJCP | C179: 699.9 | D179: 703.13 | E179: 691.77 | F179: 683.63 | G179: 672.27 | H179: 711.27 | I179: 722.63 | J179: 730.77 | K179: 714.5 | L179: 695 | M179: 10.74009
A180: 170 | B180: GODREJIND | C180: 393.25 | D180: 393.50 | E180: 382.50 | F180: 371.75 | G180: 360.75 | H180: 404.25 | I180: 415.25 | J180: 426.00 | K180: 404.5 | L180: 382.75 | M180: 1.40771
A181: 171 | B181: GODREJPROP | C181: 966.95 | D181: 971.32 | E181: 955.63 | F181: 944.32 | G181: 928.63 | H181: 982.63 | I181: 998.32 | J181: 1009.63 | K181: 987 | L181: 960 | M181: 1.97339
A182: 172 | B182: GRANULES | C182: 114.3 | D182: 112.23 | E182: 104.62 | F182: 94.93 | G182: 87.32 | H182: 121.92 | I182: 129.53 | J182: 139.22 | K182: 119.85 | L182: 102.55 | M182: 87.1805
A183: 173 | B183: GRAPHITE | C183: 311.35 | D183: 311.25 | E183: 295.10 | F183: 278.85 | G183: 262.70 | H183: 327.50 | I183: 343.65 | J183: 359.90 | K183: 327.4 | L183: 295 | M183: 46.1779
A184: 174 | B184: GRASIM | C184: 756.05 | D184: 756.83 | E184: 741.67 | F184: 727.28 | G184: 712.12 | H184: 771.22 | I184: 786.38 | J184: 800.77 | K184: 772 | L184: 742.45 | M184: 21.743
A185: 175 | B185: GESHIP | C185: 304.25 | D185: 298.92 | E185: 292.88 | F185: 281.52 | G185: 275.48 | H185: 310.28 | I185: 316.32 | J185: 327.68 | K185: 304.95 | L185: 287.55 | M185: 5.08371
A186: 176 | B186: GREAVESCOT | C186: 132.15 | D186: 130.87 | E186: 128.93 | F186: 125.72 | G186: 123.78 | H186: 134.08 | I186: 136.02 | J186: 139.23 | K186: 132.8 | L186: 127.65 | M186: 1.76428
A187: 177 | B187: GRINDWELL | C187: 616.5 | D187: 617.28 | E187: 604.57 | F187: 592.63 | G187: 579.92 | H187: 629.22 | I187: 641.93 | J187: 653.87 | K187: 630 | L187: 605.35 | M187: 0.3246
A188: 178 | B188: GUJALKALI | C188: 449.3 | D188: 446.10 | E188: 438.20 | F188: 427.10 | G188: 419.20 | H188: 457.20 | I188: 465.10 | J188: 476.20 | K188: 454 | L188: 435 | M188: 0.19814
A189: 179 | B189: GUJGASLTD | C189: 181.7 | D189: 180.32 | E189: 178.38 | F189: 175.07 | G189: 173.13 | H189: 183.63 | I189: 185.57 | J189: 188.88 | K189: 182.25 | L189: 177 | M189: 3.61998
A190: 180 | B190: GMDCLTD | C190: 58.55 | D190: 58.77 | E190: 58.03 | F190: 57.52 | G190: 56.78 | H190: 59.28 | I190: 60.02 | J190: 60.53 | K190: 59.5 | L190: 58.25 | M190: 2.27497
A191: 181 | B191: GNFC | C191: 198.55 | D191: 199.43 | E191: 196.87 | F191: 195.18 | G191: 192.62 | H191: 201.12 | I191: 203.68 | J191: 205.37 | K191: 202 | L191: 197.75 | M191: 2.46526
A192: 182 | B192: GPPL | C192: 79.9 | D192: 79.32 | E192: 78.63 | F192: 77.37 | G192: 76.68 | H192: 80.58 | I192: 81.27 | J192: 82.53 | K192: 80 | L192: 78.05 | M192: 0.91415
A193: 183 | B193: GSFC | C193: 76.6 | D193: 77.00 | E193: 75.95 | F193: 75.30 | G193: 74.25 | H193: 77.65 | I193: 78.70 | J193: 79.35 | K193: 78.05 | L193: 76.35 | M193: 2.86934
A194: 184 | B194: GSPL | C194: 208.5 | D194: 208.88 | E194: 206.87 | F194: 205.23 | G194: 203.22 | H194: 210.52 | I194: 212.53 | J194: 214.17 | K194: 210.9 | L194: 207.25 | M194: 6.05527
A195: 185 | B195: GULFOILLUB | C195: 883.7 | D195: 875.18 | E195: 862.52 | F195: 841.33 | G195: 828.67 | H195: 896.37 | I195: 909.03 | J195: 930.22 | K195: 887.85 | L195: 854 | M195: 0.03202
A196: 186 | B196: HEG | C196: 1075.45 | D196: 1056.35 | E196: 994.70 | F196: 913.95 | G196: 852.30 | H196: 1137.10 | I196: 1198.75 | J196: 1279.50 | K196: 1118 | L196: 975.6 | M196: 14.19266
A197: 187 | B197: HCLTECH | C197: 1064.45 | D197: 1070.62 | E197: 1045.33 | F197: 1026.22 | G197: 1000.93 | H197: 1089.73 | I197: 1115.02 | J197: 1134.13 | K197: 1095.9 | L197: 1051.5 | M197: 27.51243
A198: 188 | B198: HDFCAMC | C198: 3020.6 | D198: 2993.27 | E198: 2911.83 | F198: 2803.07 | G198: 2721.63 | H198: 3102.03 | I198: 3183.47 | J198: 3292.23 | K198: 3074.7 | L198: 2884.5 | M198: 8.06845
A199: 189 | B199: HDFCBANK | C199: 1239.3 | D199: 1242.97 | E199: 1228.93 | F199: 1218.57 | G199: 1204.53 | H199: 1253.33 | I199: 1267.37 | J199: 1277.73 | K199: 1257 | L199: 1232.6 | M199: 100.03114
A200: 190 | B200: HDFCLIFE | C200: 611.3 | D200: 613.68 | E200: 603.12 | F200: 594.93 | G200: 584.37 | H200: 621.87 | I200: 632.43 | J200: 640.62 | K200: 624.25 | L200: 605.5 | M200: 26.73829
A201: 191 | B201: HATHWAY | C201: 21.2 | D201: 21.60 | E201: 20.80 | F201: 20.40 | G201: 19.60 | H201: 22.00 | I201: 22.80 | J201: 23.20 | K201: 22.4 | L201: 21.2 | M201: 3.95562
A202: 192 | B202: HATSUN | C202: 625.85 | D202: 626.95 | E202: 619.90 | F202: 613.95 | G202: 606.90 | H202: 632.90 | I202: 639.95 | J202: 645.90 | K202: 634 | L202: 621 | M202: 0.04581
A203: 193 | B203: HAVELLS | C203: 678.2 | D203: 680.55 | E203: 668.15 | F203: 658.10 | G203: 645.70 | H203: 690.60 | I203: 703.00 | J203: 713.05 | K203: 692.95 | L203: 670.5 | M203: 9.76609
A204: 194 | B204: HEIDELBERG | C204: 190.05 | D204: 190.65 | E204: 186.90 | F204: 183.75 | G204: 180.00 | H204: 193.80 | I204: 197.55 | J204: 200.70 | K204: 194.4 | L204: 187.5 | M204: 2.70318
A205: 195 | B205: HERITGFOOD | C205: 319.3 | D205: 321.77 | E205: 315.73 | F205: 312.17 | G205: 306.13 | H205: 325.33 | I205: 331.37 | J205: 334.93 | K205: 327.8 | L205: 318.2 | M205: 0.52855
A206: 196 | B206: HEROMOTOCO | C206: 2674.65 | D206: 2676.43 | E206: 2639.42 | F206: 2604.18 | G206: 2567.17 | H206: 2711.67 | I206: 2748.68 | J206: 2783.92 | K206: 2713.45 | L206: 2641.2 | M206: 7.9903
... 320 more rows

Sheet Bulk Deals
E6: Back To Main Page
A7: Subject : | B7: BULK DEAL | D7: =Main!B10 -> 2019-10-23
A9: Date | B9: Scrip code | C9: Scrip Name | D9: Client Name | E9: Buy / Sell | F9: Quantity Traded | G9: Trade Price / Wt.Avg.trade price | H9: Exchange
A10: 2019-10-22 | B10: 511463 | C10: ALEXANDER | D10: KAHAR NIKLESH KANAIYABHAI | E10: BUY | F10: 2,200 | G10: 18.40 | H10: BSE
A11: 2019-10-22 | B11: 511463 | C11: ALEXANDER | D11: VANDNA ANIRUDH SETHI | E11: BUY | F11: 95,000 | G11: 18.99 | H11: BSE
A12: 2019-10-22 | B12: 511463 | C12: ALEXANDER | D12: KAHAR NIKLESH KANAIYABHAI | E12: SELL | F12: 50,200 | G12: 19.15 | H12: BSE
A13: 2019-10-22 | B13: 540697 | C13: AMFL | D13: HARSHIDA AMITKUMAR SHAH | E13: BUY | F13: 134,400 | G13: 14.28 | H13: BSE
A14: 2019-10-22 | B14: 540697 | C14: AMFL | D14: RIDDHESHKUMAR GIRISHBHAI BHANDARI | E14: SELL | F14: 78,400 | G14: 14.29 | H14: BSE
A15: 2019-10-22 | B15: 531761 | C15: APOLLOPIPES | D15: ROHIT RAJGOPAL DHOOT | E15: SELL | F15: 80,000 | G15: 375.01 | H15: BSE
A16: 2019-10-22 | B16: 531761 | C16: APOLLOPIPES | D16: ASHISH RAMESHCHANDRA KACHOLIA | E16: BUY | F16: 100,000 | G16: 375.01 | H16: BSE
A17: 2019-10-22 | B17: 507515 | C17: CJGEL | D17: JASPAL RAGHUBIR SINGH | E17: BUY | F17: 34,900 | G17: 8.67 | H17: BSE
A18: 2019-10-22 | B18: 507515 | C18: CJGEL | D18: USHA PANDE | E18: SELL | F18: 33,901 | G18: 8.68 | H18: BSE
A19: 2019-10-22 | B19: 504340 | C19: CONFINT | D19: HARENDRA MAHENDRAPRASAD JANI | E19: SELL | F19: 68,300 | G19: 0.50 | H19: BSE
A20: 2019-10-22 | B20: 540151 | C20: DIKSAT | D20: VINOD HARILAL JHAVERI | E20: SELL | F20: 123,000 | G20: 100 | H20: BSE
A21: 2019-10-22 | B21: 540151 | C21: DIKSAT | D21: NOPEA CAPITAL SERVICES PRIVATE LIMITED | E21: SELL | F21: 225,000 | G21: 100.00 | H21: BSE
A22: 2019-10-22 | B22: 540151 | C22: DIKSAT | D22: HETAL SHASHANK DOSHI | E22: BUY | F22: 348,000 | G22: 100.00 | H22: BSE
A23: 2019-10-22 | B23: 538432 | C23: DIVINUS | D23: AJITSHANKARRAONIKAM | E23: BUY | F23: 57,217 | G23: 26.2 | H23: BSE
A24: 2019-10-22 | B24: 538432 | C24: DIVINUS | D24: NIKHIL GULABCHAND SHAH | E24: SELL | F24: 33,000 | G24: 26.20 | H24: BSE
A25: 2019-10-22 | B25: 538432 | C25: DIVINUS | D25: MANOJKUMAR GUNVANTRAI SOMANI | E25: BUY | F25: 3,483 | G25: 26.18 | H25: BSE
A26: 2019-10-22 | B26: 538432 | C26: DIVINUS | D26: MANOJKUMAR GUNVANTRAI SOMANI | E26: SELL | F26: 27,000 | G26: 26.20 | H26: BSE
A27: 2019-10-22 | B27: 531508 | C27: EVEREADY | D27: GLADIATOR VYAPAAR PRIVATE LIMITED | E27: BUY | F27: 477,000 | G27: 41.7 | H27: BSE
A28: 2019-10-22 | B28: 542850 | C28: GOBLIN | D28: GOENKA BUSINESS & FINANCE LIMITED | E28: SELL | F28: 60,000 | G28: 61.92 | H28: BSE
A29: 2019-10-22 | B29: 508918 | C29: GREYCELLS | D29: LKP SECURITIES LTD | E29: BUY | F29: 48,890 | G29: 18.6 | H29: BSE
A30: 2019-10-22 | B30: 508918 | C30: GREYCELLS | D30: M/SLKPPANDAY | E30: SELL | F30: 48,890 | G30: 18.6 | H30: BSE
A31: 2019-10-22 | B31: 532467 | C31: HAZOOR | D31: IRIS BUSINESS SOLUTIONS PRIVATE LIMITED | E31: BUY | F31: 210,399 | G31: 0.7 | H31: BSE
A32: 2019-10-22 | B32: 541627 | C32: HITECHWIND | D32: DEVANG RAJNIKANT SHAH | E32: SELL | F32: 51,000 | G32: 15.72 | H32: BSE
A33: 2019-10-22 | B33: 500220 | C33: JASCH | D33: DEEPINDER SINGH POONIAN | E33: SELL | F33: 202,972 | G33: 32.6 | H33: BSE
A34: 2019-10-22 | B34: 538765 | C34: JSHL | D34: VIKASH KUMAR GUPTA | E34: SELL | F34: 35,000 | G34: 10.05 | H34: BSE
A35: 2019-10-22 | B35: 538765 | C35: JSHL | D35: AVINASH TIWARI | E35: BUY | F35: 50,000 | G35: 10.05 | H35: BSE
A36: 2019-10-22 | B36: 538765 | C36: JSHL | D36: SANJIV KUMAR MISHRA | E36: BUY | F36: 50,000 | G36: 10.05 | H36: BSE
A37: 2019-10-22 | B37: 538765 | C37: JSHL | D37: NITIN JAISWAL | E37: BUY | F37: 50,000 | G37: 10.05 | H37: BSE
A38: 2019-10-22 | B38: 538765 | C38: JSHL | D38: ANURAAG BAJPAI | E38: SELL | F38: 40,000 | G38: 10.05 | H38: BSE
A39: 2019-10-22 | B39: 538765 | C39: JSHL | D39: RAM SAGAR TIWARI | E39: SELL | F39: 120,000 | G39: 10.05 | H39: BSE
A40: 2019-10-22 | B40: 538928 | C40: KARNAVATI | D40: BHAVESH U MANDALIA | E40: BUY | F40: 82,464 | G40: 27.5 | H40: BSE
A41: 2019-10-22 | B41: 538928 | C41: KARNAVATI | D41: LABHUBEN JAMANBHAI FALDU | E41: SELL | F41: 69,964 | G41: 27.5 | H41: BSE
A42: 2019-10-22 | B42: 538928 | C42: KARNAVATI | D42: FALDU JIGNASA JAMANBHAI | E42: SELL | F42: 70,000 | G42: 27.5 | H42: BSE
A43: 2019-10-22 | B43: 542771 | C43: NOVATEOR | D43: ABHISHEK BHIKHABHAI PATEL | E43: SELL | F43: 36,000 | G43: 45.32 | H43: BSE
A44: 2019-10-22 | B44: 542771 | C44: NOVATEOR | D44: SAGAR RAJESHBHAI JHAVERI | E44: SELL | F44: 36,000 | G44: 44.24 | H44: BSE
A45: 2019-10-22 | B45: 542771 | C45: NOVATEOR | D45: VIPUL HARIDAS THAKKAR | E45: SELL | F45: 48,000 | G45: 45.82 | H45: BSE
A46: 2019-10-22 | B46: 542771 | C46: NOVATEOR | D46: ASHISH HASMUKHLAL SHAH | E46: BUY | F46: 42,000 | G46: 46.41 | H46: BSE
A47: 2019-10-22 | B47: 542771 | C47: NOVATEOR | D47: ASHISH HASMUKHLAL SHAH | E47: SELL | F47: 42,000 | G47: 43.14 | H47: BSE
A48: 2019-10-22 | B48: 542771 | C48: NOVATEOR | D48: JHAVERI TRADING & INVESTMENT PVT LTD | E48: BUY | F48: 30,000 | G48: 43.1 | H48: BSE
A49: 2019-10-22 | B49: 542771 | C49: NOVATEOR | D49: JHAVERI TRADING & INVESTMENT PVT LTD | E49: SELL | F49: 6,000 | G49: 43.25 | H49: BSE
A50: 2019-10-22 | B50: 541634 | C50: RAWEDGE | D50: MIKER FINANCIAL CONSULTANTS PRIVATE LIMITED . | E50: BUY | F50: 68,800 | G50: 72 | H50: BSE
A51: 2019-10-22 | B51: 541634 | C51: RAWEDGE | D51: NITU TRADING COMPANY LIMITED | E51: SELL | F51: 68,800 | G51: 72 | H51: BSE
A52: 2019-10-22 | B52: 534734 | C52: RMCHEM | D52: TRIVEDI TUSHARKUMAR | E52: BUY | F52: 1,525,747 | G52: 0.63 | H52: BSE
A53: 2019-10-22 | B53: 530677 | C53: SUPREME | D53: PRARTHNA PRIVATE LIMITED | E53: BUY | F53: 200,000 | G53: 5.5 | H53: BSE
A54: 2019-10-22 | B54: 530677 | C54: SUPREME | D54: ORIENTAL BANK OF COMMERCE | E54: SELL | F54: 350,000 | G54: 5.51 | H54: BSE
A55: 2019-10-22 | B55: 532090 | C55: VANDANA | D55: KHUSHAL JAIN | E55: SELL | F55: 1,365,717 | G55: 0.26 | H55: BSE
A56: 2019-10-22 | B56: 532090 | C56: VANDANA | D56: MAHESH KULHARI | E56: BUY | F56: 649,414 | G56: 0.26 | H56: BSE
A57: 2019-10-22 | B57: 532090 | C57: VANDANA | D57: MANJU MAHIA | E57: BUY | F57: 700,000 | G57: 0.26 | H57: BSE
A58: 2019-10-22 | B58: 536672 | C58: VCU | D58: GHANSHYAMBHAI MOHANBHAI PATEL | E58: SELL | F58: 250,000 | G58: 13.28 | H58: BSE
A59: 2019-10-22 | B59: 536672 | C59: VCU | D59: SANKET DEEPAK SHAH | E59: BUY | F59: 200,000 | G59: 13.28 | H59: BSE
A60: 2019-10-22 | B60: CKPPRODUCT | C60: CKP Products Limited | D60: TUSHAR SHASHIKANT SHAH | E60: BUY | F60: 21,000 | G60: 33.25 | H60: NSE
A61: 2019-10-22 | B61: EVEREADY | C61: Eveready Industries India | D61: ALWARPET PROPERTIES PRIVATE LIMITED | E61: BUY | F61: 500,000 | G61: 41.69 | H61: NSE
A62: 2019-10-22 | B62: HGINFRA | C62: H.G.Infra Engineering Ltd | D62: FASHIONS BRANDS (INDIA) PRIVATE LIMITED | E62: BUY | F62: 5,553 | G62: 202.51 | H62: NSE
A63: 2019-10-22 | B63: IBULHSGFIN | C63: Indiabulls Hsg Fin Ltd | D63: ALPHAGREP COMMODITIES PRIVATE LIMITED | E63: BUY | F63: 2,259,121 | G63: 227.04 | H63: NSE
A64: 2019-10-22 | B64: IBULHSGFIN | C64: Indiabulls Hsg Fin Ltd | D64: SURJECTIVE RESEARCH CAPITAL LLP | E64: BUY | F64: 3185626 | G64: 229.75 | H64: NSE
A65: 2019-10-22 | B65: IBULHSGFIN | C65: Indiabulls Hsg Fin Ltd | D65: ILLUMINATI TRADING PRIVATE LIMITED | E65: BUY | F65: 2315807 | G65: 227.33 | H65: NSE
A66: 2019-10-22 | B66: SIKKO | C66: Sikko Industries Limited | D66: VIVIDOFFSET PRINTERS PRIVATELIMITED | E66: BUY | F66: 28000 | G66: 26.3 | H66: NSE
A67: 2019-10-22 | B67: SONAHISONA | C67: Sona Hi Sona Jewell G Ltd | D67: NILESHKUMAR SEVANTILAL SHAH | E67: BUY | F67: 150000 | G67: 10.1 | H67: NSE
A68: 2019-10-22 | B68: SONAHISONA | C68: Sona Hi Sona Jewell G Ltd | D68: PARESHKUMAR KIRTIBHAI SHAH | E68: BUY | F68: 110000 | G68: 10.22 | H68: NSE
A69: 2019-10-22 | B69: VINNY | C69: Vinny Overseas Limited | D69: HITESHKUMAR NEMICHAND CHOPRA | E69: BUY | F69: 48000 | G69: 35 | H69: NSE
A70: 2019-10-22 | B70: YESBANK | C70: Yes Bank Limited | D70: ALPHAGREP COMMODITIES PRIVATE LIMITED | E70: BUY | F70: 18784694 | G70: 53.97 | H70: NSE
A71: 2019-10-22 | B71: YESBANK | C71: Yes Bank Limited | D71: TOWER RESEARCH CAPITAL MARKETS INDIA PRIVATE LIMITED | E71: BUY | F71: 50535046 | G71: 54.11 | H71: NSE
A72: 2019-10-22 | B72: YESBANK | C72: Yes Bank Limited | D72: SURJECTIVE RESEARCH CAPITAL LLP | E72: BUY | F72: 22114860 | G72: 53.74 | H72: NSE
A73: 2019-10-22 | B73: AMJUMBO | C73: A and M Jumbo Bags Ltd | D73: SHAH RAKHI NIRAJ | E73: SELL | F73: 80000 | G73: 8 | H73: NSE
A74: 2019-10-22 | B74: CKPLEISURE | C74: CKP Leisure Limited | D74: KAILASH CHANDRA SODHANI HUF | E74: SELL | F74: 92000 | G74: 7.13 | H74: NSE
A75: 2019-10-22 | B75: CKPPRODUCT | C75: CKP Products Limited | D75: DEVANG RAJNIKANT SHAH | E75: SELL | F75: 21000 | G75: 33.25 | H75: NSE
A76: 2019-10-22 | B76: HGINFRA | C76: H.G.Infra Engineering Ltd | D76: FASHIONS BRANDS (INDIA) PRIVATE LIMITED | E76: SELL | F76: 521569 | G76: 199.13 | H76: NSE
A77: 2019-10-22 | B77: IBULHSGFIN | C77: Indiabulls Hsg Fin Ltd | D77: ILLUMINATI TRADING PRIVATE LIMITED | E77: SELL | F77: 2315807 | G77: 227.45 | H77: NSE
A78: 2019-10-22 | B78: IBULHSGFIN | C78: Indiabulls Hsg Fin Ltd | D78: AQR EMERGING EQUITIES FUND L.P. | E78: SELL | F78: 4014808 | G78: 233.96 | H78: NSE
A79: 2019-10-22 | B79: IBULHSGFIN | C79: Indiabulls Hsg Fin Ltd | D79: ALPHAGREP COMMODITIES PRIVATE LIMITED | E79: SELL | F79: 2259121 | G79: 227.17 | H79: NSE
A80: 2019-10-22 | B80: IBULHSGFIN | C80: Indiabulls Hsg Fin Ltd | D80: SURJECTIVE RESEARCH CAPITAL LLP | E80: SELL | F80: 3187751 | G80: 229.68 | H80: NSE
A81: 2019-10-22 | B81: SIKKO | C81: Sikko Industries Limited | D81: BEELINE BROKING LIMITED | E81: SELL | F81: 28000 | G81: 26.3 | H81: NSE
A82: 2019-10-22 | B82: SONAHISONA | C82: Sona Hi Sona Jewell G Ltd | D82: JAIN PRAVINKUMAR DEVICHAND | E82: SELL | F82: 100000 | G82: 10.1 | H82: NSE
A83: 2019-10-22 | B83: YESBANK | C83: Yes Bank Limited | D83: ALPHAGREP COMMODITIES PRIVATE LIMITED | E83: SELL | F83: 18784694 | G83: 53.99 | H83: NSE
A84: 2019-10-22 | B84: YESBANK | C84: Yes Bank Limited | D84: SURJECTIVE RESEARCH CAPITAL LLP | E84: SELL | F84: 22120423 | G84: 53.8 | H84: NSE
A85: 2019-10-22 | B85: YESBANK | C85: Yes Bank Limited | D85: TOWER RESEARCH CAPITAL MARKETS INDIA PRIVATE LIMITED | E85: SELL | F85: 50004839 | G85: 54.16 | H85: NSE
A86: 2019-10-22 | B86: ZEEMEDIA | C86: Zee News Limited | D86: IFCI LTD. | E86: SELL | F86: 4760101 | G86: 5.74 | H86: NSE

Sheet Call Tracker (Equity & F&O)
M5: Back To Main Page
A6: Retail Research Technical Calls & Fundamental Performance Report for the month of October-2019
M7: =Main!B10 -> 2019-10-23
B8: Positional Call
A9: Sr.no | B9: Date | D9: Company | E9: Rec | F9: Rec Price | G9: Stop Loss*** | H9: Call Closed At | I9: Target | J9: Remark | K9: Profit / Loss per Share | L9: Gain / Loss % | M9: Status | N9: Closed Date | O9: NSE Closed Price
A10: 1 | B10: 2019-08-30 | D10: BIOCON | E10: Buy{} | F10: 229.5 | G10: 214.3 | H10: 242.5 | I10: 255-260 | J10: Profit of Rs.13/- | K10: =H10-F10 -> 13 | L10: =K10/F10 -> 5.66% | M10: Successful | N10: 2019-10-10 | R10: R
A11: 2 | B11: 2019-09-09 | D11: TORNTPHARM | E11: Sell | F11: 1705 | G11: 1808 | H11: 1618 | I11: 1560-1540 | J11: Profit of Rs.87/- | K11: =F11-H11 -> 87 | L11: =K11/F11 -> 5.10% | M11: Successful | N11: 2019-10-01 | R11: R
A12: 3 | B12: 2019-09-25 | D12: AXISBANK | E12: Buy | F12: 695 | G12: 628 | H12: 717.5 | I12: 800-820 | J12: Part Profit of Rs.22.50/- | K12: =H12-F12 -> 22.5 | L12: 3.24% | M12: Successful | N12: 2019-10-22 | O12: =VLOOKUP(D12,Sheet2!A42:M1681,6,0) -> 712.75 | R12: H
A13: 4 | B13: 2019-09-26 | D13: HDFC | E13: Buy | F13: 2070 | G13: 1940 | H13: 2138 | I13: 2250-2300 | J13: Part Profit of Rs.68/- | K13: =H13-F13 -> 68 | L13: =K13/F13 -> 3.29% | M13: Successful | N13: 2019-10-22 | O13: =VLOOKUP(D13,Sheet2!A43:M1682,6,0) -> 2114.9 | R13: H
A14: 5 | B14: 2019-09-26 | D14: BANKBARODA | E14: Buy | F14: 96 | G14: 89 | H14: 89.5 | I14: 110-114 | J14: Loss of Rs.6.5/- | K14: =H14-F14 -> -6.5 | L14: =K14/F14 -> -6.77% | M14: UnSuccessful | N14: 2019-10-01 | R14: H
A15: 6 | B15: 2019-09-30 | D15: BPCL | E15: Sell | F15: 475 | G15: 510 | H15: 503 | I15: 420-410 | J15: Loss of Rs.28/- | K15: =F15-H15 -> -28 | L15: -5.89% | M15: UnSuccessful | N15: 2019-10-03 | R15: H
A16: 7 | B16: 2019-10-01 | D16: CUMMINSIND | E16: Buy | F16: 574-579 | G16: 530 | I16: 640-660 | J16: Open | O16: =VLOOKUP(D16,Sheet2!A46:M1685,6,0) -> 578.7 | R16: H
A17: 8 | B17: 2019-10-01 | D17: UPL | E17: Buy | F17: 592-598 | G17: 564 | I17: 650-660 | J17: Open | O17: =VLOOKUP(D17,Sheet2!A47:M1686,6,0) -> 597 | R17: R
A18: 9 | B18: 2019-10-03 | D18: HEIDELBERG | E18: Buy | F18: 183 | G18: 169 | H18: 195 | I18: 205-210 | J18: Profit of Rs.12/- | K18: =H18-F18 -> 12 | L18: =K18/F18 -> 6.56% | M18: Successful | N18: 2019-10-18 | R18: H
A19: 10 | B19: 2019-10-03 | D19: APOLLOHOSP | E19: Buy{} | F19: 1378.5 | G19: 1286 | H19: 1448 | I19: 1550-1580 | J19: Profit of Rs.69.5/- | K19: =H19-F19 -> 69.5 | L19: =K19/F19 -> 5.04% | M19: Successful | N19: 2019-10-11 | R19: R
A20: 11 | B20: 2019-10-04 | D20: HDFCAMC | E20: Buy | F20: 2665 | G20: 2537 | H20: 2835 | I20: 2930-2960 | J20: Profit of Rs.170/- | K20: =H20-F20 -> 170 | L20: =K20/F20 -> 6.38% | M20: Successful | N20: 2019-10-18 | R20: R
A21: 12 | B21: 2019-10-07 | D21: PIDILITIND | E21: Buy | F21: 1365-1370 | G21: 1297 | I21: 1500-1520 | J21: Open | O21: =VLOOKUP(D21,Sheet2!A51:M1690,6,0) -> 1350.2 | R21: R
A22: 13 | B22: 2019-10-07 | D22: AMBUJACEM | E22: Buy | F22: 189 | G22: 179 | H22: 200.5 | I22: 205-210 | J22: Profit of Rs.11.5/- | K22: =H22-F22 -> 11.5 | L22: =K22/F22 -> 6.08% | M22: Successful | N22: 2019-10-16 | R22: R
A23: 14 | B23: 2019-10-09 | D23: ACC | E23: Buy | F23: 1440 | G23: 1345 | H23: 1537.5 | I23: 1600-1650 | J23: Profit of Rs.97.5/- | K23: =H23-F23 -> 97.5 | L23: =K23/F23 -> 6.77% | M23: Successful | N23: 2019-10-16 | R23: H
A24: 15 | B24: 2019-10-10 | D24: MOTHERSUMI | E24: Buy{} | F24: 94.5 | G24: 87.7 | H24: 100.5 | I24: 103-106 | J24: Profit of Rs.6/- | K24: =H24-F24 -> 6 | L24: =K24/F24 -> 6.35% | M24: Successful | N24: 2019-10-14 | R24: R
A25: 16 | B25: 2019-10-10 | D25: CIPLA | E25: Buy | F25: 425.5 | G25: 398 | H25: 398 | I25: 470-480 | J25: Loss of Rs.27.5/- | K25: -27.5 | L25: =K25/F25 -> -6.46% | M25: UnSuccessful | N25: 2019-10-11 | R25: R
A26: 17 | B26: 2019-10-10 | D26: POWERGRID | E26: Buy | F26: 197 | G26: 187 | H26: 207.5 | I26: 215-220 | J26: Profit of Rs.10.5/- | K26: =H26-F26 -> 10.5 | L26: 5.33% | M26: Successful | N26: 2019-10-22 | R26: R
A27: 18 | B27: 2019-10-16 | D27: INFY | E27: Buy | F27: 770 | G27: 736 | H27: 691.1 | I27: 835-845 | J27: Loss of Rs.78.90/- | K27: -78.9 | L27: =K27/F27 -> -10.25% | M27: UnSuccessful | N27: 2019-10-22 | R27: R
A28: 19 | B28: 2019-10-22 | D28: HEIDELBERG | E28: Buy | F28: 187.50-189.50 | G28: 178 | I28: 205-210 | J28: Open | O28: =VLOOKUP(D28,Sheet2!A58:M1697,6,0) -> 190.05
A35: CLBS = Closing Basis ***
A36: Dividend adjusted <> | F36: Reinitiated $
A37: Part book {} | F37: Revised stoploss #
B39: Momentum Call
A40: Sr.no | B40: Date | D40: Company | E40: Rec | F40: Rec Price | G40: Stop Loss | H40: Call Closed At | I40: Target | J40: Remark | K40: Profit / Loss per Share/Lot | L40: Gain / Loss % | M40: Gain / Loss per Lot | N40: Lot | O40: Status | P40: Closed Date
A41: 1 | B41: 2019-09-24 | D41: AMARAJABAT OCT FUT | E41: Buy | F41: 722 | G41: 703 | H41: 703.5 | I41: 750-760 | J41: Loss of Rs.18.5/- | K41: =H41-F41 -> -18.5 | M41: =N41*K41 -> -12950 | N41: 700 | O41: UnSuccessful | P41: 2019-10-01 | R41: N
A42: 2 | B42: 2019-09-30 | D42: IGL | E42: Sell | F42: 349 | G42: 361 | H42: 342 | I42: 330-325 | J42: Profit of Rs.7/- | K42: =F42-H42 -> 7 | L42: =K42/F42 -> 2.01% | O42: Successful | P42: 2019-10-01 | R42: H
A43: 3 | B43: 2019-09-30 | D43: ENGINERSIN | E43: Sell | F43: 119 | G43: 123.3 | H43: 116.5 | I43: 111-109 | J43: Profit of Rs.2.5/- | K43: =F43-H43 -> 2.5 | L43: =K43/F43 -> 2.10% | O43: Successful | P43: 2019-10-01 | R43: R
A44: 4 | B44: 2019-09-30 | D44: ADANIPORTS | E44: Sell | F44: 412.5 | G44: 425.3 | H44: 406 | I44: 395-390 | J44: Profit of Rs.6.5/- | K44: =F44-H44 -> 6.5 | L44: =K44/F44 -> 1.58% | O44: Successful | P44: 2019-10-01 | R44: H
A45: 5 | B45: 2019-10-01 | D45: HDFC | E45: Buy | F45: 1995 | G45: 1949 | H45: 2026 | I45: 2080-2100 | J45: Profit of Rs.31/- | K45: =H45-F45 -> 31 | L45: =K45/F45 -> 1.55% | O45: Successful | P45: 2019-10-01 | R45: H
A46: 6 | B46: 2019-10-01 | D46: POWERGRID OCT FUT | E46: Buy | F46: 196.75 | G46: 193.5 | H46: 198.75 | I46: 205 | J46: Profit of Rs.2/- | K46: =H46-F46 -> 2 | M46: =N46*K46 -> 8000 | N46: 4000 | O46: Successful | P46: 2019-10-03 | R46: N
A47: 7 | B47: 2019-10-01 | D47: NIFTY OCT FUT | E47: Buy | F47: 11430 | G47: 11340 | H47: 11350 | I47: 11570-11600 | J47: Loss of Rs.80/- | K47: =H47-F47 -> -80 | M47: =N47*K47 -> -6000 | N47: 75 | O47: UnSuccessful | P47: 2019-10-01 | R47: R
A48: 8 | B48: 2019-10-03 | D48: LT | E48: Buy | F48: 1440 | G48: 1390 | H48: 1474 | I48: 1500-1520 | J48: Profit of Rs.34/- | K48: 34 | L48: =K48/F48 -> 2.36% | O48: Successful | P48: 2019-10-03 | R48: H
A49: 9 | B49: 2019-10-03 | D49: TATASTEEL | E49: Buy | F49: 348 | G49: 338 | H49: 335 | I49: 370 | J49: Loss of Rs.13/- | K49: -13 | L49: -3.74% | O49: UnSuccessful | P49: 2019-10-04 | R49: R
A50: 10 | B50: 2019-10-03 | D50: CESC OCT FUT | E50: Buy | F50: 747 | G50: 734.7 | H50: 760.5 | I50: 770 | J50: Profit of Rs.13.5/- | K50: =H50-F50 -> 13.5 | M50: =N50*K50 -> 10800 | N50: 800 | O50: Successful | P50: 2019-10-04 | R50: R
A51: 11 | B51: 2019-10-03 | D51: MFSL OCT FUT | E51: Buy | F51: 417 | G51: 406 | H51: 417 | I51: 435 | J51: Neutral | K51: 0 | M51: 0 | N51: 1200 | O51: Neutral | P51: 2019-10-04 | R51: N
A52: 12 | B52: 2019-10-04 | D52: NIITTECH | E52: Buy | F52: 1355 | G52: 1319 | H52: 1377.5 | I52: 1420-1440 | J52: Profit of Rs.22.5/- | K52: =H52-F52 -> 22.5 | L52: =K52/F52 -> 1.66% | O52: Successful | P52: 2019-10-04 | R52: H
A53: 13 | B53: 2019-10-04 | D53: HINDALCO | E53: Buy | F53: 183.5 | G53: 179 | H53: 187.25 | I53: 192-195 | J53: Profit of Rs.3.75/- | K53: =H53-F53 -> 3.75 | L53: =K53/F53 -> 2.04% | O53: Successful | P53: 2019-10-11 | R53: R
A54: 14 | B54: 2019-10-04 | D54: TATAELXSI OCT FUT | E54: Buy | F54: 686.5 | G54: 666 | H54: 666 | I54: 710-720 | J54: Loss of Rs.20.5/- | K54: =H54-F54 -> -20.5 | M54: =N54*K54 -> -12300 | N54: 600 | O54: UnSuccessful | P54: 2019-10-09 | R54: N
A55: 15 | B55: 2019-10-03 | D55: CESC OCT FUT | E55: Buy | F55: 747 | G55: 734.7 | H55: 734.7 | I55: 770 | J55: Loss of Rs.12.3/- | K55: =H55-F55 -> -12.3 | M55: =N55*K55 -> -9840 | N55: 800 | O55: UnSuccessful | P55: 2019-10-04 | R55: R
A56: 16 | B56: 2019-10-04 | D56: AMARAJABAT OCT FUT | E56: Buy | F56: 699 | G56: 681 | H56: 681.5 | I56: 730 | J56: Loss of Rs.17.50/- | K56: =H56-F56 -> -17.5 | M56: =N56*K56 -> -12250 | N56: 700 | O56: UnSuccessful | P56: 2019-10-09 | R56: N
A57: 17 | B57: 2019-10-04 | D57: NIFTY OCT FUT | E57: Buy | F57: 11280 | G57: 11175 | H57: 11175 | I57: 11370 | J57: Loss of Rs.105/- | K57: =H57-F57 -> -105 | M57: =N57*K57 -> -7875 | N57: 75 | O57: UnSuccessful | P57: 2019-10-07 | R57: R
A58: 18 | B58: 2019-10-04 | D58: DABUR | E58: Buy | F58: 425.5 | G58: 411.7 | H58: 435.5 | I58: 448-453 | J58: Profit of Rs.10/- | K58: 10 | L58: =K58/F58 -> 2.35% | O58: Successful | P58: 2019-10-09 | R58: R
A59: 19 | B59: 2019-10-07 | D59: M&M OCT FUT | E59: Buy | F59: 558 | G59: 545 | H59: 566 | I59: 580 | J59: Profit of Rs.8/- | K59: =H59-F59 -> 8 | M59: =N59*K59 -> 8000 | N59: 1000 | O59: Successful | P59: 2019-10-08 | R59: N
A60: 20 | B60: 2019-10-07 | D60: JUBLFOOD OCT FUT | E60: Buy | F60: 1276.5 | G60: 1253 | H60: 1296 | I60: 1320-1330 | J60: Profit of Rs.19.5/- | K60: =H60-F60 -> 19.5 | M60: =N60*K60 -> 9750 | N60: 500 | O60: Successful | P60: 2019-10-07 | R60: R
A61: 21 | B61: 2019-10-07 | D61: VOLTAS OCT FUT | E61: Sell | F61: 666 | G61: 678 | H61: 677 | I61: 650 | J61: Loss of Rs.11/- | K61: =F61-H61 -> -11 | M61: =N61*K61 -> -11000 | N61: 1000 | O61: UnSuccessful | P61: 2019-10-09 | R61: N
A62: 22 | B62: 2019-10-09 | D62: GODREJCP | E62: Buy | F62: 661 | G62: 641.7 | H62: 674 | I62: 690-700 | J62: Profit of Rs.13/- | K62: 13 | L62: =K62/F62 -> 1.97% | O62: Successful | P62: 2019-10-09 | R62: R
A63: 23 | B63: 2019-10-09 | D63: GRASIM OCT FUT | E63: Sell | F63: 667 | G63: 685 | H63: 692.5 | I63: 635 | J63: Loss of Rs.25.50/- | K63: =F63-H63 -> -25.5 | M63: =N63*K63 -> -19125 | N63: 750 | O63: UnSuccessful | P63: 2019-10-10 | R63: N
A64: 24 | B64: 2019-10-10 | D64: NIITTECH | E64: Buy | F64: 1352.5 | G64: 1317 | H64: 1375.5 | I64: 1420-1440 | J64: Profit of Rs.23/- | K64: =H64-F64 -> 23 | L64: =K64/F64 -> 1.70% | O64: Successful | P64: 2019-10-10 | R64: H
A65: 25 | B65: 2019-10-10 | D65: MCDOWELL-N | E65: Buy | F65: 626.5 | G65: 608 | H65: 608 | I65: 660-670 | J65: Loss of Rs.18.50/- | K65: -18.5 | L65: -2.95% | O65: UnSuccessful | P65: 2019-10-11 | R65: R
A66: 26 | B66: 2019-10-10 | D66: KOTAKBANK OCT FUT | E66: Buy | F66: 1601.5 | G66: 1570 | H66: 1621.5 | I66: 1650 | J66: Profit of Rs.20/- | K66: =H66-F66 -> 20 | M66: =N66*K66 -> 8000 | N66: 400 | O66: Successful | P66: 2019-10-11 | R66: N
A67: 27 | B67: 2019-10-10 | D67: NIFTY OCT FUT | E67: Buy | F67: 11275 | G67: 11190 | H67: 11330 | I67: 11400-11450 | J67: Profit of Rs.55/- | K67: 55 | M67: =N67*K67 -> 4125 | N67: 75 | O67: Successful | P67: 2019-10-11 | R67: H
A68: 28 | B68: 2019-10-10 | D68: HINDUNILVR OCT FUT | E68: Buy | F68: 1937.5 | G68: 1897 | H68: 1962 | I68: 2000-2020 | J68: Profit of Rs.24.50/- | K68: =H68-F68 -> 24.5 | M68: =N68*K68 -> 7350 | N68: 300 | O68: Successful | P68: 2019-10-10 | R68: R
A69: 29 | B69: 2019-10-10 | D69: COLPAL OCT FU | E69: Buy | F69: 1495 | G69: 1476 | H69: 1508 | I69: 1530 | J69: Profit of Rs.13/- | K69: 13 | M69: =N69*K69 -> 9100 | N69: 700 | O69: Successful | P69: 2019-10-11 | R69: N
A70: 30 | B70: 2019-10-10 | D70: RAYMOND | E70: Sell | F70: 597 | G70: 607.3 | H70: 587 | I70: 575-570 | J70: Profit of Rs.10/- | K70: =F70-H70 -> 10 | L70: =K70/F70 -> 1.68% | O70: Successful | P70: 2019-10-10 | R70: R
A71: 31 | B71: 2019-10-10 | D71: MFSL OCT FUT | E71: Buy | F71: 408 | G71: 398 | H71: 416 | I71: 425 | J71: Profit of Rs.8/- | K71: =H71-F71 -> 8 | M71: =N71*K71 -> 9600 | N71: 1200 | O71: Successful | P71: 2019-10-14 | R71: N
A72: 32 | B72: 2019-10-11 | D72: AMBUJACEM OCT FUT | E72: Buy | F72: 188.5 | G72: 183 | H72: 191.75 | I72: 198 | J72: Profit of Rs.3.25/- | K72: =H72-F72 -> 3.25 | M72: =N72*K72 -> 8125 | N72: 2500 | O72: Successful | P72: 2019-10-14 | R72: N
A73: 33 | B73: 2019-10-11 | D73: KOTAKBANK OCT FUT | E73: Buy | F73: 1590 | G73: 1560 | H73: 1609 | I73: 1650 | J73: Profit of Rs.19/- | K73: =H73-F73 -> 19 | M73: =N73*K73 -> 7600 | N73: 400 | O73: Successful | P73: 2019-10-14 | R73: N
A74: 34 | B74: 2019-10-11 | D74: KALPATPOWR | E74: Buy | F74: 447 | G74: 434 | H74: 457 | I74: 470-480 | J74: Profit of Rs.10/- | K74: =H74-F74 -> 10 | L74: =K74/F74 -> 2.24% | O74: Successful | P74: 2019-10-22 | R74: H
A75: 35 | B75: 2019-10-11 | D75: M&M OCT FUT | E75: Buy | F75: 557 | G75: 544 | H75: 564.5 | I75: 580 | J75: Profit of Rs.7.5/- | K75: =H75-F75 -> 7.5 | M75: =N75*K75 -> 7500 | N75: 1000 | O75: Successful | P75: 2019-10-11 | R75: N
A76: 36 | B76: 2019-10-14 | D76: NIITTECH | E76: Buy | F76: 1405 | G76: 1378 | H76: 1438.5 | I76: 1440-1460 | J76: Profit of Rs.33.5/- | K76: 33.5 | L76: =K76/F76 -> 2.38% | O76: Successful | P76: 2019-10-15 | R76: H
A77: 37 | B77: 2019-10-14 | D77: KOTAKBANK OCT FUT | E77: Buy | F77: 1590 | G77: 1560 | H77: 1609 | I77: 1650 | J77: Profit of Rs.19/- | K77: =H77-F77 -> 19 | M77: =N77*K77 -> 7600 | N77: 400 | O77: Successful | P77: 2019-10-14 | R77: N
A78: 38 | B78: 2019-10-14 | D78: AMARAJABAT | E78: Buy | F78: 681.5 | G78: 659 | H78: 658 | I78: 715-720 | J78: Loss of Rs.23.50/- | K78: -23.5 | L78: =K78/F78 -> -3.45% | O78: UnSuccessful | P78: 2019-10-15 | R78: H
A79: 39 | B79: 2019-10-14 | D79: BATAINDIA OCT FUT | E79: Buy | F79: 1716 | G79: 1690 | H79: 1730 | I79: 1760 | J79: Profit of Rs.14/- | K79: 14 | M79: =N79*K79 -> 7700 | N79: 550 | O79: Successful | P79: 2019-10-17 | R79: N
A80: 40 | B80: 2019-10-14 | D80: CHOLAFIN | E80: Buy | F80: 284 | G80: 276.7 | H80: 273.5 | I80: 300-305 | J80: Loss of Rs.10.5/- | K80: =H80-F80 -> -10.5 | L80: =K80/F80 -> -3.70% | O80: UnSuccessful | P80: 2019-10-15 | R80: R
A81: 41 | B81: 2019-10-15 | D81: BHARATFORG OCT FUT | E81: Buy | F81: 429 | G81: 418 | H81: 435 | I81: 450 | J81: Profit of Rs.6/- | K81: =H81-F81 -> 6 | M81: =N81*K81 -> 7200 | N81: 1200 | O81: Successful | P81: 2019-10-15 | R81: N
A82: 42 | B82: 2019-10-15 | D82: SUNPHARMA | E82: Buy | F82: 396.5 | G82: 386.7 | H82: 405 | I82: 420-425 | J82: Profit of Rs.8.50/- | K82: 8.5 | L82: =K82/F82 -> 2.14% | O82: Successful | P82: 2019-10-18 | R82: R
A83: 43 | B83: 2019-10-15 | D83: LT | E83: Buy | F83: 1435-1445 | G83: 1390 | I83: 1500-1520 | J83: Open | R83: H
A84: 44 | B84: 2019-10-15 | D84: HAVELLS | E84: Buy | F84: 657.5 | G84: 639 | H84: 668.5 | I84: 690-700 | J84: Profit of Rs.11/- | K84: =H84-F84 -> 11 | L84: =K84/F84 -> 1.67% | O84: Successful | P84: 2019-10-15 | R84: H
A85: 45 | B85: 2019-10-15 | D85: INFRATEL OCT FUT | E85: Sell | F85: 260.5 | G85: 266.5 | H85: 257 | I85: 250-248 | J85: Profit of Rs.3.5/- | K85: =F85-H85 -> 3.5 | M85: =N85*K85 -> 7000 | N85: 2000 | O85: Successful | P85: 2019-10-15 | R85: N
A86: 46 | B86: 2019-10-15 | D86: HINDALCO | E86: Buy | F86: 190 | G86: 185 | H86: 194.5 | I86: 200 | J86: Profit of Rs.4.5/- | K86: =H86-F86 -> 4.5 | L86: =K86/F86 -> 2.37% | O86: Successful | P86: 2019-10-15 | R86: H
A87: 47 | B87: 2019-10-16 | D87: MFSL OCT FUT | E87: Buy | F87: 406 | G87: 396 | H87: 413 | I87: 425 | J87: Profit of Rs.7/- | K87: =H87-F87 -> 7 | M87: =N87*K87 -> 8400 | N87: 1200 | O87: Successful | P87: 2019-10-16 | R87: N
A88: 48 | B88: 2019-10-16 | D88: JUBLFOOD OCT FUT | E88: Buy | F88: 1328 | G88: 1305 | H88: 1305 | I88: 1370-1380 | J88: Loss of Rs.23/- | K88: =H88-F88 -> -23 | M88: =N88*K88 -> -11500 | N88: 500 | O88: UnSuccessful | P88: 2019-10-16 | R88: R
A89: 49 | B89: 2019-10-16 | D89: BIOCON | E89: Sell | F89: 259 | G89: 266.3 | H89: 254.5 | I89: 244-240 | J89: Profit of Rs.4.5/- | K89: =F89-H89 -> 4.5 | L89: =K89/F89 -> 1.74% | O89: Successful | P89: 2019-10-16 | R89: R
A90: 50 | B90: 2019-10-16 | D90: COLPAL OCT FUT | E90: Buy | F90: 1528 | G90: 1510 | H90: 1540 | I90: 1560 | J90: Profit of Rs.12/- | K90: =H90-F90 -> 12 | M90: =N90*K90 -> 8400 | N90: 700 | O90: Successful | P90: 2019-10-17 | R90: N
A91: 51 | B91: 2019-10-16 | D91: INFRATEL OCT FUT | E91: Sell | F91: 257 | G91: 263 | H91: 253.25 | I91: 248 | J91: Profit of Rs.3.75/- | K91: =F91-H91 -> 3.75 | M91: =N91*K91 -> 7500 | N91: 2000 | O91: Successful | P91: 2019-10-17 | R91: N
A92: 52 | B92: 2019-10-17 | D92: POWERGRID OCT FUT | E92: Buy | F92: 198.25 | G92: 195 | H92: 200.25 | I92: 205 | J92: Profit of Rs.2/- | K92: 2 | M92: =N92*K92 -> 8000 | N92: 4000 | O92: Successful | P92: 2019-10-18 | R92: N
A93: 53 | B93: 2019-10-17 | D93: ABFRL | E93: Buy | F93: 199 | G93: 194 | H93: 204 | I93: 212-216 | J93: Profit of Rs.5/- | K93: =H93-F93 -> 5 | L93: =K93/F93 -> 2.51% | O93: Successful | P93: 2019-10-17 | R93: R
A94: 54 | B94: 2019-10-17 | D94: RELIANCE | E94: Sell | F94: 1381.5 | G94: 1410 | H94: 1382 | I94: 1330-1320 | J94: Neutral | K94: =F94-H94 -> -0.5 | L94: =K94/F94 -> -0.04% | O94: Neutral | P94: 2019-10-17 | R94: H
A95: 55 | B95: 2019-10-17 | D95: NIITTECH | E95: Buy | F95: 1403 | G95: 1374 | H95: 1439 | I95: 1445-1465 | J95: Profit of Rs.36/- | K95: =H95-F95 -> 36 | L95: 2.57% | O95: Successful | P95: 2019-10-18 | R95: H
A96: 56 | B96: 2019-10-17 | D96: INDIGO | E96: Buy | F96: 1727.5 | G96: 1680 | H96: 1680 | I96: 1800 | J96: Loss of Rs.47.50/- | K96: -47.5 | L96: -2.75% | O96: UnSuccessful | P96: 2019-10-15 | R96: R
A97: 57 | B97: 2019-10-17 | D97: INFRATEL OCT FUT | E97: Sell | F97: 257 | G97: 263 | H97: 253 | I97: 248 | J97: Profit of Rs.4/- | K97: =F97-H97 -> 4 | M97: =N97*K97 -> 8000 | N97: 2000 | O97: Successful | P97: 2019-10-18 | R97: N
A98: 58 | B98: 2019-10-18 | D98: BEL | E98: Buy | F98: 117-118 | G98: 114.5 | I98: 124-126 | J98: Open | R98: H
A99: 59 | B99: 2019-10-18 | D99: INFRATEL OCT FUT | E99: Sell | F99: 261 | G99: 267 | H99: 258.5 | I99: 248 | J99: Profit of Rs.2.50/- | K99: =F99-H99 -> 2.5 | M99: =N99*K99 -> 5000 | N99: 2000 | O99: Successful | P99: 2019-10-18 | R99: R
A100: 60 | B100: 2019-10-18 | D100: BHARATFORG OCT FUT | E100: Buy | F100: 449 | G100: 438 | H100: 455.5 | I100: 470 | J100: Profit of Rs.6.50/- | K100: =H100-F100 -> 6.5 | M100: =N100*K100 -> 7800 | N100: 1200 | O100: Successful | P100: 2019-10-22 | R100: N
A101: 61 | B101: 2019-10-18 | D101: UBL OCT FUT | E101: Buy | F101: 1326 | G101: 1307 | H101: 1310 | I101: 1360 | J101: Loss of Rs.16/- | K101: =H101-F101 -> -16 | M101: =N101*K101 -> -11200 | N101: 700 | O101: UnSuccessful | P101: 2019-10-22 | R101: N
A102: 62 | B102: 2019-10-22 | D102: CESC OCT FUT | E102: Buy | F102: 809-811 | G102: 794 | I102: 835-840 | J102: Open
A103: 63 | B103: 2019-10-22 | D103: COLPAL OCT FUT | E103: Buy | F103: 1528 | G103: 1510 | H103: 1541 | I103: 1560 | J103: Profit of Rs.13/- | K103: =H103-F103 -> 13 | M103: =N103*K103 -> 9100 | N103: 700 | O103: Successful | P103: 2019-10-22
A104: 64 | B104: 2019-10-22 | D104: BHARATFORG OCT FUT | E104: Buy | F104: 445.50-446.50 | G104: 435 | I104: 465 | J104: Open
A105: 65 | B105: 2019-10-22 | D105: SBIN | E105: Buy | F105: 272-273 | G105: 264 | I105: 285 | J105: Open
A106: 66
A107: 67
A108: 68
A109: 69
A110: 70
A111: 71
A112: 72
A113: 73
A114: 74
A115: 75
A116: 76
A118: CLBS = Closing Basis ***
A119: Dividend adjusted <> | F119: Reinitiated $
F120: Revised stoploss #
A122: Master Trade High Risk
A123: Sr.no | B123: Date | D123: Company | E123: Rec | F123: Rec Price | G123: Stop Loss | H123: Call Closed At | I123: Target | J123: Remark | K123: Profit / Loss per share | L123: Gain / Loss per Lot | M123: Lot | N123: Status | O123: Closed Date
A124: 1 | B124: 2019-10-01 | D124: HDFC OCT FUT | E124: Buy | F124: 1999 | G124: 1947 | H124: 2022 | I124: 2050 | J124: Profit of Rs.20/- | K124: =H124-F124 -> 23 | L124: =20*M124 -> 10000 | M124: 500 | N124: Successful | O124: 2019-10-04 | R124: H
D125: HDFC 2040 CE OCT | E125: Sell | F125: 52 | H125: 55 | K125: =F125-H125 -> -3 | R125: H
A126: 2 | B126: 2019-10-03 | D126: NIFTY OCT FUT | E126: Buy | F126: 11350 | G126: 11190 | H126: 11425 | I126: 11550 | J126: Profit of Rs.71.5/- | K126: =H126-F126 -> 75 | L126: =71.5*75 -> 5362.5 | M126: 75 | N126: Successful | O126: 2019-10-04 | R126: H
D127: Nifty 11450 CE 10-OCT | E127: Sell | F127: 75 | H127: 78.5 | K127: =F127-H127 -> -3.5 | R127: H
A128: 3 | B128: 2019-10-04 | D128: HDFC OCT FUT | E128: Buy | F128: 2002 | G128: 1947 | H128: 2023.5 | I128: 2050 | J128: Profit of Rs.26.5/- | K128: =H128-F128 -> 21.5 | L128: =M128*26.5 -> 13250 | M128: 500 | N128: Successful | O128: 2019-10-11 | R128: H
D129: HDFC 2040 CE OCT | E129: Sell | F129: 48 | H129: 43 | K129: =F129-H129 -> 5 | R129: H
A130: 4 | B130: 2019-10-04 | D130: HDFCBANK OCT FUT | E130: Buy | F130: 1202.5 | G130: 1169 | H130: 1222.5 | I130: 1250 | J130: Profit of Rs.16.5/- | K130: 20 | L130: =M130*16.5 -> 8250 | M130: 500 | N130: Successful | O130: 2019-10-11 | R130: H
D131: HDFCBANK 1240 CE OCT | E131: Sell | F131: 23.5 | H131: 27 | K131: =F131-H131 -> -3.5 | R131: H
A132: 5 | B132: 2019-10-11 | D132: HDFC OCT FUT | E132: Buy | F132: 1997.5 | G132: 1947 | H132: 2022 | I132: 2050 | J132: Profit of Rs.18/- | K132: =H132-F132 -> 24.5 | L132: =M132*18 -> 9000 | M132: 500 | N132: Successful | O132: 2019-10-11 | R132: H
D133: HDFC 2040 CE OCT | E133: Sell | F133: 36 | H133: 42.5 | K133: =F133-H133 -> -6.5 | R133: H
A134: 6 | B134: 2019-10-11 | D134: HDFCBANK OCT FUT | E134: Buy | F134: 1204 | G134: 1169 | H134: 1214 | I134: 1250 | J134: Profit of Rs.9/- | K134: =H134-F134 -> 10 | L134: =M134*9 -> 4500 | M134: 500 | N134: Successful | O134: 2019-10-14 | R134: H
D135: HDFCBANK 1240 CE OCT | E135: Sell | F135: 23 | H135: 24 | K135: =F135-H135 -> -1 | R135: H
A136: 7 | B136: 2019-10-16 | D136: NIFTY OCT FUT | E136: Sell | F136: 11467.5 | G136: 11630 | H136: 11590 | I136: 11250 | J136: Loss of Rs.81.50/- | K136: =F136-H136 -> -122.5 | L136: =-M136*81.5 -> -6112.5 | M136: 75 | N136: Unsuccessful | O136: 2019-10-17 | R136: H
D137: NIFTY 11300 PE 24-OCT | E137: Buy | F137: 57.50 | H137: 16.5 | K137: =F137-H137 -> 41 | R137: H
A138: 6 | B138: 2019-10-16 | D138: HAVELLS OCT FUT | E138: Buy | F138: 667 | G138: 649 | H138: 679.5 | I138: 690 | J138: Profit of Rs.9/- | K138: =H138-F138 -> 12.5 | L138: =M138*9 -> 9000 | M138: 1000 | N138: Successful | O138: 2019-10-17 | R138: H
D139: HAVELLS 690 CE | E139: Sell | F139: 13.50 | H139: 17 | K139: =F139-H139 -> -3.5 | R139: H
A140: 7 | B140: 2019-10-18 | D140: M&M OCT FUT | E140: Buy | F140: 587 | G140: 572 | H140: 597.5 | I140: 610-615 | J140: Profit of Rs.8.50/- | K140: =H140-F140 -> 10.5 | L140: =M140*8.5 -> 8500 | M140: 1000 | N140: Successful | O140: 2019-10-18 | R140: N
D141: M&M 610 CE OCT | E141: Sell | F141: 6 | H141: 8 | K141: =F141-H141 -> -2 | R141: N
A154: Master Trade Medium Risk
A155: Sr.no | B155: Date | D155: Company | E155: Rec | F155: Rec Price | G155: Stop Loss | H155: Call Closed At | I155: Target | J155: Remark | K155: Profit/ Loss per lot | L155: Gain / Loss per Lot | M155: Lot | N155: Status | O155: Closed Date
A156: 1 | B156: 2019-10-04 | D156: Nifty 11400 CE 10-OCT | E156: Buy | F156: 92 | H156: 0 | J156: Loss of Rs.38/- | K156: =H156-F156 -> -92 | L156: =-38*75 -> -2850 | M156: 75 | N156: Unsuccessful | O156: 2019-10-10 | R156: H
D157: NIFTY 11500 CE 10-OCT | E157: Sell | F157: 54 | H157: 0 | K157: =F157-H157 -> 54 | R157: H
A158: 2 | B158: 2019-10-10 | D158: TATASTEEL OCT 350 CE | E158: Buy | F158: 8.5 | G158: 3.9 | H158: 11.25 | I158: 15-17 | J158: Profit of Rs.2.75/- | K158: =H158-F158 -> 2.75 | L158: =M158*K158 -> 2917.75 | M158: 1061 | N158: Successful | O158: 2019-10-11 | R158: H
A159: 3 | B159: 2019-10-11 | D159: NIFTY 17-OCT 11350 CE | E159: Buy | F159: 44.5 | G159: 18 | H159: 64 | I159: 70-80 | J159: Profit of Rs.19.5/- | K159: =H159-F159 -> 19.5 | L159: =M159*K159 -> 1462.5 | M159: 75 | N159: Successful | O159: 2019-10-11 | R159: H
A160: 4 | B160: 2019-10-15 | D160: JSWSTEEL OCT 235 CE | E160: Buy | F160: 5.5 | G160: 3.5 | H160: 3.9 | I160: 9 | J160: Loss of Rs.1.60/- | K160: =H160-F160 -> -1.6 | L160: =M160*K160 -> -3200 | M160: 2000 | N160: Unsuccessful | O160: 2019-10-16 | R160: N
A161: 5 | B161: 2019-10-17 | D161: NIFTY OCT 24 11350 PE | E161: Buy | F161: 46 | G161: 29 | H161: 29 | I161: 75-85 | J161: Loss of Rs.17/- | K161: =H161-F161 -> -17 | L161: =M161*K161 -> -1275 | M161: 75 | N161: Unsuccessful | O161: 2019-10-17 | R161: H
A162: 6 | B162: 2019-10-22 | D162: DLF 31-OCT 170 PE | E162: Buy | F162: 2.60-2.80 | J162: Open
D163: DLF 31-OCT 165 PE | E163: Sell | F163: 1.70-1.90
A164: 7 | B164: 2019-10-22 | D164: M&M OCT 610 CE | E164: Buy | F164: 7.50-8.00 | G164: 2.5 | I164: 15 | J164: Open
A165: 8 | B165: 2019-10-22 | D165: EICHERMOT OCT 21000 CE | E165: Buy | F165: 190-210 | G165: 38 | I165: 400-500 | J165: Open
A166: 9 | B166: 2019-10-22 | D166: Nifty 31-OCT 11800 CE | E166: Buy | F166: 49-50 | G166: 34 | I166: 80 | J166: Open
A170: Techno -Funda (positional)
A171: Sr.no | B171: Date | D171: Company | E171: Rec | F171: Rec Price | G171: Stop Loss*** | H171: Call Closed At | I171: Target | J171: Remark | K171: Profit / Loss per Share | L171: Gain / Loss % | M171: Status | N171: Closed Date | O171: NSE Closed Price
A172: 1 | B172: 2019-08-13 | D172: ITC | E172: Buy | F172: 247 | G172: 228 | H172: 262.5 | I172: 290-300 | J172: Part Profit of Rs.15.5/- | K172: =H172-F172 -> 15.5 | L172: =K172/F172 -> 6.28% | M172: Successful | N172: 2019-10-01 | O172: =VLOOKUP(D172,Sheet2!A131:M1770,6,0) -> 248.9 | R172: H
A176: CLBS = Closing Basis *** | F176: Reinitiated $
A177: Dividend adjusted <> | F177: Revised stoploss #
B182: Investment Idea
A183: Sr.no | B183: Date | D183: Company | E183: Rec | F183: Rec Price | G183: Point of Review | H183: Close Rate | I183: Target | J183: Remark | K183: Profit / Loss per Share | L183: Gain / Loss % | M183: Status | N183: Closed Date
A184: 1 | B184: 2013-11-01 | D184: L&T Finance Holding | E184: Accu | F184: 82.00 | G184: - | H184: 100 | I184: 100.00 | J184: Target Achieved | K184: =H184-F184 -> 18.00 | L184: =K184/F184 -> 21.95% | M184: Successful | N184: 2016-10-14
A185: 2 | B185: 2014-06-04 | D185: Finolex Inds | E185: Buy | F185: 257.00 | G185: - | H185: 300 | I185: 300.00 | J185: Target Achieved | K185: =H185-F185 -> 43.00 | L185: 16.73% | M185: Successful | N185: 2014-07-02
A186: 3 | B186: 2014-07-08 | D186: JK Cement | E186: Buy | F186: 393.00 | G186: - | H186: 468 | I186: 468.00 | J186: Target Achieved | K186: =H186-F186 -> 75.00 | L186: 19.08% | M186: Successful | N186: 2014-08-12
A187: 4 | B187: 2014-08-06 | D187: Finolex Cables | E187: Buy | F187: 205.00 | G187: - | H187: 275 | I187: 250.00 | J187: Target Achieved | K187: 70.00 | L187: 34.15% | M187: Successful | N187: 2014-11-19
A188: 5 | B188: 2014-09-04 | D188: Exide Inds | E188: Buy | F188: 162.00 | G188: - | H188: 190 | I188: 190.00 | J188: Target Achieved | K188: 28.00 | L188: 17.28% | M188: Successful | N188: 2015-01-02
A189: 6 | B189: 2014-09-04 | D189: Deepak Nitrite | E189: Buy | F189: 75.00 | G189: - | H189: 91.5 | I189: 95-100 | J189: Profit of Rs.16.50/- | K189: 16.50 | L189: 22.00% | M189: Successful | N189: 2014-11-11
A190: 7 | B190: 2014-10-01 | D190: Mercks | E190: Buy | F190: 850.00 | G190: - | H190: 982.5 | I190: 1050.00 | J190: Profit of Rs.132.50/- | K190: 132.50 | L190: 15.59% | M190: Successful | N190: 2015-02-04
A191: 8 | B191: 2014-10-01 | D191: Grindwell Norton | E191: Buy | F191: 475.00 | G191: - | H191: 515 | I191: 600.00 | J191: Profit of Rs.40/- | K191: 40.00 | L191: 8.42% | M191: Successful | N191: 2014-10-27
A192: 9 | B192: 2014-10-01 | D192: Snowman Logistics | E192: Buy | F192: 86.00 | G192: - | H192: 99 | I192: 140.00 | J192: Profit of Rs.13.00/- | K192: 13.00 | L192: 15.12% | M192: Successful | N192: 2014-10-27
A193: 10 | B193: 2014-10-14 | D193: Birla Corp | E193: Buy | F193: 496.60 | G193: - | H193: 621 | I193: 580.00 | J193: Target Achieved | K193: 124.40 | L193: 25.05% | M193: Successful | N193: 2016-08-23
A194: 11 | B194: 2014-10-14 | D194: Ultratech Cem | E194: Buy | F194: 2481.90 | G194: - | H194: 2840 | I194: 2870.00 | J194: Profit of Rs.358.10/- | K194: 358.10 | L194: 14.43% | M194: Successful | N194: 2015-01-13
A195: 12 | B195: 2014-10-16 | D195: Sintex Inds | E195: Buy | F195: 84.50 | G195: - | H195: 93 | I195: 110.00 | J195: Profit of Rs.8.50/- | K195: 8.50 | L195: 10.06% | M195: Successful | N195: 2014-10-27
A196: 13 | B196: 2014-10-16 | D196: HSIL | E196: Buy | F196: 401.00 | G196: - | H196: 428 | I196: 450.00 | J196: Profit of Rs.27.00/- | K196: 27.00 | L196: 6.73% | M196: Successful | N196: 2015-01-16
A197: 14 | B197: 2014-10-16 | D197: Eveready Inds | E197: Buy | F197: 101.00 | G197: - | H197: 112 | I197: 120.00 | J197: Profit of Rs.11.00/- | K197: 11.00 | L197: 10.89% | M197: Successful | N197: 2014-10-27
A198: 15 | B198: 2014-11-11 | D198: Pennar Inds | E198: Buy | F198: 59.00 | G198: - | H198: 76 | I198: 76.00 | J198: Target Achieved | K198: 17.00 | L198: 28.81% | M198: Successful | N198: 2017-10-24
A199: 16 | B199: 2014-11-11 | D199: Snowman Logistics | E199: Buy | F199: 99.00 | G199: - | H199: 120 | I199: 120.00 | J199: Profit of Rs.21/- | K199: 21.00 | L199: 21.21% | M199: Successful | N199: 2014-11-17
A200: 17 | B200: 2014-11-13 | D200: Dharamsi Morarji Chem | E200: Buy | F200: 22.00 | G200: - | H200: 33.55 | I200: 32.00 | J200: Profit of Rs 11.55/- | K200: 11.55 | L200: 52.50% | M200: Successful | N200: 2015-07-03
A201: 18 | B201: 2014-12-03 | D201: Tatachem | E201: Buy | F201: 440.00 | G201: - | H201: 520 | I201: 520.00 | J201: Profit of Rs 80.00/- | K201: 80.00 | L201: 18.18% | M201: Successful | N201: 2015-07-23
A202: 19 | B202: 2014-12-03 | D202: Advanta | E202: Buy | F202: 360.00 | G202: - | H202: 427 | I202: 425.00 | J202: Profit of Rs.67.00/- | K202: 67.00 | L202: 18.61% | M202: Successful | N202: 2015-02-23
A203: 20 | B203: 2015-01-08 | D203: GDL | E203: Buy | F203: 360.00 | G203: - | H203: 455 | I203: 420.00 | J203: Profit of Rs.95.00/- | K203: 95.00 | L203: 26.39% | M203: Successful | N203: 2015-01-20
A204: 21 | B204: 2015-01-08 | D204: NRB Bearing | E204: Buy | F204: 130.00 | H204: 175.5 | I204: 165.00 | J204: Profit of Rs 45.50/- | K204: 45.50 | L204: 35.00% | M204: Successful | N204: 2017-12-19
A205: 22 | B205: 2015-02-05 | D205: GSFC | E205: Accu | F205: 98.00 | H205: 120 | I205: 120.00 | J205: Target Achieved | K205: 22.00 | L205: 22.45% | M205: Successful | N205: 2017-01-18
A206: 23 | B206: 2015-02-05 | D206: Sundrmfast | E206: Accu | F206: 196.00 | H206: 262 | I206: 255.00 | J206: Target Achieved | K206: 66.00 | L206: 33.67% | M206: Successful | N206: 2016-08-17
A207: 24 | B207: 2015-03-04 | D207: GPPL | E207: Accu | F207: 235 | H207: 77.00 | I207: 280-285 | J207: Loss of Rs.158/- | K207: -158.00 | L207: -67.23% | M207: Unsuccessful | N207: 2019-02-26
A208: 25 | B208: 2015-03-04 | D208: ORIENTCEM | E208: Accu | F208: 185.00 | H208: 224 | I208: 220-225 | J208: Target Achieved | K208: 39.00 | L208: 21.08% | M208: Successful | N208: 2016-10-04
A209: 26 | B209: 2015-03-27 | D209: PFS | E209: Accu | F209: 49.5 | H209: 15.85 | I209: 67.00 | J209: Loss of Rs.33.65/- | K209: -33.65 | L209: -68% | M209: Unsuccessful | N209: 2019-06-11
A210: 27 | B210: 2015-03-30 | D210: Walchandnagar Ind Ltd | E210: Accu | F210: 183.50 | H210: 219 | I210: 218.00 | J210: Profit of Rs.35.50/- | K210: 35.50 | L210: =K210/F210 -> 19.35% | M210: Successful | N210: 2015-04-09
A211: 28 | B211: 2015-04-20 | D211: Kalpataru Power Transmission Ltd | E211: Accu | F211: =(227+237)/2 -> 232.00 | H211: 298 | I211: 298.00 | J211: Target Achieved | K211: 66.00 | L211: 28.45% | M211: Successful | N211: 2017-03-29
A212: 29 | B212: 2015-05-04 | D212: Mastek Ltd | E212: Buy | F212: 385.00 | H212: =212.5+331 -> 543.5 | I212: 510.00 | J212: Profit of Rs 158.50/- | K212: 158.50 | L212: 41.17% | M212: Successful | N212: 2015-08-19
A213: 30 | B213: 2015-05-04 | D213: Suprajit Eng | E213: Buy | F213: 115.50 | H213: 146 | I213: 142.00 | J213: Profit of Rs 30.50/- | K213: 30.50 | L213: 26.41% | M213: Successful | N213: 2015-07-17
A214: 31 | B214: 2015-05-27 | D214: TCI | E214: Buy | F214: 237.50 | H214: 279.5 | I214: 278.00 | J214: Target Achieved | K214: 42.00 | L214: 17.68% | M214: Successful | N214: 2015-08-06
A215: 32 | B215: 2015-06-19 | D215: HSIL | E215: Accu | F215: 340.00 | H215: 448 | I215: 448.00 | J215: Target Achieved | K215: 108.00 | L215: 31.76% | M215: Successful | N215: 2017-10-10
A216: 33 | B216: 2015-07-06 | D216: Capital First | E216: Accu | F216: 390.00 | H216: 460 | I216: 460.00 | J216: Target Achieved | K216: 70.00 | L216: 17.95% | M216: Successful | N216: 2016-04-18
A217: 34 | B217: 2015-07-10 | D217: Dolphin OffShore | E217: Accu | F217: 122.5 | H217: 61.00 | I217: 172.00 | J217: Loss of Rs.61.50/- | K217: -61.50 | L217: -50.20% | M217: Unsuccessful | N217: 2018-08-21
A218: 35 | B218: 2015-08-03 | D218: Allcargo logistics | E218: Accu | F218: 297.50 | H218: 350 | I218: 360.00 | J218: Profit of Rs 52.50/- | K218: 52.50 | L218: 17.65% | M218: Successful | N218: 2015-08-16
A219: 36 | B219: 2015-08-03 | D219: Camline Fine | E219: Accu | F219: 115.50 | H219: 149 | I219: 140.00 | J219: Profit of Rs 33.50/- | K219: 33.50 | L219: 29.00% | M219: Successful | N219: 2017-01-05
A220: 37 | B220: 2015-09-04 | D220: TCI | E220: Accu | F220: 226.00 | H220: 292 | I220: 292.00 | J220: Target Achieved | K220: 66.00 | L220: 29.20% | M220: Successful | N220: 2015-10-09
A221: 38 | B221: 2015-09-07 | D221: Kalpataru Power Transmission Ltd | E221: Accu | F221: 232.50 | H221: 312.5 | I221: 310.00 | J221: Target Achieved | K221: 80.00 | L221: 34.41% | M221: Successful | N221: 2017-03-29
A222: 39 | B222: 2015-09-21 | D222: LLOYD ELECTRIC & ENG LTD | E222: Accu | F222: 196.50 | H222: 238 | I222: 238.00 | J222: Target Achieved | K222: 41.50 | L222: 21.12% | M222: Successful | N222: 2015-10-14
A223: 40 | B223: 2015-09-24 | D223: L&T Finance Holding | E223: Accu | F223: 65.00 | H223: 82 | I223: 82.00 | J223: Target Achieved | K223: 17.00 | L223: 26.15% | M223: Successful | N223: 2016-07-27
A224: 41 | B224: 2015-10-14 | D224: KEC International ltd | E224: Accu | F224: 144.00 | H224: 182.5 | I224: 181.00 | J224: Target Achieved | K224: 38.50 | L224: 26.74% | M224: Successful | N224: 2017-03-23
A225: 42 | B225: 2015-10-14 | D225: Gruh Finance | E225: Accu | F225: 264.00 | H225: 311 | I225: 311.00 | J225: Target Achieved | K225: 47.00 | L225: 17.80% | M225: Successful | N225: 2016-08-22
A226: 43 | B226: 2015-11-10 | D226: Pidilitind | E226: Buy | F226: 549.50 | H226: 630 | I226: 630.00 | J226: Target Achieved | K226: 80.50 | L226: 14.65% | M226: Successful | N226: 2016-02-19
A227: 44 | B227: 2015-12-04 | D227: Zensar Technology | E227: Accu | F227: 1027.50 | H227: 1315 | I227: 1250.00 | J227: Target Achieved | K227: 287.50 | L227: 27.98% | M227: Successful | N227: 2018-05-24
A228: 45 | B228: 2015-12-29 | D228: Vinati Organics Ltd | E228: Accu | F228: 465.00 | H228: 540 | I228: 540.00 | J228: Target Achieved | K228: 75.00 | L228: 16.13% | M228: Successful | N228: 2016-06-09
A229: 46 | B229: 2016-01-11 | D229: GSFC | E229: Buy | F229: 81.00 | H229: 110 | I229: 110.00 | J229: Target Achieved | K229: 29.00 | L229: 35.80% | M229: Successful | N229: 2017-01-10
A230: 47 | B230: 2016-01-13 | D230: SSWL | E230: Buy | F230: 417.50 | H230: 547 | I230: 535.00 | J230: Target Achieved | K230: 129.50 | L230: 31.02% | M230: Successful | N230: 2016-07-27
A231: 48 | B231: 2016-02-08 | D231: Persistent System Ltd | E231: Accu | F231: 650.00 | H231: 800 | I231: 800.00 | J231: Target Achieved | K231: 150.00 | L231: 23.08% | M231: Successful | N231: 2018-02-23
A232: 49 | B232: 2016-03-04 | D232: UPL | E232: Accu | F232: 437.50 | H232: 504.5 | I232: 522.00 | J232: Profit of Rs.67/- | K232: 67.00 | L232: 15.31% | M232: Successful | N232: 2016-04-20
A233: 50 | B233: 2016-03-09 | D233: Ashoka Buildcon Ltd | E233: Accu | F233: 189.50 | H233: 218 | I233: 218.00 | J233: Target Achieved | K233: 28.50 | L233: 15.04% | M233: Successful | N233: 2017-10-26
A234: 51 | B234: 2016-04-11 | D234: PTC INDIA FIN SERV LTD | E234: Accu | F234: 36.5 | H234: 15.85 | I234: 60.00 | J234: Loss of Rs.20.65/- | K234: -20.65 | L234: -56.58% | M234: Unsuccessful | N234: 2019-06-11
A235: 52 | B235: 2016-04-12 | D235: CAMLINFINE $ | E235: Accu | F235: 93.00 | H235: 149 | I235: 140.00 | J235: Profit of Rs 56/- | K235: 56.00 | L235: 60.22% | M235: Successful | N235: 2017-01-05
... 105 more rows

Sheet Sheet2 (hidden)
A1: SYMBOL | B1: SERIES | C1: OPEN | D1: HIGH | E1: LOW | F1: CLOSE | G1: LAST | H1: PREVCLOSE | I1: TOTTRDQTY | J1: TOTTRDVAL | K1: TIMESTAMP | L1: TOTALTRADES | M1: ISIN | N1: ISIN
A2: 20MICRONS | B2: EQ | C2: 37.85 | D2: 38.95 | E2: 37.1 | F2: 37.45 | G2: 37.1 | H2: 38.15 | I2: 22434 | J2: 850748.55 | K2: 2019-10-22 | L2: 423 | M2: INE144J01027
A3: 21STCENMGM | B3: EQ | C3: 12.65 | D3: 12.9 | E3: 12.65 | F3: 12.9 | G3: 12.9 | H3: 12.65 | I3: 107 | J3: 1363.55 | K3: 2019-10-22 | L3: 6 | M3: INE253B01015
A4: 3IINFOTECH | B4: EQ | C4: 2.2 | D4: 2.3 | E4: 2.15 | F4: 2.15 | G4: 2.2 | H4: 2.2 | I4: 1315207 | J4: 2914735.7 | K4: 2019-10-22 | L4: 743 | M4: INE748C01020
A5: 3MINDIA | B5: EQ | C5: 22000 | D5: 22190 | E5: 21651 | F5: 21822.3 | G5: 21798 | H5: 21792.25 | I5: 4653 | J5: 102239647.5 | K5: 2019-10-22 | L5: 1445 | M5: INE470A01017
A6: 3PLAND | B6: EQ | C6: 6.3 | D6: 6.3 | E6: 6.3 | F6: 6.3 | G6: 6.3 | H6: 6.2 | I6: 57 | J6: 359.1 | K6: 2019-10-22 | L6: 1 | M6: INE105C01023
A7: 5PAISA | B7: EQ | C7: 175.05 | D7: 177.25 | E7: 174.7 | F7: 174.7 | G7: 174.7 | H7: 183.85 | I7: 38226 | J7: 6682820.1 | K7: 2019-10-22 | L7: 453 | M7: INE618L01018
A8: 63MOONS | B8: EQ | C8: 115.35 | D8: 119.5 | E8: 114.1 | F8: 115.05 | G8: 115.05 | H8: 114.85 | I8: 108727 | J8: 12598429.45 | K8: 2019-10-22 | L8: 2048 | M8: INE111B01023
A9: A2ZINFRA | B9: EQ | C9: 10.6 | D9: 10.65 | E9: 9.75 | F9: 9.9 | G9: 9.8 | H9: 10.55 | I9: 848662 | J9: 8543879.45 | K9: 2019-10-22 | L9: 780 | M9: INE619I01012
A10: AARTIDRUGS | B10: EQ | C10: 456 | D10: 475 | E10: 450.5 | F10: 470.95 | G10: 472 | H10: 456 | I10: 9568 | J10: 4466217.95 | K10: 2019-10-22 | L10: 733 | M10: INE767A01016
A11: AARTIIND | B11: EQ | C11: 810 | D11: 827.4 | E11: 804.55 | F11: 821.95 | G11: 823 | H11: 804.55 | I11: 209498 | J11: 170425419.2 | K11: 2019-10-22 | L11: 10778 | M11: INE769A01020
A12: AARVEEDEN | B12: EQ | C12: 14.8 | D12: 15.95 | E12: 13.6 | F12: 14.9 | G12: 14.9 | H12: 14.2 | I12: 4053 | J12: 58658.45 | K12: 2019-10-22 | L12: 56 | M12: INE273D01019
A13: AAVAS | B13: EQ | C13: 1675.85 | D13: 1691.9 | E13: 1654 | F13: 1665.5 | G13: 1668 | H13: 1675.85 | I13: 13305 | J13: 22253150.2 | K13: 2019-10-22 | L13: 3209 | M13: INE216P01012
A14: ABAN | B14: BE | C14: 24.5 | D14: 26 | E14: 24.3 | F14: 25.3 | G14: 25.25 | H14: 25.45 | I14: 31450 | J14: 799834.4 | K14: 2019-10-22 | L14: 278 | M14: INE421A01028
A15: ABB | B15: EQ | C15: 1557 | D15: 1580 | E15: 1521 | F15: 1539.2 | G15: 1540 | H15: 1556.3 | I15: 112943 | J15: 175376177.2 | K15: 2019-10-22 | L15: 3028 | M15: INE117A01022
A16: ABBOTINDIA | B16: EQ | C16: 10699.95 | D16: 11000 | E16: 10350 | F16: 10699.85 | G16: 10675 | H16: 10704.5 | I16: 25468 | J16: 273550711.8 | K16: 2019-10-22 | L16: 5887 | M16: INE358A01014
A17: ABCAPITAL | B17: EQ | C17: 79.05 | D17: 83.7 | E17: 79.05 | F17: 82.95 | G17: 83.2 | H17: 79.4 | I17: 3462436 | J17: 282919068.9 | K17: 2019-10-22 | L17: 30752 | M17: INE674K01013
A18: ABFRL | B18: EQ | C18: 207.55 | D18: 211.9 | E18: 204.05 | F18: 205.75 | G18: 205.85 | H18: 209.2 | I18: 684987 | J18: 141974677.4 | K18: 2019-10-22 | L18: 4536 | M18: INE647O01011
A19: ABMINTLTD | B19: BE | C19: 14.1 | D19: 14.1 | E19: 14.1 | F19: 14.1 | G19: 14.1 | H19: 14.1 | I19: 2 | J19: 28.2 | K19: 2019-10-22 | L19: 1 | M19: INE251C01017
A20: ABSLNN50ET | B20: EQ | C20: 282.96 | D20: 283.35 | E20: 282.96 | F20: 283.35 | G20: 283.35 | H20: 281 | I20: 11 | J20: 3116.46 | K20: 2019-10-22 | L20: 2 | M20: INF209KB1B87
A21: ACC | B21: EQ | C21: 1551.9 | D21: 1556.95 | E21: 1523.8 | F21: 1535.25 | G21: 1536.2 | H21: 1553.55 | I21: 934518 | J21: 1439738512 | K21: 2019-10-22 | L21: 52831 | M21: INE012A01025
A22: ACCELYA | B22: EQ | C22: 854.8 | D22: 869 | E22: 826.05 | F22: 832.65 | G22: 840 | H22: 854.8 | I22: 2896 | J22: 2454306.45 | K22: 2019-10-22 | L22: 449 | M22: INE793A01012
A23: ACE | B23: EQ | C23: 80.65 | D23: 82 | E23: 79.6 | F23: 80.2 | G23: 80 | H23: 80.1 | I23: 104564 | J23: 8436594.85 | K23: 2019-10-22 | L23: 1018 | M23: INE731H01025
A24: ADANIENT | B24: EQ | C24: 174.5 | D24: 180 | E24: 173.4 | F24: 178.65 | G24: 178.4 | H24: 175.1 | I24: 7909839 | J24: 1406654338 | K24: 2019-10-22 | L24: 33677 | M24: INE423A01024
A25: ADANIGAS | B25: EQ | C25: 149.5 | D25: 152.85 | E25: 148.1 | F25: 148.45 | G25: 148.2 | H25: 151 | I25: 698922 | J25: 104531124.1 | K25: 2019-10-22 | L25: 6381 | M25: INE399L01023
A26: ADANIGREEN | B26: EQ | C26: 90 | D26: 91.25 | E26: 84 | F26: 86.6 | G26: 86.6 | H26: 89.6 | I26: 2692862 | J26: 234028278.4 | K26: 2019-10-22 | L26: 15797 | M26: INE364U01010
A27: ADANIPORTS | B27: EQ | C27: 421.5 | D27: 428.85 | E27: 417.1 | F27: 420.75 | G27: 420.6 | H27: 421.7 | I27: 2380735 | J27: 1008930876 | K27: 2019-10-22 | L27: 36089 | M27: INE742F01042
A28: ADANIPOWER | B28: EQ | C28: 64 | D28: 65.05 | E28: 62.95 | F28: 63.25 | G28: 63.25 | H28: 64.15 | I28: 6883425 | J28: 441151234.9 | K28: 2019-10-22 | L28: 20683 | M28: INE814H01011
A29: ADANITRANS | B29: EQ | C29: 239 | D29: 259 | E29: 237 | F29: 253.55 | G29: 253.25 | H29: 238.1 | I29: 549105 | J29: 137145882.6 | K29: 2019-10-22 | L29: 9394 | M29: INE931S01010
A30: ADFFOODS | B30: EQ | C30: 260.05 | D30: 263.6 | E30: 253.45 | F30: 255.35 | G30: 254 | H30: 261.65 | I30: 17861 | J30: 4593916.2 | K30: 2019-10-22 | L30: 1372 | M30: INE982B01019
A31: ADHUNIKIND | B31: EQ | C31: 118.5 | D31: 120.4 | E31: 113.05 | F31: 114.7 | G31: 113.5 | H31: 118.35 | I31: 73969 | J31: 8697458.35 | K31: 2019-10-22 | L31: 1671 | M31: INE452L01012
A32: ADLABS | B32: EQ | C32: 2 | D32: 2 | E32: 1.9 | F32: 1.9 | G32: 1.9 | H32: 1.95 | I32: 299906 | J32: 578790.1 | K32: 2019-10-22 | L32: 452 | M32: INE172N01012
A33: ADORWELD | B33: EQ | C33: 309 | D33: 316.95 | E33: 296.05 | F33: 305.45 | G33: 304 | H33: 300.85 | I33: 5497 | J33: 1694748.25 | K33: 2019-10-22 | L33: 396 | M33: INE045A01017
A34: ADROITINFO | B34: BE | C34: 6.55 | D34: 6.55 | E34: 6.55 | F34: 6.55 | G34: 6.55 | H34: 6.85 | I34: 366 | J34: 2397.3 | K34: 2019-10-22 | L34: 6 | M34: INE737B01033
A35: ADSL | B35: EQ | C35: 14.2 | D35: 14.35 | E35: 13.5 | F35: 13.7 | G35: 13.6 | H35: 14.2 | I35: 23489 | J35: 325322.8 | K35: 2019-10-22 | L35: 91 | M35: INE102I01027
A36: ADVANIHOTR | B36: EQ | C36: 53.05 | D36: 55.1 | E36: 52.1 | F36: 53.9 | G36: 54.5 | H36: 53.45 | I36: 4731 | J36: 254139.1 | K36: 2019-10-22 | L36: 129 | M36: INE199C01026
A37: ADVENZYMES | B37: EQ | C37: 154.85 | D37: 160.9 | E37: 154.45 | F37: 156.75 | G37: 158 | H37: 154.15 | I37: 66528 | J37: 10536839.4 | K37: 2019-10-22 | L37: 1641 | M37: INE837H01020
A38: AEGISCHEM | B38: EQ | C38: 168.1 | D38: 183.85 | E38: 168.1 | F38: 179.3 | G38: 182.55 | H38: 169.55 | I38: 229184 | J38: 40676407.5 | K38: 2019-10-22 | L38: 5147 | M38: INE208C01025
A39: AFFLE | B39: EQ | C39: 1195.2 | D39: 1253 | E39: 1185.3 | F39: 1217.95 | G39: 1218.1 | H39: 1197.9 | I39: 158999 | J39: 195839571.7 | K39: 2019-10-22 | L39: 6445 | M39: INE00WC01019
A40: AGARIND | B40: EQ | C40: 114.05 | D40: 119 | E40: 113.25 | F40: 117.1 | G40: 115.5 | H40: 114.2 | I40: 3568 | J40: 415727.35 | K40: 2019-10-22 | L40: 88 | M40: INE204E01012
A41: AGCNET | B41: BE | C41: 115 | D41: 115.95 | E41: 112.25 | F41: 115.95 | G41: 115.95 | H41: 114.2 | I41: 199 | J41: 22898.5 | K41: 2019-10-22 | L41: 9 | M41: INE676A01019
A42: AGLSL | B42: EQ | C42: 57.95 | D42: 60.95 | E42: 50.3 | F42: 51.1 | G42: 51.5 | H42: 50.9 | I42: 29861 | J42: 1597179.4 | K42: 2019-10-22 | L42: 180 | M42: INE517U01013
A43: AGRITECH | B43: EQ | C43: 44.1 | D43: 46.85 | E43: 44.1 | F43: 45.2 | G43: 44.8 | H43: 46.25 | I43: 8221 | J43: 372757.3 | K43: 2019-10-22 | L43: 281 | M43: INE449G01018
A44: AGROPHOS | B44: EQ | C44: 111.2 | D44: 112 | E44: 111.15 | F44: 111.7 | G44: 111.65 | H44: 111.05 | I44: 640355 | J44: 71421493.9 | K44: 2019-10-22 | L44: 20092 | M44: INE740V01019
A45: AHLEAST | B45: EQ | C45: 185.95 | D45: 185.95 | E45: 179.85 | F45: 183.15 | G45: 184 | H45: 179.05 | I45: 252 | J45: 46121.6 | K45: 2019-10-22 | L45: 46 | M45: INE926K01017
A46: AHLUCONT | B46: EQ | C46: 281.9 | D46: 297 | E46: 281.9 | F46: 290.35 | G46: 290 | H46: 281.05 | I46: 2366 | J46: 686305.8 | K46: 2019-10-22 | L46: 165 | M46: INE758C01029
A47: AHLWEST | B47: EQ | C47: 280.05 | D47: 285 | E47: 272.4 | F47: 275.95 | G47: 272.4 | H47: 282.4 | I47: 698 | J47: 195447.3 | K47: 2019-10-22 | L47: 189 | M47: INE915K01010
A48: AIAENG | B48: EQ | C48: 1759 | D48: 1759.65 | E48: 1700 | F48: 1709.65 | G48: 1703.4 | H48: 1749.5 | I48: 16725 | J48: 28786086.95 | K48: 2019-10-22 | L48: 3890 | M48: INE212H01026
A49: AIONJSW | B49: EQ | C49: 9.85 | D49: 10.6 | E49: 9.85 | F49: 9.9 | G49: 9.9 | H49: 10.1 | I49: 91413 | J49: 913332.9 | K49: 2019-10-22 | L49: 195 | M49: INE743C01021
A50: AIRAN | B50: EQ | C50: 13 | D50: 13.25 | E50: 12.75 | F50: 13.25 | G50: 13.25 | H50: 13 | I50: 8244 | J50: 107987.75 | K50: 2019-10-22 | L50: 32 | M50: INE645W01026
A51: AJANTPHARM | B51: EQ | C51: 1014 | D51: 1050 | E51: 985.55 | F51: 1004.45 | G51: 1000 | H51: 1012.35 | I51: 127565 | J51: 130647589 | K51: 2019-10-22 | L51: 6802 | M51: INE031B01049
A52: AJMERA | B52: EQ | C52: 118.8 | D52: 120.6 | E52: 115.75 | F52: 116.3 | G52: 116.25 | H52: 117.3 | I52: 43377 | J52: 5122257.85 | K52: 2019-10-22 | L52: 1178 | M52: INE298G01027
A53: AKASH | B53: EQ | C53: 60 | D53: 60.5 | E53: 58.1 | F53: 58.6 | G53: 58.1 | H53: 58 | I53: 4146 | J53: 246157.5 | K53: 2019-10-22 | L53: 23 | M53: INE737W01013
A54: AKSHARCHEM | B54: EQ | C54: 205.85 | D54: 218 | E54: 201 | F54: 209.55 | G54: 217.55 | H54: 205.75 | I54: 2712 | J54: 557089 | K54: 2019-10-22 | L54: 152 | M54: INE542B01011
A55: AKSHOPTFBR | B55: EQ | C55: 7.4 | D55: 7.4 | E55: 6.9 | F55: 6.95 | G55: 7 | H55: 7.15 | I55: 239957 | J55: 1699235.15 | K55: 2019-10-22 | L55: 419 | M55: INE523B01011
A56: AKZOINDIA | B56: EQ | C56: 2025 | D56: 2075 | E56: 2012.2 | F56: 2033.35 | G56: 2027.1 | H56: 2008.15 | I56: 26496 | J56: 54227318.5 | K56: 2019-10-22 | L56: 4020 | M56: INE133A01011
A57: ALANKIT | B57: EQ | C57: 20.05 | D57: 20.05 | E57: 18.8 | F57: 19.05 | G57: 18.95 | H57: 19.5 | I57: 359205 | J57: 6867040.8 | K57: 2019-10-22 | L57: 1106 | M57: INE914E01040
A58: ALBERTDAVD | B58: EQ | C58: 336.05 | D58: 360.9 | E58: 336.05 | F58: 338.75 | G58: 336.1 | H58: 345.15 | I58: 5352 | J58: 1840934.2 | K58: 2019-10-22 | L58: 305 | M58: INE155C01010
A59: ALBK | B59: EQ | C59: 25.8 | D59: 26.45 | E59: 25.7 | F59: 26.05 | G59: 26.05 | H59: 25.7 | I59: 743078 | J59: 19401148.75 | K59: 2019-10-22 | L59: 2888 | M59: INE428A01015
A60: ALCHEM | B60: BE | C60: 0.85 | D60: 0.85 | E60: 0.85 | F60: 0.85 | G60: 0.85 | H60: 0.85 | I60: 374 | J60: 317.9 | K60: 2019-10-22 | L60: 5 | M60: INE964B01033
A61: ALEMBICLTD | B61: EQ | C61: 47.65 | D61: 52 | E61: 47.05 | F61: 49.2 | G61: 49.25 | H61: 47.65 | I61: 193008 | J61: 9651857.2 | K61: 2019-10-22 | L61: 1841 | M61: INE426A01027
A62: ALICON | B62: EQ | C62: 400 | D62: 400 | E62: 376 | F62: 379.2 | G62: 379.95 | H62: 385.4 | I62: 7115 | J62: 2745121.4 | K62: 2019-10-22 | L62: 340 | M62: INE062D01024
A63: ALKALI | B63: EQ | C63: 45.15 | D63: 46.35 | E63: 44.2 | F63: 45.55 | G63: 45.95 | H63: 45.15 | I63: 7516 | J63: 339636.6 | K63: 2019-10-22 | L63: 93 | M63: INE773I01017
A64: ALKEM | B64: EQ | C64: 1976.9 | D64: 1985 | E64: 1950.05 | F64: 1974.75 | G64: 1968 | H64: 1958.95 | I64: 83148 | J64: 163508480 | K64: 2019-10-22 | L64: 2454 | M64: INE540L01014
A65: ALKYLAMINE | B65: EQ | C65: 874.95 | D65: 937.7 | E65: 869 | F65: 892.65 | G65: 899.95 | H65: 867.9 | I65: 19368 | J65: 17562190.95 | K65: 2019-10-22 | L65: 1462 | M65: INE150B01021
A66: ALLCARGO | B66: EQ | C66: 100.15 | D66: 101.85 | E66: 98.1 | F66: 99.1 | G66: 98.5 | H66: 101.35 | I66: 95742 | J66: 9599227.7 | K66: 2019-10-22 | L66: 1724 | M66: INE418H01029
A67: ALLSEC | B67: EQ | C67: 282 | D67: 284 | E67: 275.2 | F67: 275.5 | G67: 275.5 | H67: 283.75 | I67: 1594 | J67: 443182.35 | K67: 2019-10-22 | L67: 99 | M67: INE835G01018
A68: ALMONDZ | B68: EQ | C68: 9.2 | D68: 9.2 | E68: 9.2 | F68: 9.2 | G68: 9.2 | H68: 9.1 | I68: 90 | J68: 828 | K68: 2019-10-22 | L68: 4 | M68: INE326B01027
A69: ALOKTEXT | B69: EQ | C69: 1.55 | D69: 1.65 | E69: 1.55 | F69: 1.6 | G69: 1.65 | H69: 1.6 | I69: 5448982 | J69: 8812173.5 | K69: 2019-10-22 | L69: 1473 | M69: INE270A01011
A70: ALPA | B70: EQ | C70: 14.3 | D70: 14.8 | E70: 13.6 | F70: 14.6 | G70: 14.75 | H70: 14.6 | I70: 17600 | J70: 253460.6 | K70: 2019-10-22 | L70: 113 | M70: INE385I01010
A71: ALPHAGEO | B71: EQ | C71: 180.2 | D71: 185.9 | E71: 180 | F71: 180.85 | G71: 181.5 | H71: 185.1 | I71: 5958 | J71: 1088368.95 | K71: 2019-10-22 | L71: 348 | M71: INE137C01018
A72: ALPSINDUS | B72: BE | C72: 0.35 | D72: 0.4 | E72: 0.3 | F72: 0.4 | G72: 0.4 | H72: 0.35 | I72: 58889 | J72: 21379.65 | K72: 2019-10-22 | L72: 26 | M72: INE093B01015
A73: AMARAJABAT | B73: EQ | C73: 668 | D73: 681 | E73: 662.2 | F73: 675.9 | G73: 675.5 | H73: 668.5 | I73: 539900 | J73: 363103378.1 | K73: 2019-10-22 | L73: 15683 | M73: INE885A01032
A74: AMBER | B74: EQ | C74: 944 | D74: 954.95 | E74: 920.05 | F74: 936.15 | G74: 933.6 | H74: 937.5 | I74: 64752 | J74: 61156888.2 | K74: 2019-10-22 | L74: 2197 | M74: INE371P01015
A75: AMBIKCO | B75: EQ | C75: 915.05 | D75: 930 | E75: 903.6 | F75: 924.3 | G75: 928 | H75: 914.55 | I75: 2177 | J75: 2003577.4 | K75: 2019-10-22 | L75: 266 | M75: INE540G01014
A76: AMBUJACEM | B76: EQ | C76: 205 | D76: 205.4 | E76: 192.5 | F76: 195.9 | G76: 195.9 | H76: 207.65 | I76: 9355044 | J76: 1839988600 | K76: 2019-10-22 | L76: 67225 | M76: INE079A01024
A77: AMDIND | B77: EQ | C77: 15.45 | D77: 15.45 | E77: 15 | F77: 15.15 | G77: 15.15 | H77: 15.2 | I77: 2021 | J77: 30680.05 | K77: 2019-10-22 | L77: 32 | M77: INE005I01014
A78: AMJLAND | B78: EQ | C78: 18.5 | D78: 18.8 | E78: 17.15 | F78: 18.2 | G78: 18.5 | H78: 18.55 | I78: 19852 | J78: 356837.9 | K78: 2019-10-22 | L78: 121 | M78: INE606A01024
A79: AMRUTANJAN | B79: EQ | C79: 360 | D79: 417.8 | E79: 356.85 | F79: 382.95 | G79: 383.3 | H79: 360.3 | I79: 239505 | J79: 93967838.15 | K79: 2019-10-22 | L79: 10568 | M79: INE098F01031
A80: ANANTRAJ | B80: EQ | C80: 29.6 | D80: 30.3 | E80: 29 | F80: 30.05 | G80: 30.05 | H80: 29.75 | I80: 142976 | J80: 4281684.9 | K80: 2019-10-22 | L80: 777 | M80: INE242C01024
A81: ANDHRABANK | B81: EQ | C81: 16.55 | D81: 16.85 | E81: 16.25 | F81: 16.35 | G81: 16.35 | H81: 16.3 | I81: 547304 | J81: 9026771.5 | K81: 2019-10-22 | L81: 2223 | M81: INE434A01013
A82: ANDHRACEMT | B82: BE | C82: 2.6 | D82: 2.75 | E82: 2.55 | F82: 2.6 | G82: 2.55 | H82: 2.65 | I82: 30701 | J82: 79084.25 | K82: 2019-10-22 | L82: 80 | M82: INE666E01012
A83: ANDHRSUGAR | B83: EQ | C83: 268.1 | D83: 275.4 | E83: 262.85 | F83: 267.3 | G83: 268 | H83: 265.75 | I83: 29191 | J83: 7894350.85 | K83: 2019-10-22 | L83: 1350 | M83: INE715B01013
A84: ANIKINDS | B84: EQ | C84: 5.8 | D84: 5.85 | E84: 5.8 | F84: 5.85 | G84: 5.85 | H84: 5.6 | I84: 825 | J84: 4815.25 | K84: 2019-10-22 | L84: 8 | M84: INE087B01017
A85: ANKITMETAL | B85: BE | C85: 0.35 | D85: 0.45 | E85: 0.35 | F85: 0.45 | G85: 0.4 | H85: 0.4 | I85: 1303 | J85: 523.4 | K85: 2019-10-22 | L85: 16 | M85: INE106I01010
A86: ANSALAPI | B86: EQ | C86: 4.3 | D86: 4.3 | E86: 4.1 | F86: 4.2 | G86: 4.25 | H86: 4.1 | I86: 12378 | J86: 51972.95 | K86: 2019-10-22 | L86: 66 | M86: INE436A01026
A87: ANSALHSG | B87: EQ | C87: 4.6 | D87: 4.65 | E87: 4.45 | F87: 4.5 | G87: 4.5 | H87: 4.45 | I87: 28937 | J87: 131107.2 | K87: 2019-10-22 | L87: 120 | M87: INE880B01015
A88: ANTGRAPHIC | B88: BE | C88: 0.7 | D88: 0.75 | E88: 0.7 | F88: 0.75 | G88: 0.75 | H88: 0.75 | I88: 40141 | J88: 28803.1 | K88: 2019-10-22 | L88: 27 | M88: INE414B01021
A89: ANUP | B89: EQ | C89: 459 | D89: 475 | E89: 457.5 | F89: 461.15 | G89: 459 | H89: 469.6 | I89: 15382 | J89: 7112285.65 | K89: 2019-10-22 | L89: 738 | M89: INE294Z01018
A90: APARINDS | B90: EQ | C90: 512.25 | D90: 522.25 | E90: 510 | F90: 514.4 | G90: 510 | H90: 509.95 | I90: 2216 | J90: 1145238.35 | K90: 2019-10-22 | L90: 257 | M90: INE372A01015
A91: APCL | B91: EQ | C91: 143.95 | D91: 144.9 | E91: 141.25 | F91: 142 | G91: 142 | H91: 142 | I91: 1130 | J91: 161182.55 | K91: 2019-10-22 | L91: 39 | M91: INE071F01012
A92: APCOTEXIND | B92: EQ | C92: 182.85 | D92: 184.95 | E92: 178.1 | F92: 180.35 | G92: 182.5 | H92: 181 | I92: 24978 | J92: 4527329.95 | K92: 2019-10-22 | L92: 964 | M92: INE116A01032
A93: APEX | B93: EQ | C93: 234.8 | D93: 258 | E93: 234.75 | F93: 247.95 | G93: 251 | H93: 227.9 | I93: 230342 | J93: 57122907.55 | K93: 2019-10-22 | L93: 7211 | M93: INE346W01013
A94: APLAPOLLO | B94: EQ | C94: 1404 | D94: 1404.95 | E94: 1384 | F94: 1386.65 | G94: 1385 | H94: 1392.25 | I94: 35491 | J94: 49254268.8 | K94: 2019-10-22 | L94: 1338 | M94: INE702C01019
A95: APLLTD | B95: EQ | C95: 544 | D95: 547 | E95: 530 | F95: 538.4 | G95: 537 | H95: 544 | I95: 31683 | J95: 17143371.5 | K95: 2019-10-22 | L95: 2103 | M95: INE901L01018
A96: APOLLO | B96: EQ | C96: 70 | D96: 71.95 | E96: 68.5 | F96: 69.2 | G96: 68.9 | H96: 69.85 | I96: 14732 | J96: 1023078.15 | K96: 2019-10-22 | L96: 579 | M96: INE713T01010
A97: APOLLOHOSP | B97: EQ | C97: 1502 | D97: 1540 | E97: 1502 | F97: 1519.4 | G97: 1519 | H97: 1507.85 | I97: 621477 | J97: 947982047 | K97: 2019-10-22 | L97: 21280 | M97: INE437A01024
A98: APOLLOTYRE | B98: EQ | C98: 184.55 | D98: 188.35 | E98: 183.4 | F98: 185.05 | G98: 185.15 | H98: 186.05 | I98: 3680040 | J98: 683987175.2 | K98: 2019-10-22 | L98: 27127 | M98: INE438A01022
A99: APOLSINHOT | B99: EQ | C99: 756 | D99: 801 | E99: 756 | F99: 788.7 | G99: 783.05 | H99: 762 | I99: 909 | J99: 717376.2 | K99: 2019-10-22 | L99: 115 | M99: INE451F01024
A100: APTECHT | B100: EQ | C100: 165.2 | D100: 173.3 | E100: 162.95 | F100: 165.8 | G100: 166 | H100: 165.8 | I100: 404600 | J100: 67906510.15 | K100: 2019-10-22 | L100: 5716 | M100: INE266F01018
A101: ARCHIDPLY | B101: EQ | C101: 25.9 | D101: 27.1 | E101: 25.7 | F101: 26.4 | G101: 26.3 | H101: 26.95 | I101: 5478 | J101: 143688.25 | K101: 2019-10-22 | L101: 119 | M101: INE877I01016
A102: ARCHIES | B102: BE | C102: 18.5 | D102: 18.95 | E102: 18 | F102: 18.05 | G102: 18 | H102: 18.4 | I102: 57707 | J102: 1057503.95 | K102: 2019-10-22 | L102: 219 | M102: INE731A01020
A103: ARCOTECH | B103: BE | C103: 1.5 | D103: 1.6 | E103: 1.5 | F103: 1.6 | G103: 1.6 | H103: 1.55 | I103: 15564 | J103: 24121.6 | K103: 2019-10-22 | L103: 48 | M103: INE574I01035
A104: ARIES | B104: EQ | C104: 63.05 | D104: 64 | E104: 60.3 | F104: 61.05 | G104: 61.75 | H104: 63.05 | I104: 30021 | J104: 1867930.8 | K104: 2019-10-22 | L104: 480 | M104: INE298I01015
A105: ARIHANT | B105: EQ | C105: 18.95 | D105: 18.95 | E105: 17.2 | F105: 17.95 | G105: 17.95 | H105: 18.1 | I105: 376 | J105: 6894.6 | K105: 2019-10-22 | L105: 11 | M105: INE413D01011
A106: ARIHANTSUP | B106: BE | C106: 27.3 | D106: 27.3 | E106: 24.7 | F106: 26.95 | G106: 26.95 | H106: 26 | I106: 12115 | J106: 324500.45 | K106: 2019-10-22 | L106: 27 | M106: INE643K01018
A107: ARMANFIN | B107: EQ | C107: 547 | D107: 550 | E107: 540 | F107: 544.25 | G107: 544 | H107: 540.1 | I107: 3829 | J107: 2083479.1 | K107: 2019-10-22 | L107: 159 | M107: INE109C01017
A108: AROGRANITE | B108: EQ | C108: 40 | D108: 40.3 | E108: 38.95 | F108: 39.8 | G108: 39.55 | H108: 42 | I108: 31099 | J108: 1236557.1 | K108: 2019-10-22 | L108: 366 | M108: INE210C01013
A109: ARROWGREEN | B109: EQ | C109: 54.8 | D109: 55.25 | E109: 51.45 | F109: 53.4 | G109: 53.9 | H109: 52.65 | I109: 3992 | J109: 216679.3 | K109: 2019-10-22 | L109: 158 | M109: INE570D01018
A110: ARROWTEX | B110: EQ | C110: 9.7 | D110: 10.6 | E110: 9.65 | F110: 9.75 | G110: 9.65 | H110: 9.65 | I110: 4307 | J110: 42363.05 | K110: 2019-10-22 | L110: 40 | M110: INE933J01015
A111: ARSHIYA | B111: EQ | C111: 18 | D111: 18 | E111: 16.55 | F111: 17.85 | G111: 18 | H111: 17.15 | I111: 58709 | J111: 1033241.9 | K111: 2019-10-22 | L111: 221 | M111: INE968D01022
A112: ARSSINFRA | B112: EQ | C112: 25.65 | D112: 25.65 | E112: 25.05 | F112: 25.6 | G112: 25.05 | H112: 24.45 | I112: 25568 | J112: 655682.3 | K112: 2019-10-22 | L112: 86 | M112: INE267I01010
A113: ARVIND | B113: EQ | C113: 45.6 | D113: 48.2 | E113: 45.5 | F113: 46.4 | G113: 46.25 | H113: 45.9 | I113: 1358779 | J113: 63878955.15 | K113: 2019-10-22 | L113: 8566 | M113: INE034A01011
A114: ARVINDFASN | B114: EQ | C114: 444.95 | D114: 460 | E114: 421.05 | F114: 440 | G114: 458 | H114: 440.85 | I114: 44671 | J114: 19322620.8 | K114: 2019-10-22 | L114: 2732 | M114: INE955V01021
A115: ARVSMART | B115: EQ | C115: 94 | D115: 96.65 | E115: 90 | F115: 95.55 | G115: 96.45 | H115: 92.65 | I115: 26188 | J115: 2460530.75 | K115: 2019-10-22 | L115: 690 | M115: INE034S01021
A116: ASAHIINDIA | B116: EQ | C116: 204.7 | D116: 210.05 | E116: 204.25 | F116: 205.7 | G116: 205.3 | H116: 202.8 | I116: 22494 | J116: 4651856.2 | K116: 2019-10-22 | L116: 665 | M116: INE439A01020
A117: ASAHISONG | B117: EQ | C117: 154 | D117: 178 | E117: 152.25 | F117: 167.75 | G117: 165.5 | H117: 150.6 | I117: 49022 | J117: 8110277.6 | K117: 2019-10-22 | L117: 1505 | M117: INE228I01012
A118: ASAL | B118: EQ | C118: 31.85 | D118: 31.85 | E118: 30 | F118: 30.7 | G118: 30.75 | H118: 30.85 | I118: 9691 | J118: 300786.95 | K118: 2019-10-22 | L118: 106 | M118: INE900C01027
A119: ASHAPURMIN | B119: BE | C119: 34.35 | D119: 34.35 | E119: 31.3 | F119: 31.3 | G119: 31.85 | H119: 32.9 | I119: 44703 | J119: 1419391.45 | K119: 2019-10-22 | L119: 151 | M119: INE348A01023
A120: ASHIANA | B120: EQ | C120: 96.3 | D120: 97.85 | E120: 94 | F120: 95.6 | G120: 95.6 | H120: 96.3 | I120: 115892 | J120: 11135897.5 | K120: 2019-10-22 | L120: 1694 | M120: INE365D01021
A121: ASHIMASYN | B121: EQ | C121: 8.9 | D121: 9.05 | E121: 7.5 | F121: 7.6 | G121: 7.5 | H121: 8.3 | I121: 94546 | J121: 755372.85 | K121: 2019-10-22 | L121: 443 | M121: INE440A01010
A122: ASHOKA | B122: EQ | C122: 106.85 | D122: 110 | E122: 105.6 | F122: 107.9 | G122: 108 | H122: 103.95 | I122: 587794 | J122: 63593024.2 | K122: 2019-10-22 | L122: 8131 | M122: INE442H01029
A123: ASHOKLEY | B123: EQ | C123: 77.05 | D123: 77.15 | E123: 75.15 | F123: 76.05 | G123: 75.85 | H123: 77.5 | I123: 25729454 | J123: 1956487709 | K123: 2019-10-22 | L123: 73766 | M123: INE208A01029
A124: ASIANHOTNR | B124: EQ | C124: 97.15 | D124: 109.45 | E124: 97.15 | F124: 99.4 | G124: 97.7 | H124: 102.2 | I124: 809 | J124: 81565.2 | K124: 2019-10-22 | L124: 104 | M124: INE363A01022
A125: ASIANPAINT | B125: EQ | C125: 1822.7 | D125: 1825 | E125: 1775 | F125: 1780.2 | G125: 1780 | H125: 1816.75 | I125: 2135313 | J125: 3835813904 | K125: 2019-10-22 | L125: 95446 | M125: INE021A01026
A126: ASIANTILES | B126: EQ | C126: 237 | D126: 253.85 | E126: 233 | F126: 240.1 | G126: 239.7 | H126: 237.85 | I126: 158989 | J126: 38763394 | K126: 2019-10-22 | L126: 5089 | M126: INE022I01019
A127: ASPINWALL | B127: EQ | C127: 136.35 | D127: 144.9 | E127: 136.35 | F127: 137.75 | G127: 136.35 | H127: 133 | I127: 2678 | J127: 369704.3 | K127: 2019-10-22 | L127: 67 | M127: INE991I01015
A128: ASSAMCO | B128: BE | C128: 0.4 | D128: 0.5 | E128: 0.4 | F128: 0.5 | G128: 0.5 | H128: 0.45 | I128: 337827 | J128: 159368.3 | K128: 2019-10-22 | L128: 104 | M128: INE442A01024
A129: ASTEC | B129: EQ | C129: 341.25 | D129: 357.45 | E129: 341.25 | F129: 346.6 | G129: 345 | H129: 349.05 | I129: 4400 | J129: 1535306.5 | K129: 2019-10-22 | L129: 309 | M129: INE563J01010
A130: ASTERDM | B130: EQ | C130: 121.45 | D130: 125.9 | E130: 120.3 | F130: 125 | G130: 125.55 | H130: 118.2 | I130: 245641 | J130: 30686351 | K130: 2019-10-22 | L130: 3540 | M130: INE914M01019
A131: ASTRAL | B131: EQ | C131: 1171.5 | D131: 1208 | E131: 1136 | F131: 1140.35 | G131: 1139 | H131: 1165.1 | I131: 109413 | J131: 127078092.3 | K131: 2019-10-22 | L131: 9269 | M131: INE006I01046
A132: ASTRAMICRO | B132: EQ | C132: 78.75 | D132: 78.95 | E132: 76.95 | F132: 77.2 | G132: 77.2 | H132: 78.75 | I132: 97047 | J132: 7535322.7 | K132: 2019-10-22 | L132: 734 | M132: INE386C01029
A133: ASTRAZEN | B133: EQ | C133: 2320 | D133: 2443.9 | E133: 2312.55 | F133: 2412 | G133: 2416.05 | H133: 2278.35 | I133: 39710 | J133: 95052898.65 | K133: 2019-10-22 | L133: 5389 | M133: INE203A01020
A134: ASTRON | B134: EQ | C134: 103.65 | D134: 103.8 | E134: 99.4 | F134: 100.2 | G134: 99.55 | H134: 102.1 | I134: 516142 | J134: 52371386.15 | K134: 2019-10-22 | L134: 6639 | M134: INE646X01014
A135: ATFL | B135: EQ | C135: 502.05 | D135: 536 | E135: 502 | F135: 522.65 | G135: 526 | H135: 502.7 | I135: 5549 | J135: 2831324.8 | K135: 2019-10-22 | L135: 329 | M135: INE209A01019
A136: ATLANTA | B136: BE | C136: 7.1 | D136: 7.35 | E136: 6.95 | F136: 7.3 | G136: 7.3 | H136: 7.1 | I136: 10132 | J136: 72615.25 | K136: 2019-10-22 | L136: 42 | M136: INE285H01022
A137: ATNINTER | B137: BE | C137: 0.45 | D137: 0.5 | E137: 0.4 | F137: 0.4 | G137: 0.4 | H137: 0.45 | I137: 13517 | J137: 5964.75 | K137: 2019-10-22 | L137: 49 | M137: INE803A01027
A138: ATUL | B138: EQ | C138: 4215 | D138: 4285 | E138: 4203.75 | F138: 4264.3 | G138: 4265 | H138: 4215.55 | I138: 10264 | J138: 43600334.7 | K138: 2019-10-22 | L138: 2734 | M138: INE100A01010
A139: ATULAUTO | B139: EQ | C139: 228.4 | D139: 228.4 | E139: 217.25 | F139: 219.15 | G139: 221.9 | H139: 225.25 | I139: 14667 | J139: 3252422.8 | K139: 2019-10-22 | L139: 571 | M139: INE951D01028
A140: AUBANK | B140: EQ | C140: 675 | D140: 696.5 | E140: 667 | F140: 689.25 | G140: 688.4 | H140: 654.4 | I140: 1473667 | J140: 1004178738 | K140: 2019-10-22 | L140: 53833 | M140: INE949L01017
A141: AURIONPRO | B141: EQ | C141: 85.4 | D141: 85.4 | E141: 78.05 | F141: 78.35 | G141: 79.75 | H141: 82.15 | I141: 5457 | J141: 435887.3 | K141: 2019-10-22 | L141: 97 | M141: INE132H01018
A142: AUROPHARMA | B142: EQ | C142: 477 | D142: 485.4 | E142: 471.2 | F142: 477.25 | G142: 479 | H142: 476.45 | I142: 2551851 | J142: 1226089197 | K142: 2019-10-22 | L142: 54106 | M142: INE406A01037
A143: AUSOMENT | B143: EQ | C143: 27.95 | D143: 28.8 | E143: 26.2 | F143: 27.35 | G143: 28 | H143: 27.1 | I143: 363 | J143: 10189.4 | K143: 2019-10-22 | L143: 100 | M143: INE218C01016
A144: AUTOAXLES | B144: EQ | C144: 888.95 | D144: 890 | E144: 865 | F144: 872.35 | G144: 875.6 | H144: 888.95 | I144: 9404 | J144: 8237469.7 | K144: 2019-10-22 | L144: 707 | M144: INE449A01011
A145: AUTOIND | B145: EQ | C145: 23 | D145: 23 | E145: 22 | F145: 22.55 | G145: 22.6 | H145: 23.1 | I145: 28175 | J145: 633572.1 | K145: 2019-10-22 | L145: 166 | M145: INE718H01014
A146: AUTOLITIND | B146: EQ | C146: 20.25 | D146: 22.4 | E146: 19 | F146: 20.5 | G146: 20.5 | H146: 20.8 | I146: 3464 | J146: 69360.95 | K146: 2019-10-22 | L146: 86 | M146: INE448A01013
A147: AVADHSUGAR | B147: EQ | C147: 252 | D147: 273.05 | E147: 252 | F147: 267.45 | G147: 267 | H147: 255.35 | I147: 97081 | J147: 25862399.65 | K147: 2019-10-22 | L147: 2969 | M147: INE349W01017
A148: AVANTIFEED | B148: EQ | C148: 444 | D148: 471 | E148: 440.05 | F148: 450.7 | G148: 453 | H148: 407.3 | I148: 2130558 | J148: 968609927.3 | K148: 2019-10-22 | L148: 58669 | M148: INE871C01038
A149: AVTNPL | B149: EQ | C149: 23.45 | D149: 23.8 | E149: 22.8 | F149: 22.85 | G149: 22.8 | H149: 23.05 | I149: 55241 | J149: 1284579.75 | K149: 2019-10-22 | L149: 171 | M149: INE488D01021
A150: AXISBANK | B150: EQ | C150: 712.4 | D150: 723 | E150: 703.3 | F150: 712.75 | G150: 713.25 | H150: 709.55 | I150: 9704016 | J150: 6945189976 | K150: 2019-10-22 | L150: 173046 | M150: INE238A01034
A151: AXISCADES | B151: EQ | C151: 74.4 | D151: 74.5 | E151: 72 | F151: 73 | G151: 72.6 | H151: 71.95 | I151: 100667 | J151: 7361955.65 | K151: 2019-10-22 | L151: 678 | M151: INE555B01013
A152: AXISGOLD | B152: EQ | C152: 3357 | D152: 3369.35 | E152: 3330 | F152: 3341.85 | G152: 3341 | H152: 3357.75 | I152: 500 | J152: 1672671.85 | K152: 2019-10-22 | L152: 100 | M152: INF846K01347
A153: AXISNIFTY | B153: EQ | C153: 1198 | D153: 1209 | E153: 1191.5 | F153: 1191.5 | G153: 1191.5 | H153: 1196.81 | I153: 141 | J153: 169071.44 | K153: 2019-10-22 | L153: 24 | M153: INF846K01ZL0
A154: AYMSYNTEX | B154: EQ | C154: 32.15 | D154: 33 | E154: 30.6 | F154: 31 | G154: 31 | H154: 32 | I154: 3815 | J154: 120552.4 | K154: 2019-10-22 | L154: 74 | M154: INE193B01039
A155: BAGFILMS | B155: EQ | C155: 1.75 | D155: 1.75 | E155: 1.75 | F155: 1.75 | G155: 1.75 | H155: 1.7 | I155: 44652 | J155: 78141 | K155: 2019-10-22 | L155: 29 | M155: INE116D01028
A156: BAJAJ-AUTO | B156: EQ | C156: 3090.05 | D156: 3154.4 | E156: 3089.65 | F156: 3122.3 | G156: 3122.35 | H156: 3087.05 | I156: 379635 | J156: 1187736361 | K156: 2019-10-22 | L156: 27720 | M156: INE917I01010
A157: BAJAJCON | B157: EQ | C157: 266.1 | D157: 268.7 | E157: 248 | F157: 249.95 | G157: 249 | H157: 264.05 | I157: 764088 | J157: 194365293.7 | K157: 2019-10-22 | L157: 17824 | M157: INE933K01021
A158: BAJAJELEC | B158: EQ | C158: 396 | D158: 413.8 | E158: 395 | F158: 397.1 | G158: 396.05 | H158: 397.95 | I158: 116319 | J158: 46887756.75 | K158: 2019-10-22 | L158: 4144 | M158: INE193E01025
A159: BAJAJFINSV | B159: EQ | C159: 8300 | D159: 8393 | E159: 7975.25 | F159: 8008.85 | G159: 8005 | H159: 8265.95 | I159: 503368 | J159: 4123983476 | K159: 2019-10-22 | L159: 51345 | M159: INE918I01018
A160: BAJAJHIND | B160: EQ | C160: 6.15 | D160: 6.35 | E160: 6.1 | F160: 6.25 | G160: 6.25 | H160: 6.15 | I160: 1018283 | J160: 6386856.95 | K160: 2019-10-22 | L160: 925 | M160: INE306A01021
A161: BAJAJHLDNG | B161: EQ | C161: 3742.4 | D161: 3800 | E161: 3656 | F161: 3673.1 | G161: 3665.1 | H161: 3742.5 | I161: 23709 | J161: 88677196.8 | K161: 2019-10-22 | L161: 3834 | M161: INE118A01012
A162: BAJFINANCE | B162: EQ | C162: 4165 | D162: 4219.85 | E162: 4000.1 | F162: 4034.15 | G162: 4050 | H162: 4137.65 | I162: 5034755 | J162: 2.070253428e+10 | K162: 2019-10-22 | L162: 266830 | M162: INE296A01024
A163: BALAJITELE | B163: EQ | C163: 50 | D163: 52 | E163: 49.5 | F163: 51.15 | G163: 51.5 | H163: 50.1 | I163: 55360 | J163: 2824893.65 | K163: 2019-10-22 | L163: 311 | M163: INE794B01026
A164: BALAMINES | B164: EQ | C164: 317.45 | D164: 339 | E164: 316 | F164: 330.35 | G164: 339 | H164: 318.9 | I164: 25521 | J164: 8349781.45 | K164: 2019-10-22 | L164: 1360 | M164: INE050E01027
A165: BALAXI | B165: EQ | C165: 73.25 | D165: 79.95 | E165: 73.25 | F165: 77 | G165: 77 | H165: 77.1 | I165: 132 | J165: 9876 | K165: 2019-10-22 | L165: 7 | M165: INE618N01014
A166: BALKRISHNA | B166: BE | C166: 20.4 | D166: 20.4 | E166: 18.65 | F166: 18.7 | G166: 18.95 | H166: 19.55 | I166: 12579 | J166: 238001.4 | K166: 2019-10-22 | L166: 109 | M166: INE875R01011
A167: BALKRISIND | B167: EQ | C167: 840 | D167: 846.25 | E167: 825 | F167: 830.65 | G167: 829.05 | H167: 837.3 | I167: 469555 | J167: 391687657.9 | K167: 2019-10-22 | L167: 11628 | M167: INE787D01026
A168: BALLARPUR | B168: EQ | C168: 0.55 | D168: 0.55 | E168: 0.5 | F168: 0.55 | G168: 0.55 | H168: 0.5 | I168: 1513715 | J168: 823704.15 | K168: 2019-10-22 | L168: 299 | M168: INE294A01037
A169: BALMLAWRIE | B169: EQ | C169: 181 | D169: 187 | E169: 179 | F169: 182.5 | G169: 182.65 | H169: 176.35 | I169: 390552 | J169: 71601652.85 | K169: 2019-10-22 | L169: 7611 | M169: INE164A01016
A170: BALPHARMA | B170: EQ | C170: 36.8 | D170: 40 | E170: 36.75 | F170: 37.55 | G170: 37.45 | H170: 37.35 | I170: 12958 | J170: 489854.95 | K170: 2019-10-22 | L170: 204 | M170: INE083D01012
A171: BALRAMCHIN | B171: EQ | C171: 154 | D171: 163.5 | E171: 154 | F171: 161.9 | G171: 163 | H171: 152.95 | I171: 1521079 | J171: 243171411.6 | K171: 2019-10-22 | L171: 17343 | M171: INE119A01028
A172: BANARBEADS | B172: EQ | C172: 29 | D172: 30.05 | E172: 28 | F172: 28.5 | G172: 28 | H172: 29 | I172: 2035 | J172: 59671 | K172: 2019-10-22 | L172: 19 | M172: INE655B01011
A173: BANARISUG | B173: EQ | C173: 1145.05 | D173: 1160.05 | E173: 1140.1 | F173: 1146 | G173: 1146 | H173: 1150.2 | I173: 835 | J173: 960247.45 | K173: 2019-10-22 | L173: 19 | M173: INE459A01010
A174: BANCOINDIA | B174: EQ | C174: 97.4 | D174: 100.55 | E174: 96 | F174: 97.45 | G174: 97.45 | H174: 97.5 | I174: 56419 | J174: 5520623.75 | K174: 2019-10-22 | L174: 1662 | M174: INE213C01025
A175: BANDHANBNK | B175: EQ | C175: 554 | D175: 580.45 | E175: 553.8 | F175: 559.35 | G175: 555 | H175: 554.7 | I175: 2860120 | J175: 1618817006 | K175: 2019-10-22 | L175: 53818 | M175: INE545U01014
A176: BANG | B176: EQ | C176: 18 | D176: 18.45 | E176: 17.8 | F176: 18.2 | G176: 18.45 | H176: 18.35 | I176: 1484 | J176: 26832.65 | K176: 2019-10-22 | L176: 26 | M176: INE863I01016
A177: BANKBARODA | B177: EQ | C177: 89.5 | D177: 92.6 | E177: 89.05 | F177: 90.15 | G177: 90.15 | H177: 89.8 | I177: 24388459 | J177: 2217051138 | K177: 2019-10-22 | L177: 67482 | M177: INE028A01039
A178: BANKBEES | B178: EQ | C178: 2975.31 | D178: 3030 | E178: 2972.68 | F178: 3000.69 | G178: 3000 | H178: 2972.04 | I178: 9182 | J178: 27613272.92 | K178: 2019-10-22 | L178: 1021 | M178: INF732E01078
A179: BANKINDIA | B179: EQ | C179: 64 | D179: 66.85 | E179: 63.7 | F179: 64.3 | G179: 64.5 | H179: 64.2 | I179: 8759605 | J179: 571484680.6 | K179: 2019-10-22 | L179: 19436 | M179: INE084A01016
A180: BANSWRAS | B180: EQ | C180: 67.55 | D180: 69.4 | E180: 67.3 | F180: 67.5 | G180: 67.5 | H180: 68.05 | I180: 5517 | J180: 373633.2 | K180: 2019-10-22 | L180: 38 | M180: INE629D01012
A181: BARTRONICS | B181: BE | C181: 1.45 | D181: 1.45 | E181: 1.45 | F181: 1.45 | G181: 1.45 | H181: 1.5 | I181: 1559 | J181: 2260.55 | K181: 2019-10-22 | L181: 12 | M181: INE855F01034
A182: BASF | B182: EQ | C182: 977.8 | D182: 986 | E182: 951.1 | F182: 956.45 | G182: 957 | H182: 964 | I182: 17231 | J182: 16702798.85 | K182: 2019-10-22 | L182: 1519 | M182: INE373A01013
A183: BASML | B183: EQ | C183: 144.05 | D183: 155 | E183: 142 | F183: 152.5 | G183: 155 | H183: 147.85 | I183: 9060 | J183: 1342552.25 | K183: 2019-10-22 | L183: 139 | M183: INE186H01014
A184: BATAINDIA | B184: EQ | C184: 1773.75 | D184: 1804.95 | E184: 1742.15 | F184: 1767.85 | G184: 1767.5 | H184: 1769.1 | I184: 767897 | J184: 1365751925 | K184: 2019-10-22 | L184: 25969 | M184: INE176A01028
A185: BAYERCROP | B185: EQ | C185: 3308.2 | D185: 3375 | E185: 3250 | F185: 3322.45 | G185: 3339 | H185: 3308.25 | I185: 4722 | J185: 15681958.35 | K185: 2019-10-22 | L185: 1377 | M185: INE462A01022
A186: BBL | B186: EQ | C186: 913.05 | D186: 925.25 | E186: 904.95 | F186: 910.05 | G186: 913 | H186: 916.45 | I186: 4166 | J186: 3810962.4 | K186: 2019-10-22 | L186: 388 | M186: INE464A01028
A187: BBTC | B187: EQ | C187: 1177.95 | D187: 1203.85 | E187: 1160.05 | F187: 1170.1 | G187: 1173.05 | H187: 1172.75 | I187: 137926 | J187: 162317724 | K187: 2019-10-22 | L187: 8008 | M187: INE050A01025
A188: BCG | B188: EQ | C188: 3.05 | D188: 3.15 | E188: 2.95 | F188: 3 | G188: 3.05 | H188: 3.05 | I188: 271631 | J188: 827956.95 | K188: 2019-10-22 | L188: 214 | M188: INE425B01027
A189: BCP | B189: EQ | C189: 8.25 | D189: 8.25 | E189: 8.25 | F189: 8.25 | G189: 8.25 | H189: 8.4 | I189: 3139 | J189: 25896.75 | K189: 2019-10-22 | L189: 6 | M189: INE905P01028
A190: BDL | B190: EQ | C190: 289.5 | D190: 298 | E190: 283.25 | F190: 291.5 | G190: 292 | H190: 287 | I190: 47693 | J190: 13928137.85 | K190: 2019-10-22 | L190: 2380 | M190: INE171Z01018
A191: BEARDSELL | B191: EQ | C191: 12 | D191: 12 | E191: 9 | F191: 10.1 | G191: 10.3 | H191: 10.4 | I191: 3471 | J191: 33860.2 | K191: 2019-10-22 | L191: 121 | M191: INE520H01022
A192: BEDMUTHA | B192: EQ | C192: 11.2 | D192: 11.6 | E192: 10.55 | F192: 11.05 | G192: 11.05 | H192: 10.9 | I192: 3021 | J192: 33475.45 | K192: 2019-10-22 | L192: 108 | M192: INE844K01012
A193: BEL | B193: EQ | C193: 116.8 | D193: 118.05 | E193: 114.65 | F193: 115.35 | G193: 114.9 | H193: 116.55 | I193: 9520425 | J193: 1106758047 | K193: 2019-10-22 | L193: 36842 | M193: INE263A01024
A194: BEML | B194: EQ | C194: 952.1 | D194: 988 | E194: 950 | F194: 965.9 | G194: 969.4 | H194: 955.7 | I194: 936718 | J194: 909355255.9 | K194: 2019-10-22 | L194: 26914 | M194: INE258A01016
A195: BEPL | B195: EQ | C195: 50 | D195: 53.05 | E195: 49.2 | F195: 49.9 | G195: 50 | H195: 50.25 | I195: 1069695 | J195: 54426561.2 | K195: 2019-10-22 | L195: 4541 | M195: INE922A01025
A196: BERGEPAINT | B196: EQ | C196: 503 | D196: 504.8 | E196: 477 | F196: 479.1 | G196: 479.5 | H196: 499.05 | I196: 2792726 | J196: 1362509448 | K196: 2019-10-22 | L196: 76031 | M196: INE463A01038
A197: BFINVEST | B197: EQ | C197: 309 | D197: 322.2 | E197: 306.9 | F197: 309.9 | G197: 308.95 | H197: 309.85 | I197: 108357 | J197: 34040366.25 | K197: 2019-10-22 | L197: 3908 | M197: INE878K01010
A198: BFUTILITIE | B198: EQ | C198: 224.35 | D198: 232.3 | E198: 220.1 | F198: 223.85 | G198: 223.2 | H198: 224.05 | I198: 598342 | J198: 135119691.8 | K198: 2019-10-22 | L198: 14157 | M198: INE243D01012
A199: BGLOBAL | B199: BE | C199: 1.7 | D199: 1.8 | E199: 1.7 | F199: 1.75 | G199: 1.8 | H199: 1.75 | I199: 7784 | J199: 13445.4 | K199: 2019-10-22 | L199: 26 | M199: INE224M01013
A200: BGRENERGY | B200: EQ | C200: 33.3 | D200: 33.65 | E200: 31.65 | F200: 31.85 | G200: 31.8 | H200: 32.8 | I200: 85764 | J200: 2800488.2 | K200: 2019-10-22 | L200: 817 | M200: INE661I01014
... 1491 more rows

Sheet Sheet1 (hidden)

Sheet Sheet3 (hidden)

Sheet Sheet4 (hidden)

Sheet Sheet5 (hidden)
